{"text_format":"3","workbook":"xlsx","n_sheets":15,"sheets":["Kaip naudoti šį šabloną","Studentų sąrašas","Rugpjūtis","Rugsėjis","Spalis","Lapkritis","Gruodis","Sausis","Vasaris","Kovas","Balandis","Gegužė","Birželis","Liepa","Studentų lankomumo ataskaita"],"not_rendered":{"defined_names":16},"read":"whole","date_system":"1900"}

{"sheet":"Kaip naudoti šį šabloną","index":0,"n_rows":25,"n_cols":5,"rows_kept":25,"merged":[[3,2,3,12],[4,4,4,12],[5,4,5,12],[6,4,6,12],[7,4,7,12],[8,4,8,7],[11,2,11,12],[12,4,12,12],[13,4,13,12],[14,4,14,12],[17,2,17,12],[18,4,18,12],[19,4,19,12],[20,4,20,12],[21,4,21,12],[24,2,24,12]]}
["KAIP NAUDOTIS ŠIUO ŠABLONU"]
[]
[null,"KUR PRADĖTI?"]
[null,null,"Yra keli žingsniai, kuriuos turite atlikti, kad galėtumėte pradėti studentų lankomumo sekimą:"]
[{"$nulls":3},"1.","Pridėkite savo studentą: Ant Studentų sąrašo lapo įveskite kiekvieno studento informaciją, kaip pavyzdžiui, globėjo vardą ir pavardę ir kontaktinius duomenis. Studento ID yra svarbus įrašas, nes suteikia unikalų identifikatorių kiekvienam studentui ir yra naudojamas visoje darbaknygėje įvairiems studentų ID išplečiamiems sąrašams siekiant palengvinti duomenų įvedimą. Informacija, įvesta studentų sąraše, yra naudojama ir kituose lapuose, kaip pavyzdžiui Studento lankomumo ataskaitoje ir mėnesiniuose lankomumo įrašuose."]
[{"$nulls":3},"2.","Keisti mokyklos kalendorinius metus: Rugpjūčio mėnesį lankomumo lape spustelėkite antraštės viršutiniame dešiniajame pakraštyje esantį suktuko valdiklį, kad naujintumėte mokyklos kalendorinius metus. Šis pakeitimas atnaujins antraštę visuose mėnesiniuose lankomumo įrašuose visoje darbaknygėje. (Atkreipkite dėmesį, kad suktuko valdiklis nebus spausdinamas.)"]
[{"$nulls":3},"3.","(Nebūtina) Modifikuoti spalvas visoje darbaknygėje:  Pirma naršykite į paskutinį lapą, Studentų lankomumo ataskaita ir Peržiūros skirtuke, esančiame Keitimų grupėje, spustelėkite Naikinti lapo apsaugą. Tada Puslapio maketo skirtuke, esančiame Temų grupėje, spustelėkite Spalvos ir pasirinkite kitą temos spalvų rinkinį iš spalvų galerijos. Atlikę savo spalvų keitimus, ar bet kokius kitus temos keitimus, grįžkite į Studentų lankomumo ataskaitos lapą ir Peržiūros skirtuke, esančiame Keitimų grupėje, spustelėkite Apsaugoti lapą, o tada spustelėkite GERAI"]
[{"$nulls":4},"Patarimas: sukurkite pasirinktinių temos spalvų rinkinį, kuris atitiktų jūsų mokyklos spalvas! Norėdami tai padaryti, Puslapio maketo skirtuke, esančiame Temų grupėje, spustelėkite Spalvos o tada šalio spalvų galerijos apačios spustelėkite Kurti naujas temos spalvas. Norėdami sužinoti daugiau apie pasirinktinių spalvų rinkinio kūrimą, žr. šią Žinyno temą: "]
[{"$nulls":4},"Dokumento temos tinkinimas."]
[]
[null,"AŠ PRIDĖJAU SAVO STUDENTUS, KĄ TOLIAU DARYTI?"]
[null,null,"Kai studentų duomenys yra įvesti į „Studentų sąrašą“, galite pradėti sekti jų lankomumą per mokslo metus atlikę šiuos žingsnius:"]
[{"$nulls":3},"1.","Norėdami įtraukti studentą į lankomumo įrašą, spustelėkite langelį, esantį žemiau Studento ID stulpelio ir pasirinkite ID iš sąrašo. Studento vardas ir pavardė automatiškai pasirodys pasirinkus ID. "]
[{"$nulls":4},"Patarimas: Įrašykite duomenų įvedimo žingsnius! Pridėję savo studentus vienam mėnesiui, pasirinkite įvestus studentų ID, nukopijuokite juos, o tada įklijuokite juos Studento ID stulpelyje likusiems mėnesiams. "]
[{"$nulls":3},"2.","Tada įveskite kiekvienos mėnesio dienos jų lankomumo įrašus, naudodamiesi lankomumo tipais, pateiktais Spalvų rakte. Studento lankomumas apskaičiuojamas automatiškai pagal lankomumo tipą kiekvienam studentui sumos stulpelyje. Nedalyvavimų suma kiekvieną dieną automatiškai apskaičiuojama lentelės apačioje sumų eilutėje."]
[]
[null,"KAIP PRIDĖTI DAUGIAU STUDENTŲ Į MĖNESINĮ LANKOMUMO ĮRAŠĄ?"]
[null,null,"Mėnesinio lankomumo įrašų lapai ir studento sąrašas yra „Excel“ lentelės. Norėdami pridėti naujų eilučių prie bet kurios „Excel“ lentelės, padarykite vieną iš šitų:"]
[{"$nulls":3},"● ","Jeigu lentelėje nėra sumos eilutės, pradėkite įvedinėti žemiau lentelės, ir ji automatiškai išsiplės, kai paspausite klavišą ENTER arba TAB."]
[{"$nulls":3},"● ","Perkelkite langelių žymeklį į paskutinį langelį virš sumos eilutės, kaip pav. paskutinio studento langelį „Dienų nedalyvavo“ ir spustelėkite klavišą TAB."]
[{"$nulls":3},"● ","Spustelėkite dešiniuoju klavišu lentelėje ir ant parankinio blokelio meniu, nurodykite Įterpti ir tada Lentelės eilutės viršuje arba Lentelės eilutės apačioje. "]
[{"$nulls":3},"● ","Apatiniame dešiniame lentelės kampe perkelkite pelę ant lentelės dydžio valdiklio ir tempkite žemyn, kad padidintumėte prieinamų lentelės eilučių skaičių."]
[]
[null,"AR GALIU PERŽIŪRĖTI STUDENTŲ LANKOMUMĄ PER VISUS MOKSLO METUS?"]
[null,null,"Paskutinis šios darbaknygės lapas, Studentų lankomumo ataskaita, seka lankomumą nuo metų pradžios. Norėdami pamatyti tam tikro studento ataskaitą, spustelėkite langelyje žemiau Studento ID o tada pasirinkite ID iš išskleidžiamo sąrašo. Informacija apie pasirinktą studentą, kurią anksčiau įvedėte į Studentų sąrašo lapą, bus automatiškai rodoma. Atkreipkite dėmesį, kad pirmą kartą jums naudodamiesi Studentų lankomumo ataskaita, turite įvesti mokyklą, klasę, mokytoją ir auditoriją. ši informacija nesikeis jums pasirinkus kitą studentą. "]

{"sheet":"Studentų sąrašas","index":1,"n_rows":8,"n_cols":19,"rows_kept":8}
["STUDENTŲ SĄRAŠAS"]
[]
[null,"Studento ID","Studento vardas","Studento pavardė","Lytis","Gimimo diena","1 tėvas ar globėjas","1 tėvo/globėjo giminystės ryšys","1 tėvo/globėjo darbo numeris","1 tėvo/globėjo namų numeris","2 tėvas/globėjas","2 tėvo/globėjo giminystės ryšys","2 tėvo/globėjo darbo numeris","2 tėvo/globėjo namų numeris","Kontaktas nelaimės atveju","Kontakto nelaimės atveju giminystės ryšys","Kontakto nelaimės atveju darbu numeris","Kontakto nelaimės atveju namų numeris","Studento vardas ir pavardė"]
[null,"S001","Algis","Gustas","M","1997-03-28","Petras","Stankevičius",1235550134,2345550134,"Juozas Stankevičius","Tėvas",1235550134,2345550134,"Darius Dūda","Senelis",7895550189,7895550134,{"$f":"StudentųSąrašas[[#This Row],[Studento vardas]]&\"\"&StudentųSąrašas[[#This Row],[Studento pavardė]]","v":"AlgisGustas"}]
[null,"S002","Studentas",2,{"$nulls":14},{"$f":"StudentųSąrašas[[#This Row],[Studento vardas]]&\"\"&StudentųSąrašas[[#This Row],[Studento pavardė]]","v":"Studentas2"}]
[null,"S003","Studentas",3,{"$nulls":14},{"$f":"StudentųSąrašas[[#This Row],[Studento vardas]]&\"\"&StudentųSąrašas[[#This Row],[Studento pavardė]]","v":"Studentas3"}]
[null,"S004","Studentas",4,{"$nulls":14},{"$f":"StudentųSąrašas[[#This Row],[Studento vardas]]&\"\"&StudentųSąrašas[[#This Row],[Studento pavardė]]","v":"Studentas4"}]
[null,"S005","Studentas",5,{"$nulls":14},{"$f":"StudentųSąrašas[[#This Row],[Studento vardas]]&\"\"&StudentųSąrašas[[#This Row],[Studento pavardė]]","v":"Studentas5"}]

{"sheet":"Rugpjūtis","index":2,"n_rows":12,"n_cols":39,"rows_kept":12,"merged":[[4,34,4,38]]}
["STUDENTO LANKOMUMO ĮRAŠAS",{"$nulls":36},"Mokslo metai prasideda:",2012]
[]
[null,null,"SPALVŲ RAKTAS ","T","Pavėluota",null,null,"E","Pateisinamai praleista",null,null,"U","Nepateisinamai praleista",null,null,"P","Dalyvauta",null,null,"N","Nėra pamokų"]
[]
[null,{"$f":"DATE(KalendoriniaiMetai,8,1)","v":"2012-08-01"},null,{"$f":"TEXT(WEEKDAY(DATE(KalendoriniaiMetai,8,1),1),\"[$-427]aaa\")","v":"1900"},{"$f":"TEXT(WEEKDAY(DATE(KalendoriniaiMetai,8,2),1),\"[$-427]aaa\")","v":"1900"},{"$f":"TEXT(WEEKDAY(DATE(KalendoriniaiMetai,8,3),1),\"[$-427]aaa\")","v":"1900"},{"$f":"TEXT(WEEKDAY(DATE(KalendoriniaiMetai,8,4),1),\"[$-427]aaa\")","v":"1900"},{"$f":"TEXT(WEEKDAY(DATE(KalendoriniaiMetai,8,5),1),\"[$-427]aaa\")","v":"1900"},{"$f":"TEXT(WEEKDAY(DATE(KalendoriniaiMetai,8,6),1),\"[$-427]aaa\")","v":"1900"},{"$f":"TEXT(WEEKDAY(DATE(KalendoriniaiMetai,8,7),1),\"[$-427]aaa\")","v":"1900"},{"$f":"TEXT(WEEKDAY(DATE(KalendoriniaiMetai,8,8),1),\"[$-427]aaa\")","v":"1900"},{"$f":"TEXT(WEEKDAY(DATE(KalendoriniaiMetai,8,9),1),\"[$-427]aaa\")","v":"1900"},{"$f":"TEXT(WEEKDAY(DATE(KalendoriniaiMetai,8,10),1),\"[$-427]aaa\")","v":"1900"},{"$f":"TEXT(WEEKDAY(DATE(KalendoriniaiMetai,8,11),1),\"[$-427]aaa\")","v":"1900"},{"$f":"TEXT(WEEKDAY(DATE(KalendoriniaiMetai,8,12),1),\"[$-427]aaa\")","v":"1900"},{"$f":"TEXT(WEEKDAY(DATE(KalendoriniaiMetai,8,13),1),\"[$-427]aaa\")","v":"1900"},{"$f":"TEXT(WEEKDAY(DATE(KalendoriniaiMetai,8,14),1),\"[$-427]aaa\")","v":"1900"},{"$f":"TEXT(WEEKDAY(DATE(KalendoriniaiMetai,8,15),1),\"[$-427]aaa\")","v":"1900"},{"$f":"TEXT(WEEKDAY(DATE(KalendoriniaiMetai,8,16),1),\"[$-427]aaa\")","v":"1900"},{"$f":"TEXT(WEEKDAY(DATE(KalendoriniaiMetai,8,17),1),\"[$-427]aaa\")","v":"1900"},{"$f":"TEXT(WEEKDAY(DATE(KalendoriniaiMetai,8,18),1),\"[$-427]aaa\")","v":"1900"},{"$f":"TEXT(WEEKDAY(DATE(KalendoriniaiMetai,8,19),1),\"[$-427]aaa\")","v":"1900"},{"$f":"TEXT(WEEKDAY(DATE(KalendoriniaiMetai,8,20),1),\"[$-427]aaa\")","v":"1900"},{"$f":"TEXT(WEEKDAY(DATE(KalendoriniaiMetai,8,21),1),\"[$-427]aaa\")","v":"1900"},{"$f":"TEXT(WEEKDAY(DATE(KalendoriniaiMetai,8,22),1),\"[$-427]aaa\")","v":"1900"},{"$f":"TEXT(WEEKDAY(DATE(KalendoriniaiMetai,8,23),1),\"[$-427]aaa\")","v":"1900"},{"$f":"TEXT(WEEKDAY(DATE(KalendoriniaiMetai,8,24),1),\"[$-427]aaa\")","v":"1900"},{"$f":"TEXT(WEEKDAY(DATE(KalendoriniaiMetai,8,25),1),\"[$-427]aaa\")","v":"1900"},{"$f":"TEXT(WEEKDAY(DATE(KalendoriniaiMetai,8,26),1),\"[$-427]aaa\")","v":"1900"},{"$f":"TEXT(WEEKDAY(DATE(KalendoriniaiMetai,8,27),1),\"[$-427]aaa\")","v":"1900"},{"$f":"TEXT(WEEKDAY(DATE(KalendoriniaiMetai,8,28),1),\"[$-427]aaa\")","v":"1900"},{"$f":"TEXT(WEEKDAY(DATE(KalendoriniaiMetai,8,29),1),\"[$-427]aaa\")","v":"1900"},{"$f":"TEXT(WEEKDAY(DATE(KalendoriniaiMetai,8,30),1),\"[$-427]aaa\")","v":"1900"},{"$f":"TEXT(WEEKDAY(DATE(KalendoriniaiMetai,8,31),1),\"[$-427]aaa\")","v":"1900"},"Sumos"]
[null,"Studento ID","Studento vardas ir pavardė","1","2","3","4","5","6","7","8","9","10","11","12","13","14","15","16","17","18","19","20","21","22","23","24","25","26","27","28","29","30","31","T","E","U","P","Praleista dienų"]
[null,"S001",{"$f":"IFERROR(VLOOKUP(RugpjūčioLankomumas[[#This Row],[Studento ID]],StudentųSąrašas[],18,FALSE),\"\")","v":"AlgisGustas"},"P","P","T","T","P","N","N","P","P","E","P","P","N","N","P","P","P","P","P","N","N","P","P","P","P","P","N","N","P","P","P",{"$f":"COUNTIF(RugpjūčioLankomumas[[#This Row],[1]:[31]],Kodas1)","v":2},{"$f":"COUNTIF(RugpjūčioLankomumas[[#This Row],[1]:[31]],Kodas2)","v":1},{"$f":"COUNTIF(RugpjūčioLankomumas[[#This Row],[1]:[31]],Kodas3)","v":0},{"$f":"COUNTIF(RugpjūčioLankomumas[[#This Row],[1]:[31]],Kodas4)","v":20},{"$f":"SUM(RugpjūčioLankomumas[[#This Row],[E]:[U]])","v":1}]
[null,"S002",{"$f":"IFERROR(VLOOKUP(RugpjūčioLankomumas[[#This Row],[Studento ID]],StudentųSąrašas[],18,FALSE),\"\")","v":"Studentas2"},"P","U","P","P","P","N","N","P","E","E","E","E","N","N","P","P","P","P","P","N","N","P","P","P","T","T","N","N","P","P","P",{"$f":"COUNTIF(RugpjūčioLankomumas[[#This Row],[1]:[31]],Kodas1)","v":2},{"$f":"COUNTIF(RugpjūčioLankomumas[[#This Row],[1]:[31]],Kodas2)","v":4},{"$f":"COUNTIF(RugpjūčioLankomumas[[#This Row],[1]:[31]],Kodas3)","v":1},{"$f":"COUNTIF(RugpjūčioLankomumas[[#This Row],[1]:[31]],Kodas4)","v":16},{"$f":"SUM(RugpjūčioLankomumas[[#This Row],[E]:[U]])","v":5}]
[null,"S003",{"$f":"IFERROR(VLOOKUP(RugpjūčioLankomumas[[#This Row],[Studento ID]],StudentųSąrašas[],18,FALSE),\"\")","v":"Studentas3"},"P","E","P","P","P","N","N","P","P","U","P","P","N","N","P","P","P","P","P","N","N","P","P","E","E","P","N","N","P","P","P",{"$f":"COUNTIF(RugpjūčioLankomumas[[#This Row],[1]:[31]],Kodas1)","v":0},{"$f":"COUNTIF(RugpjūčioLankomumas[[#This Row],[1]:[31]],Kodas2)","v":3},{"$f":"COUNTIF(RugpjūčioLankomumas[[#This Row],[1]:[31]],Kodas3)","v":1},{"$f":"COUNTIF(RugpjūčioLankomumas[[#This Row],[1]:[31]],Kodas4)","v":19},{"$f":"SUM(RugpjūčioLankomumas[[#This Row],[E]:[U]])","v":4}]
[null,"S004",{"$f":"IFERROR(VLOOKUP(RugpjūčioLankomumas[[#This Row],[Studento ID]],StudentųSąrašas[],18,FALSE),\"\")","v":"Studentas4"},"P","P","P","P","P","N","N","P","P","P","P","P","N","N","P","P","P","P","P","N","N","P","U","P","P","E","N","N","P","E","P",{"$f":"COUNTIF(RugpjūčioLankomumas[[#This Row],[1]:[31]],Kodas1)","v":0},{"$f":"COUNTIF(RugpjūčioLankomumas[[#This Row],[1]:[31]],Kodas2)","v":2},{"$f":"COUNTIF(RugpjūčioLankomumas[[#This Row],[1]:[31]],Kodas3)","v":1},{"$f":"COUNTIF(RugpjūčioLankomumas[[#This Row],[1]:[31]],Kodas4)","v":20},{"$f":"SUM(RugpjūčioLankomumas[[#This Row],[E]:[U]])","v":3}]
[null,"S005",{"$f":"IFERROR(VLOOKUP(RugpjūčioLankomumas[[#This Row],[Studento ID]],StudentųSąrašas[],18,FALSE),\"\")","v":"Studentas5"},"P","P","P","P","P","N","N","P","P","P","P","P","N","N","P","P","P","P","P","N","N","P","P","P","P","P","N","N","P","P","P",{"$f":"COUNTIF(RugpjūčioLankomumas[[#This Row],[1]:[31]],Kodas1)","v":0},{"$f":"COUNTIF(RugpjūčioLankomumas[[#This Row],[1]:[31]],Kodas2)","v":0},{"$f":"COUNTIF(RugpjūčioLankomumas[[#This Row],[1]:[31]],Kodas3)","v":0},{"$f":"COUNTIF(RugpjūčioLankomumas[[#This Row],[1]:[31]],Kodas4)","v":23},{"$f":"SUM(RugpjūčioLankomumas[[#This Row],[E]:[U]])","v":0}]
[null,null,"Iš viso praleista dienų",{"$f":"COUNTIF(RugpjūčioLankomumas[1],\"U\")+COUNTIF(RugpjūčioLankomumas[1],\"E\")","v":0},{"$f":"COUNTIF(RugpjūčioLankomumas[2],\"U\")+COUNTIF(RugpjūčioLankomumas[2],\"E\")","v":2},{"$f":"COUNTIF(RugpjūčioLankomumas[3],\"U\")+COUNTIF(RugpjūčioLankomumas[3],\"E\")","v":0},{"$f":"COUNTIF(RugpjūčioLankomumas[4],\"U\")+COUNTIF(RugpjūčioLankomumas[4],\"E\")","v":0},{"$f":"COUNTIF(RugpjūčioLankomumas[5],\"U\")+COUNTIF(RugpjūčioLankomumas[5],\"E\")","v":0},{"$f":"COUNTIF(RugpjūčioLankomumas[6],\"U\")+COUNTIF(RugpjūčioLankomumas[6],\"E\")","v":0},{"$f":"COUNTIF(RugpjūčioLankomumas[7],\"U\")+COUNTIF(RugpjūčioLankomumas[7],\"E\")","v":0},{"$f":"COUNTIF(RugpjūčioLankomumas[8],\"U\")+COUNTIF(RugpjūčioLankomumas[8],\"E\")","v":0},{"$f":"COUNTIF(RugpjūčioLankomumas[9],\"U\")+COUNTIF(RugpjūčioLankomumas[9],\"E\")","v":1},{"$f":"COUNTIF(RugpjūčioLankomumas[10],\"U\")+COUNTIF(RugpjūčioLankomumas[10],\"E\")","v":3},{"$f":"COUNTIF(RugpjūčioLankomumas[11],\"U\")+COUNTIF(RugpjūčioLankomumas[11],\"E\")","v":1},{"$f":"COUNTIF(RugpjūčioLankomumas[12],\"U\")+COUNTIF(RugpjūčioLankomumas[12],\"E\")","v":1},{"$f":"COUNTIF(RugpjūčioLankomumas[13],\"U\")+COUNTIF(RugpjūčioLankomumas[13],\"E\")","v":0},{"$f":"COUNTIF(RugpjūčioLankomumas[14],\"U\")+COUNTIF(RugpjūčioLankomumas[14],\"E\")","v":0},{"$f":"COUNTIF(RugpjūčioLankomumas[15],\"U\")+COUNTIF(RugpjūčioLankomumas[15],\"E\")","v":0},{"$f":"COUNTIF(RugpjūčioLankomumas[16],\"U\")+COUNTIF(RugpjūčioLankomumas[16],\"E\")","v":0},{"$f":"COUNTIF(RugpjūčioLankomumas[17],\"U\")+COUNTIF(RugpjūčioLankomumas[17],\"E\")","v":0},{"$f":"COUNTIF(RugpjūčioLankomumas[18],\"U\")+COUNTIF(RugpjūčioLankomumas[18],\"E\")","v":0},{"$f":"COUNTIF(RugpjūčioLankomumas[19],\"U\")+COUNTIF(RugpjūčioLankomumas[19],\"E\")","v":0},{"$f":"COUNTIF(RugpjūčioLankomumas[20],\"U\")+COUNTIF(RugpjūčioLankomumas[20],\"E\")","v":0},{"$f":"COUNTIF(RugpjūčioLankomumas[21],\"U\")+COUNTIF(RugpjūčioLankomumas[21],\"E\")","v":0},{"$f":"COUNTIF(RugpjūčioLankomumas[22],\"U\")+COUNTIF(RugpjūčioLankomumas[22],\"E\")","v":0},{"$f":"COUNTIF(RugpjūčioLankomumas[23],\"U\")+COUNTIF(RugpjūčioLankomumas[23],\"E\")","v":1},{"$f":"COUNTIF(RugpjūčioLankomumas[24],\"U\")+COUNTIF(RugpjūčioLankomumas[24],\"E\")","v":1},{"$f":"COUNTIF(RugpjūčioLankomumas[25],\"U\")+COUNTIF(RugpjūčioLankomumas[25],\"E\")","v":1},{"$f":"COUNTIF(RugpjūčioLankomumas[26],\"U\")+COUNTIF(RugpjūčioLankomumas[26],\"E\")","v":1},{"$f":"COUNTIF(RugpjūčioLankomumas[27],\"U\")+COUNTIF(RugpjūčioLankomumas[27],\"E\")","v":0},{"$f":"COUNTIF(RugpjūčioLankomumas[28],\"U\")+COUNTIF(RugpjūčioLankomumas[28],\"E\")","v":0},{"$f":"COUNTIF(RugpjūčioLankomumas[29],\"U\")+COUNTIF(RugpjūčioLankomumas[29],\"E\")","v":0},{"$f":"COUNTIF(RugpjūčioLankomumas[30],\"U\")+COUNTIF(RugpjūčioLankomumas[30],\"E\")","v":1},{"$f":"COUNTIF(RugpjūčioLankomumas[31],\"U\")+COUNTIF(RugpjūčioLankomumas[31],\"E\")","v":0},{"$f":"SUBTOTAL(109,RugpjūčioLankomumas[T])","v":4},{"$f":"SUBTOTAL(109,RugpjūčioLankomumas[E])","v":10},{"$f":"SUBTOTAL(109,RugpjūčioLankomumas[U])","v":3},{"$f":"SUBTOTAL(109,RugpjūčioLankomumas[P])","v":98},{"$f":"SUBTOTAL(109,RugpjūčioLankomumas[Praleista dienų])","v":13}]

{"sheet":"Rugsėjis","index":3,"n_rows":12,"n_cols":39,"rows_kept":12,"merged":[[4,34,4,38]]}
["STUDENTO LANKOMUMO ĮRAŠAS",{"$nulls":36},"Mokslo metai prasideda:",{"$f":"KalendoriniaiMetai","v":2012}]
[]
[null,null,{"$f":"SpalvinioRaktoTekstas","v":"SPALVŲ RAKTAS "},{"$f":"Kodas1","v":"T"},{"$f":"Kodo1Tekstas","v":"Pavėluota"},null,null,{"$f":"Kodas2","v":"E"},{"$f":"Kodo2Tekstas","v":"Pateisinamai praleista"},null,null,{"$f":"Kodas3","v":"U"},{"$f":"Kodo3Tekstas","v":"Nepateisinamai praleista"},null,null,{"$f":"Kodas4","v":"P"},{"$f":"Kodo4Tekstas","v":"Dalyvauta"},null,null,{"$f":"Kodas5","v":"N"},{"$f":"Kodo5Tekstas","v":"Nėra pamokų"}]
[]
[null,{"$f":"DATE(KalendoriniaiMetai,9,1)","v":"2012-09-01"},null,{"$f":"TEXT(WEEKDAY(DATE(KalendoriniaiMetai,9,1),1),\"[$-427]aaa\")","v":"1900"},{"$f":"TEXT(WEEKDAY(DATE(KalendoriniaiMetai,9,2),1),\"[$-427]aaa\")","v":"1900"},{"$f":"TEXT(WEEKDAY(DATE(KalendoriniaiMetai,9,3),1),\"[$-427]aaa\")","v":"1900"},{"$f":"TEXT(WEEKDAY(DATE(KalendoriniaiMetai,9,4),1),\"[$-427]aaa\")","v":"1900"},{"$f":"TEXT(WEEKDAY(DATE(KalendoriniaiMetai,9,5),1),\"[$-427]aaa\")","v":"1900"},{"$f":"TEXT(WEEKDAY(DATE(KalendoriniaiMetai,9,6),1),\"[$-427]aaa\")","v":"1900"},{"$f":"TEXT(WEEKDAY(DATE(KalendoriniaiMetai,9,7),1),\"[$-427]aaa\")","v":"1900"},{"$f":"TEXT(WEEKDAY(DATE(KalendoriniaiMetai,9,8),1),\"[$-427]aaa\")","v":"1900"},{"$f":"TEXT(WEEKDAY(DATE(KalendoriniaiMetai,9,9),1),\"[$-427]aaa\")","v":"1900"},{"$f":"TEXT(WEEKDAY(DATE(KalendoriniaiMetai,9,10),1),\"[$-427]aaa\")","v":"1900"},{"$f":"TEXT(WEEKDAY(DATE(KalendoriniaiMetai,9,11),1),\"[$-427]aaa\")","v":"1900"},{"$f":"TEXT(WEEKDAY(DATE(KalendoriniaiMetai,9,12),1),\"[$-427]aaa\")","v":"1900"},{"$f":"TEXT(WEEKDAY(DATE(KalendoriniaiMetai,9,13),1),\"[$-427]aaa\")","v":"1900"},{"$f":"TEXT(WEEKDAY(DATE(KalendoriniaiMetai,9,14),1),\"[$-427]aaa\")","v":"1900"},{"$f":"TEXT(WEEKDAY(DATE(KalendoriniaiMetai,9,15),1),\"[$-427]aaa\")","v":"1900"},{"$f":"TEXT(WEEKDAY(DATE(KalendoriniaiMetai,9,16),1),\"[$-427]aaa\")","v":"1900"},{"$f":"TEXT(WEEKDAY(DATE(KalendoriniaiMetai,9,17),1),\"[$-427]aaa\")","v":"1900"},{"$f":"TEXT(WEEKDAY(DATE(KalendoriniaiMetai,9,18),1),\"[$-427]aaa\")","v":"1900"},{"$f":"TEXT(WEEKDAY(DATE(KalendoriniaiMetai,9,19),1),\"[$-427]aaa\")","v":"1900"},{"$f":"TEXT(WEEKDAY(DATE(KalendoriniaiMetai,9,20),1),\"[$-427]aaa\")","v":"1900"},{"$f":"TEXT(WEEKDAY(DATE(KalendoriniaiMetai,9,21),1),\"[$-427]aaa\")","v":"1900"},{"$f":"TEXT(WEEKDAY(DATE(KalendoriniaiMetai,9,22),1),\"[$-427]aaa\")","v":"1900"},{"$f":"TEXT(WEEKDAY(DATE(KalendoriniaiMetai,9,23),1),\"[$-427]aaa\")","v":"1900"},{"$f":"TEXT(WEEKDAY(DATE(KalendoriniaiMetai,9,24),1),\"[$-427]aaa\")","v":"1900"},{"$f":"TEXT(WEEKDAY(DATE(KalendoriniaiMetai,9,25),1),\"[$-427]aaa\")","v":"1900"},{"$f":"TEXT(WEEKDAY(DATE(KalendoriniaiMetai,9,26),1),\"[$-427]aaa\")","v":"1900"},{"$f":"TEXT(WEEKDAY(DATE(KalendoriniaiMetai,9,27),1),\"[$-427]aaa\")","v":"1900"},{"$f":"TEXT(WEEKDAY(DATE(KalendoriniaiMetai,9,28),1),\"[$-427]aaa\")","v":"1900"},{"$f":"TEXT(WEEKDAY(DATE(KalendoriniaiMetai,9,29),1),\"[$-427]aaa\")","v":"1900"},{"$f":"TEXT(WEEKDAY(DATE(KalendoriniaiMetai,9,30),1),\"[$-427]aaa\")","v":"1900"},null,"Sumos"]
[null,"Studento ID","Studento vardas ir pavardė","1","2","3","4","5","6","7","8","9","10","11","12","13","14","15","16","17","18","19","20","21","22","23","24","25","26","27","28","29","30"," ","T","E","U","P","Praleista dienų"]
[null,null,{"$f":"IFERROR(VLOOKUP(RugsėjoLankomumas[[#This Row],[Studento ID]],StudentųSąrašas[],18,FALSE),\"\")","v":""},{"$nulls":31},{"$f":"COUNTIF(RugsėjoLankomumas[[#This Row],[1]:[ ]],Kodas1)","v":0},{"$f":"COUNTIF(RugsėjoLankomumas[[#This Row],[1]:[ ]],Kodas2)","v":0},{"$f":"COUNTIF(RugsėjoLankomumas[[#This Row],[1]:[ ]],Kodas3)","v":0},{"$f":"COUNTIF(RugsėjoLankomumas[[#This Row],[1]:[ ]],Kodas4)","v":0},{"$f":"SUM(RugsėjoLankomumas[[#This Row],[E]:[U]])","v":0}]
[null,null,{"$f":"IFERROR(VLOOKUP(RugsėjoLankomumas[[#This Row],[Studento ID]],StudentųSąrašas[],18,FALSE),\"\")","v":""},{"$nulls":31},{"$f":"COUNTIF(RugsėjoLankomumas[[#This Row],[1]:[ ]],Kodas1)","v":0},{"$f":"COUNTIF(RugsėjoLankomumas[[#This Row],[1]:[ ]],Kodas2)","v":0},{"$f":"COUNTIF(RugsėjoLankomumas[[#This Row],[1]:[ ]],Kodas3)","v":0},{"$f":"COUNTIF(RugsėjoLankomumas[[#This Row],[1]:[ ]],Kodas4)","v":0},{"$f":"SUM(RugsėjoLankomumas[[#This Row],[E]:[U]])","v":0}]
[null,null,{"$f":"IFERROR(VLOOKUP(RugsėjoLankomumas[[#This Row],[Studento ID]],StudentųSąrašas[],18,FALSE),\"\")","v":""},{"$nulls":31},{"$f":"COUNTIF(RugsėjoLankomumas[[#This Row],[1]:[ ]],Kodas1)","v":0},{"$f":"COUNTIF(RugsėjoLankomumas[[#This Row],[1]:[ ]],Kodas2)","v":0},{"$f":"COUNTIF(RugsėjoLankomumas[[#This Row],[1]:[ ]],Kodas3)","v":0},{"$f":"COUNTIF(RugsėjoLankomumas[[#This Row],[1]:[ ]],Kodas4)","v":0},{"$f":"SUM(RugsėjoLankomumas[[#This Row],[E]:[U]])","v":0}]
[null,null,{"$f":"IFERROR(VLOOKUP(RugsėjoLankomumas[[#This Row],[Studento ID]],StudentųSąrašas[],18,FALSE),\"\")","v":""},{"$nulls":31},{"$f":"COUNTIF(RugsėjoLankomumas[[#This Row],[1]:[ ]],Kodas1)","v":0},{"$f":"COUNTIF(RugsėjoLankomumas[[#This Row],[1]:[ ]],Kodas2)","v":0},{"$f":"COUNTIF(RugsėjoLankomumas[[#This Row],[1]:[ ]],Kodas3)","v":0},{"$f":"COUNTIF(RugsėjoLankomumas[[#This Row],[1]:[ ]],Kodas4)","v":0},{"$f":"SUM(RugsėjoLankomumas[[#This Row],[E]:[U]])","v":0}]
[null,null,{"$f":"IFERROR(VLOOKUP(RugsėjoLankomumas[[#This Row],[Studento ID]],StudentųSąrašas[],18,FALSE),\"\")","v":""},{"$nulls":31},{"$f":"COUNTIF(RugsėjoLankomumas[[#This Row],[1]:[ ]],Kodas1)","v":0},{"$f":"COUNTIF(RugsėjoLankomumas[[#This Row],[1]:[ ]],Kodas2)","v":0},{"$f":"COUNTIF(RugsėjoLankomumas[[#This Row],[1]:[ ]],Kodas3)","v":0},{"$f":"COUNTIF(RugsėjoLankomumas[[#This Row],[1]:[ ]],Kodas4)","v":0},{"$f":"SUM(RugsėjoLankomumas[[#This Row],[E]:[U]])","v":0}]
[null,null,"Iš viso praleista dienų",{"$f":"COUNTIF(RugsėjoLankomumas[21],\"U\")+COUNTIF(RugsėjoLankomumas[21],\"E\")","v":0},{"$f":"COUNTIF(RugsėjoLankomumas[22],\"U\")+COUNTIF(RugsėjoLankomumas[22],\"E\")","v":0},{"$f":"COUNTIF(RugsėjoLankomumas[23],\"U\")+COUNTIF(RugsėjoLankomumas[23],\"E\")","v":0},{"$f":"COUNTIF(RugsėjoLankomumas[24],\"U\")+COUNTIF(RugsėjoLankomumas[24],\"E\")","v":0},{"$f":"COUNTIF(RugsėjoLankomumas[25],\"U\")+COUNTIF(RugsėjoLankomumas[25],\"E\")","v":0},{"$f":"COUNTIF(RugsėjoLankomumas[26],\"U\")+COUNTIF(RugsėjoLankomumas[26],\"E\")","v":0},{"$f":"COUNTIF(RugsėjoLankomumas[27],\"U\")+COUNTIF(RugsėjoLankomumas[27],\"E\")","v":0},{"$f":"COUNTIF(RugsėjoLankomumas[28],\"U\")+COUNTIF(RugsėjoLankomumas[28],\"E\")","v":0},{"$f":"COUNTIF(RugsėjoLankomumas[29],\"U\")+COUNTIF(RugsėjoLankomumas[29],\"E\")","v":0},{"$f":"COUNTIF(RugsėjoLankomumas[30],\"U\")+COUNTIF(RugsėjoLankomumas[30],\"E\")","v":0},{"$f":"COUNTIF(RugsėjoLankomumas[[ ]],\"U\")+COUNTIF(RugsėjoLankomumas[[ ]],\"E\")","v":0},{"$f":"COUNTIF(RugsėjoLankomumas[T],\"U\")+COUNTIF(RugsėjoLankomumas[T],\"E\")","v":0},{"$f":"COUNTIF(RugsėjoLankomumas[E],\"U\")+COUNTIF(RugsėjoLankomumas[E],\"E\")","v":0},{"$f":"COUNTIF(RugsėjoLankomumas[U],\"U\")+COUNTIF(RugsėjoLankomumas[U],\"E\")","v":0},{"$f":"COUNTIF(RugsėjoLankomumas[P],\"U\")+COUNTIF(RugsėjoLankomumas[P],\"E\")","v":0},{"$f":"COUNTIF(RugsėjoLankomumas[Praleista dienų],\"U\")+COUNTIF(RugsėjoLankomumas[Praleista dienų],\"E\")","v":0},{"$f":"COUNTIF(RugsėjoLankomumas[Studento ID],\"U\")+COUNTIF(RugsėjoLankomumas[Studento ID],\"E\")","v":0},{"$f":"COUNTIF(RugsėjoLankomumas[Studento vardas ir pavardė],\"U\")+COUNTIF(RugsėjoLankomumas[Studento vardas ir pavardė],\"E\")","v":0},{"$f":"COUNTIF(RugsėjoLankomumas[1],\"U\")+COUNTIF(RugsėjoLankomumas[1],\"E\")","v":0},{"$f":"COUNTIF(RugsėjoLankomumas[2],\"U\")+COUNTIF(RugsėjoLankomumas[2],\"E\")","v":0},{"$f":"COUNTIF(RugsėjoLankomumas[3],\"U\")+COUNTIF(RugsėjoLankomumas[3],\"E\")","v":0},{"$f":"COUNTIF(RugsėjoLankomumas[4],\"U\")+COUNTIF(RugsėjoLankomumas[4],\"E\")","v":0},{"$f":"COUNTIF(RugsėjoLankomumas[5],\"U\")+COUNTIF(RugsėjoLankomumas[5],\"E\")","v":0},{"$f":"COUNTIF(RugsėjoLankomumas[6],\"U\")+COUNTIF(RugsėjoLankomumas[6],\"E\")","v":0},{"$f":"COUNTIF(RugsėjoLankomumas[7],\"U\")+COUNTIF(RugsėjoLankomumas[7],\"E\")","v":0},{"$f":"COUNTIF(RugsėjoLankomumas[8],\"U\")+COUNTIF(RugsėjoLankomumas[8],\"E\")","v":0},{"$f":"COUNTIF(RugsėjoLankomumas[9],\"U\")+COUNTIF(RugsėjoLankomumas[9],\"E\")","v":0},{"$f":"COUNTIF(RugsėjoLankomumas[10],\"U\")+COUNTIF(RugsėjoLankomumas[10],\"E\")","v":0},{"$f":"COUNTIF(RugsėjoLankomumas[11],\"U\")+COUNTIF(RugsėjoLankomumas[11],\"E\")","v":0},null,null,{"$f":"SUBTOTAL(109,RugsėjoLankomumas[T])","v":0},{"$f":"SUBTOTAL(109,RugsėjoLankomumas[E])","v":0},{"$f":"SUBTOTAL(109,RugsėjoLankomumas[U])","v":0},{"$f":"SUBTOTAL(109,RugsėjoLankomumas[P])","v":0},{"$f":"SUBTOTAL(109,RugsėjoLankomumas[Praleista dienų])","v":0}]

{"sheet":"Spalis","index":4,"n_rows":13,"n_cols":39,"rows_kept":13,"merged":[[4,34,4,38]]}
["STUDENTO LANKOMUMO ĮRAŠAS",{"$nulls":36},"Mokslo metai prasideda:",{"$f":"KalendoriniaiMetai","v":2012}]
[]
[null,null,{"$f":"SpalvinioRaktoTekstas","v":"SPALVŲ RAKTAS "},{"$f":"Kodas1","v":"T"},{"$f":"Kodo1Tekstas","v":"Pavėluota"},null,null,{"$f":"Kodas2","v":"E"},{"$f":"Kodo2Tekstas","v":"Pateisinamai praleista"},null,null,{"$f":"Kodas3","v":"U"},{"$f":"Kodo3Tekstas","v":"Nepateisinamai praleista"},null,null,{"$f":"Kodas4","v":"P"},{"$f":"Kodo4Tekstas","v":"Dalyvauta"},null,null,{"$f":"Kodas5","v":"N"},{"$f":"Kodo5Tekstas","v":"Nėra pamokų"}]
[]
[null,{"$f":"DATE(KalendoriniaiMetai,10,1)","v":"2012-10-01"},null,{"$f":"TEXT(WEEKDAY(DATE(KalendoriniaiMetai,10,1),1),\"[$-427]aaa\")","v":"1900"},{"$f":"TEXT(WEEKDAY(DATE(KalendoriniaiMetai,10,2),1),\"[$-427]aaa\")","v":"1900"},{"$f":"TEXT(WEEKDAY(DATE(KalendoriniaiMetai,10,3),1),\"[$-427]aaa\")","v":"1900"},{"$f":"TEXT(WEEKDAY(DATE(KalendoriniaiMetai,10,4),1),\"[$-427]aaa\")","v":"1900"},{"$f":"TEXT(WEEKDAY(DATE(KalendoriniaiMetai,10,5),1),\"[$-427]aaa\")","v":"1900"},{"$f":"TEXT(WEEKDAY(DATE(KalendoriniaiMetai,10,6),1),\"[$-427]aaa\")","v":"1900"},{"$f":"TEXT(WEEKDAY(DATE(KalendoriniaiMetai,10,7),1),\"[$-427]aaa\")","v":"1900"},{"$f":"TEXT(WEEKDAY(DATE(KalendoriniaiMetai,10,8),1),\"[$-427]aaa\")","v":"1900"},{"$f":"TEXT(WEEKDAY(DATE(KalendoriniaiMetai,10,9),1),\"[$-427]aaa\")","v":"1900"},{"$f":"TEXT(WEEKDAY(DATE(KalendoriniaiMetai,10,10),1),\"[$-427]aaa\")","v":"1900"},{"$f":"TEXT(WEEKDAY(DATE(KalendoriniaiMetai,10,11),1),\"[$-427]aaa\")","v":"1900"},{"$f":"TEXT(WEEKDAY(DATE(KalendoriniaiMetai,10,12),1),\"[$-427]aaa\")","v":"1900"},{"$f":"TEXT(WEEKDAY(DATE(KalendoriniaiMetai,10,13),1),\"[$-427]aaa\")","v":"1900"},{"$f":"TEXT(WEEKDAY(DATE(KalendoriniaiMetai,10,14),1),\"[$-427]aaa\")","v":"1900"},{"$f":"TEXT(WEEKDAY(DATE(KalendoriniaiMetai,10,15),1),\"[$-427]aaa\")","v":"1900"},{"$f":"TEXT(WEEKDAY(DATE(KalendoriniaiMetai,10,16),1),\"[$-427]aaa\")","v":"1900"},{"$f":"TEXT(WEEKDAY(DATE(KalendoriniaiMetai,10,17),1),\"[$-427]aaa\")","v":"1900"},{"$f":"TEXT(WEEKDAY(DATE(KalendoriniaiMetai,10,18),1),\"[$-427]aaa\")","v":"1900"},{"$f":"TEXT(WEEKDAY(DATE(KalendoriniaiMetai,10,19),1),\"[$-427]aaa\")","v":"1900"},{"$f":"TEXT(WEEKDAY(DATE(KalendoriniaiMetai,10,20),1),\"[$-427]aaa\")","v":"1900"},{"$f":"TEXT(WEEKDAY(DATE(KalendoriniaiMetai,10,21),1),\"[$-427]aaa\")","v":"1900"},{"$f":"TEXT(WEEKDAY(DATE(KalendoriniaiMetai,10,22),1),\"[$-427]aaa\")","v":"1900"},{"$f":"TEXT(WEEKDAY(DATE(KalendoriniaiMetai,10,23),1),\"[$-427]aaa\")","v":"1900"},{"$f":"TEXT(WEEKDAY(DATE(KalendoriniaiMetai,10,24),1),\"[$-427]aaa\")","v":"1900"},{"$f":"TEXT(WEEKDAY(DATE(KalendoriniaiMetai,10,25),1),\"[$-427]aaa\")","v":"1900"},{"$f":"TEXT(WEEKDAY(DATE(KalendoriniaiMetai,10,26),1),\"[$-427]aaa\")","v":"1900"},{"$f":"TEXT(WEEKDAY(DATE(KalendoriniaiMetai,10,27),1),\"[$-427]aaa\")","v":"1900"},{"$f":"TEXT(WEEKDAY(DATE(KalendoriniaiMetai,10,28),1),\"[$-427]aaa\")","v":"1900"},{"$f":"TEXT(WEEKDAY(DATE(KalendoriniaiMetai,10,29),1),\"[$-427]aaa\")","v":"1900"},{"$f":"TEXT(WEEKDAY(DATE(KalendoriniaiMetai,10,30),1),\"[$-427]aaa\")","v":"1900"},{"$f":"TEXT(WEEKDAY(DATE(KalendoriniaiMetai,10,31),1),\"[$-427]aaa\")","v":"1900"},"Sumos"]
[null,"Studento ID","Studento vardas ir pavardė","1","2","3","4","5","6","7","8","9","10","11","12","13","14","15","16","17","18","19","20","21","22","23","24","25","26","27","28","29","30","31","T","E","U","P","Praleista dienų"]
[null,null,{"$f":"IFERROR(VLOOKUP(#REF!,StudentųSąrašas[],18,FALSE),\"\")","v":""},{"$nulls":31},{"$f":"COUNTIF(SpalioLankomumas[[#This Row],[1]:[31]],Kodas1)","v":0},{"$f":"COUNTIF(SpalioLankomumas[[#This Row],[1]:[31]],Kodas2)","v":0},{"$f":"COUNTIF(SpalioLankomumas[[#This Row],[1]:[31]],Kodas3)","v":0},{"$f":"COUNTIF(SpalioLankomumas[[#This Row],[1]:[31]],Kodas4)","v":0},{"$f":"SUM(SpalioLankomumas[[#This Row],[E]:[U]])","v":0}]
[null,null,{"$f":"IFERROR(VLOOKUP(#REF!,StudentųSąrašas[],18,FALSE),\"\")","v":""},{"$nulls":31},{"$f":"COUNTIF(SpalioLankomumas[[#This Row],[1]:[31]],Kodas1)","v":0},{"$f":"COUNTIF(SpalioLankomumas[[#This Row],[1]:[31]],Kodas2)","v":0},{"$f":"COUNTIF(SpalioLankomumas[[#This Row],[1]:[31]],Kodas3)","v":0},{"$f":"COUNTIF(SpalioLankomumas[[#This Row],[1]:[31]],Kodas4)","v":0},{"$f":"SUM(SpalioLankomumas[[#This Row],[E]:[U]])","v":0}]
[null,null,{"$f":"IFERROR(VLOOKUP(#REF!,StudentųSąrašas[],18,FALSE),\"\")","v":""},{"$nulls":31},{"$f":"COUNTIF(SpalioLankomumas[[#This Row],[1]:[31]],Kodas1)","v":0},{"$f":"COUNTIF(SpalioLankomumas[[#This Row],[1]:[31]],Kodas2)","v":0},{"$f":"COUNTIF(SpalioLankomumas[[#This Row],[1]:[31]],Kodas3)","v":0},{"$f":"COUNTIF(SpalioLankomumas[[#This Row],[1]:[31]],Kodas4)","v":0},{"$f":"SUM(SpalioLankomumas[[#This Row],[E]:[U]])","v":0}]
[null,null,{"$f":"IFERROR(VLOOKUP(#REF!,StudentųSąrašas[],18,FALSE),\"\")","v":""},{"$nulls":31},{"$f":"COUNTIF(SpalioLankomumas[[#This Row],[1]:[31]],Kodas1)","v":0},{"$f":"COUNTIF(SpalioLankomumas[[#This Row],[1]:[31]],Kodas2)","v":0},{"$f":"COUNTIF(SpalioLankomumas[[#This Row],[1]:[31]],Kodas3)","v":0},{"$f":"COUNTIF(SpalioLankomumas[[#This Row],[1]:[31]],Kodas4)","v":0},{"$f":"SUM(SpalioLankomumas[[#This Row],[E]:[U]])","v":0}]
[null,null,{"$f":"IFERROR(VLOOKUP(#REF!,StudentųSąrašas[],18,FALSE),\"\")","v":""},{"$nulls":31},{"$f":"COUNTIF(SpalioLankomumas[[#This Row],[1]:[31]],Kodas1)","v":0},{"$f":"COUNTIF(SpalioLankomumas[[#This Row],[1]:[31]],Kodas2)","v":0},{"$f":"COUNTIF(SpalioLankomumas[[#This Row],[1]:[31]],Kodas3)","v":0},{"$f":"COUNTIF(SpalioLankomumas[[#This Row],[1]:[31]],Kodas4)","v":0},{"$f":"SUM(SpalioLankomumas[[#This Row],[E]:[U]])","v":0}]
[null,null,"Iš viso praleista dienų",{"$f":"COUNTIF(SpalioLankomumas[21],\"U\")+COUNTIF(SpalioLankomumas[21],\"E\")","v":0},{"$f":"COUNTIF(SpalioLankomumas[22],\"U\")+COUNTIF(SpalioLankomumas[22],\"E\")","v":0},{"$f":"COUNTIF(SpalioLankomumas[23],\"U\")+COUNTIF(SpalioLankomumas[23],\"E\")","v":0},{"$f":"COUNTIF(SpalioLankomumas[24],\"U\")+COUNTIF(SpalioLankomumas[24],\"E\")","v":0},{"$f":"COUNTIF(SpalioLankomumas[25],\"U\")+COUNTIF(SpalioLankomumas[25],\"E\")","v":0},{"$f":"COUNTIF(SpalioLankomumas[26],\"U\")+COUNTIF(SpalioLankomumas[26],\"E\")","v":0},{"$f":"COUNTIF(SpalioLankomumas[27],\"U\")+COUNTIF(SpalioLankomumas[27],\"E\")","v":0},{"$f":"COUNTIF(SpalioLankomumas[28],\"U\")+COUNTIF(SpalioLankomumas[28],\"E\")","v":0},{"$f":"COUNTIF(SpalioLankomumas[29],\"U\")+COUNTIF(SpalioLankomumas[29],\"E\")","v":0},{"$f":"COUNTIF(SpalioLankomumas[30],\"U\")+COUNTIF(SpalioLankomumas[30],\"E\")","v":0},{"$f":"COUNTIF(SpalioLankomumas[31],\"U\")+COUNTIF(SpalioLankomumas[31],\"E\")","v":0},{"$f":"COUNTIF(SpalioLankomumas[T],\"U\")+COUNTIF(SpalioLankomumas[T],\"E\")","v":0},{"$f":"COUNTIF(SpalioLankomumas[E],\"U\")+COUNTIF(SpalioLankomumas[E],\"E\")","v":0},{"$f":"COUNTIF(SpalioLankomumas[U],\"U\")+COUNTIF(SpalioLankomumas[U],\"E\")","v":0},{"$f":"COUNTIF(SpalioLankomumas[P],\"U\")+COUNTIF(SpalioLankomumas[P],\"E\")","v":0},{"$f":"COUNTIF(SpalioLankomumas[Praleista dienų],\"U\")+COUNTIF(SpalioLankomumas[Praleista dienų],\"E\")","v":0},{"$f":"COUNTIF(SpalioLankomumas[Studento ID],\"U\")+COUNTIF(SpalioLankomumas[Studento ID],\"E\")","v":0},{"$f":"COUNTIF(SpalioLankomumas[Studento vardas ir pavardė],\"U\")+COUNTIF(SpalioLankomumas[Studento vardas ir pavardė],\"E\")","v":0},{"$f":"COUNTIF(SpalioLankomumas[1],\"U\")+COUNTIF(SpalioLankomumas[1],\"E\")","v":0},{"$f":"COUNTIF(SpalioLankomumas[2],\"U\")+COUNTIF(SpalioLankomumas[2],\"E\")","v":0},{"$f":"COUNTIF(SpalioLankomumas[3],\"U\")+COUNTIF(SpalioLankomumas[3],\"E\")","v":0},{"$f":"COUNTIF(SpalioLankomumas[4],\"U\")+COUNTIF(SpalioLankomumas[4],\"E\")","v":0},{"$f":"COUNTIF(SpalioLankomumas[5],\"U\")+COUNTIF(SpalioLankomumas[5],\"E\")","v":0},{"$f":"COUNTIF(SpalioLankomumas[6],\"U\")+COUNTIF(SpalioLankomumas[6],\"E\")","v":0},{"$f":"COUNTIF(SpalioLankomumas[7],\"U\")+COUNTIF(SpalioLankomumas[7],\"E\")","v":0},{"$f":"COUNTIF(SpalioLankomumas[8],\"U\")+COUNTIF(SpalioLankomumas[8],\"E\")","v":0},{"$f":"COUNTIF(SpalioLankomumas[9],\"U\")+COUNTIF(SpalioLankomumas[9],\"E\")","v":0},{"$f":"COUNTIF(SpalioLankomumas[10],\"U\")+COUNTIF(SpalioLankomumas[10],\"E\")","v":0},{"$f":"COUNTIF(SpalioLankomumas[11],\"U\")+COUNTIF(SpalioLankomumas[11],\"E\")","v":0},null,null,{"$f":"SUBTOTAL(109,SpalioLankomumas[T])","v":0},{"$f":"SUBTOTAL(109,SpalioLankomumas[E])","v":0},{"$f":"SUBTOTAL(109,SpalioLankomumas[U])","v":0},{"$f":"SUBTOTAL(109,SpalioLankomumas[P])","v":0},{"$f":"SUBTOTAL(109,SpalioLankomumas[Praleista dienų])","v":0}]
[{"$nulls":3},{"$f":"COUNTIF(SpalioLankomumas[1],\"U\")+COUNTIF(SpalioLankomumas[1],\"E\")","v":0},{"$f":"COUNTIF(SpalioLankomumas[2],\"U\")+COUNTIF(SpalioLankomumas[2],\"E\")","v":0},{"$f":"COUNTIF(SpalioLankomumas[3],\"U\")+COUNTIF(SpalioLankomumas[3],\"E\")","v":0},{"$f":"COUNTIF(SpalioLankomumas[4],\"U\")+COUNTIF(SpalioLankomumas[4],\"E\")","v":0},{"$f":"COUNTIF(SpalioLankomumas[5],\"U\")+COUNTIF(SpalioLankomumas[5],\"E\")","v":0},{"$f":"COUNTIF(SpalioLankomumas[6],\"U\")+COUNTIF(SpalioLankomumas[6],\"E\")","v":0},{"$f":"COUNTIF(SpalioLankomumas[7],\"U\")+COUNTIF(SpalioLankomumas[7],\"E\")","v":0},{"$f":"COUNTIF(SpalioLankomumas[8],\"U\")+COUNTIF(SpalioLankomumas[8],\"E\")","v":0},{"$f":"COUNTIF(SpalioLankomumas[9],\"U\")+COUNTIF(SpalioLankomumas[9],\"E\")","v":0},{"$f":"COUNTIF(SpalioLankomumas[10],\"U\")+COUNTIF(SpalioLankomumas[10],\"E\")","v":0},{"$f":"COUNTIF(SpalioLankomumas[11],\"U\")+COUNTIF(SpalioLankomumas[11],\"E\")","v":0},{"$f":"COUNTIF(SpalioLankomumas[12],\"U\")+COUNTIF(SpalioLankomumas[12],\"E\")","v":0},{"$f":"COUNTIF(SpalioLankomumas[13],\"U\")+COUNTIF(SpalioLankomumas[13],\"E\")","v":0},{"$f":"COUNTIF(SpalioLankomumas[14],\"U\")+COUNTIF(SpalioLankomumas[14],\"E\")","v":0},{"$f":"COUNTIF(SpalioLankomumas[15],\"U\")+COUNTIF(SpalioLankomumas[15],\"E\")","v":0},{"$f":"COUNTIF(SpalioLankomumas[16],\"U\")+COUNTIF(SpalioLankomumas[16],\"E\")","v":0},{"$f":"COUNTIF(SpalioLankomumas[17],\"U\")+COUNTIF(SpalioLankomumas[17],\"E\")","v":0},{"$f":"COUNTIF(SpalioLankomumas[18],\"U\")+COUNTIF(SpalioLankomumas[18],\"E\")","v":0},{"$f":"COUNTIF(SpalioLankomumas[19],\"U\")+COUNTIF(SpalioLankomumas[19],\"E\")","v":0},{"$f":"COUNTIF(SpalioLankomumas[20],\"U\")+COUNTIF(SpalioLankomumas[20],\"E\")","v":0},{"$f":"COUNTIF(SpalioLankomumas[21],\"U\")+COUNTIF(SpalioLankomumas[21],\"E\")","v":0},{"$f":"COUNTIF(SpalioLankomumas[22],\"U\")+COUNTIF(SpalioLankomumas[22],\"E\")","v":0},{"$f":"COUNTIF(SpalioLankomumas[23],\"U\")+COUNTIF(SpalioLankomumas[23],\"E\")","v":0},{"$f":"COUNTIF(SpalioLankomumas[24],\"U\")+COUNTIF(SpalioLankomumas[24],\"E\")","v":0},{"$f":"COUNTIF(SpalioLankomumas[25],\"U\")+COUNTIF(SpalioLankomumas[25],\"E\")","v":0},{"$f":"COUNTIF(SpalioLankomumas[26],\"U\")+COUNTIF(SpalioLankomumas[26],\"E\")","v":0},{"$f":"COUNTIF(SpalioLankomumas[27],\"U\")+COUNTIF(SpalioLankomumas[27],\"E\")","v":0},{"$f":"COUNTIF(SpalioLankomumas[28],\"U\")+COUNTIF(SpalioLankomumas[28],\"E\")","v":0},{"$f":"COUNTIF(SpalioLankomumas[29],\"U\")+COUNTIF(SpalioLankomumas[29],\"E\")","v":0},{"$f":"COUNTIF(SpalioLankomumas[30],\"U\")+COUNTIF(SpalioLankomumas[30],\"E\")","v":0},{"$f":"COUNTIF(SpalioLankomumas[31],\"U\")+COUNTIF(SpalioLankomumas[31],\"E\")","v":0},{"$f":"SUBTOTAL(109,SpalioLankomumas[T])","v":0},{"$f":"SUBTOTAL(109,SpalioLankomumas[E])","v":0},{"$f":"SUBTOTAL(109,SpalioLankomumas[U])","v":0},{"$f":"SUBTOTAL(109,SpalioLankomumas[P])","v":0}]

{"sheet":"Lapkritis","index":5,"n_rows":13,"n_cols":39,"rows_kept":13,"merged":[[4,34,4,38]]}
["STUDENTO LANKOMUMO ĮRAŠAS",{"$nulls":36},"Mokslo metai prasideda:",{"$f":"KalendoriniaiMetai","v":2012}]
[]
[null,null,{"$f":"SpalvinioRaktoTekstas","v":"SPALVŲ RAKTAS "},{"$f":"Kodas1","v":"T"},{"$f":"Kodo1Tekstas","v":"Pavėluota"},null,null,{"$f":"Kodas2","v":"E"},{"$f":"Kodo2Tekstas","v":"Pateisinamai praleista"},null,null,{"$f":"Kodas3","v":"U"},{"$f":"Kodo3Tekstas","v":"Nepateisinamai praleista"},null,null,{"$f":"Kodas4","v":"P"},{"$f":"Kodo4Tekstas","v":"Dalyvauta"},null,null,{"$f":"Kodas5","v":"N"},{"$f":"Kodo5Tekstas","v":"Nėra pamokų"}]
[]
[null,{"$f":"DATE(KalendoriniaiMetai,11,1)","v":"2012-11-01"},null,{"$f":"TEXT(WEEKDAY(DATE(KalendoriniaiMetai,11,1),1),\"[$-427]aaa\")","v":"1900"},{"$f":"TEXT(WEEKDAY(DATE(KalendoriniaiMetai,11,2),1),\"[$-427]aaa\")","v":"1900"},{"$f":"TEXT(WEEKDAY(DATE(KalendoriniaiMetai,11,3),1),\"[$-427]aaa\")","v":"1900"},{"$f":"TEXT(WEEKDAY(DATE(KalendoriniaiMetai,11,4),1),\"[$-427]aaa\")","v":"1900"},{"$f":"TEXT(WEEKDAY(DATE(KalendoriniaiMetai,11,5),1),\"[$-427]aaa\")","v":"1900"},{"$f":"TEXT(WEEKDAY(DATE(KalendoriniaiMetai,11,6),1),\"[$-427]aaa\")","v":"1900"},{"$f":"TEXT(WEEKDAY(DATE(KalendoriniaiMetai,11,7),1),\"[$-427]aaa\")","v":"1900"},{"$f":"TEXT(WEEKDAY(DATE(KalendoriniaiMetai,11,8),1),\"[$-427]aaa\")","v":"1900"},{"$f":"TEXT(WEEKDAY(DATE(KalendoriniaiMetai,11,9),1),\"[$-427]aaa\")","v":"1900"},{"$f":"TEXT(WEEKDAY(DATE(KalendoriniaiMetai,11,10),1),\"[$-427]aaa\")","v":"1900"},{"$f":"TEXT(WEEKDAY(DATE(KalendoriniaiMetai,11,11),1),\"[$-427]aaa\")","v":"1900"},{"$f":"TEXT(WEEKDAY(DATE(KalendoriniaiMetai,11,12),1),\"[$-427]aaa\")","v":"1900"},{"$f":"TEXT(WEEKDAY(DATE(KalendoriniaiMetai,11,13),1),\"[$-427]aaa\")","v":"1900"},{"$f":"TEXT(WEEKDAY(DATE(KalendoriniaiMetai,11,14),1),\"[$-427]aaa\")","v":"1900"},{"$f":"TEXT(WEEKDAY(DATE(KalendoriniaiMetai,11,15),1),\"[$-427]aaa\")","v":"1900"},{"$f":"TEXT(WEEKDAY(DATE(KalendoriniaiMetai,11,16),1),\"[$-427]aaa\")","v":"1900"},{"$f":"TEXT(WEEKDAY(DATE(KalendoriniaiMetai,11,17),1),\"[$-427]aaa\")","v":"1900"},{"$f":"TEXT(WEEKDAY(DATE(KalendoriniaiMetai,11,18),1),\"[$-427]aaa\")","v":"1900"},{"$f":"TEXT(WEEKDAY(DATE(KalendoriniaiMetai,11,19),1),\"[$-427]aaa\")","v":"1900"},{"$f":"TEXT(WEEKDAY(DATE(KalendoriniaiMetai,11,20),1),\"[$-427]aaa\")","v":"1900"},{"$f":"TEXT(WEEKDAY(DATE(KalendoriniaiMetai,11,21),1),\"[$-427]aaa\")","v":"1900"},{"$f":"TEXT(WEEKDAY(DATE(KalendoriniaiMetai,11,22),1),\"[$-427]aaa\")","v":"1900"},{"$f":"TEXT(WEEKDAY(DATE(KalendoriniaiMetai,11,23),1),\"[$-427]aaa\")","v":"1900"},{"$f":"TEXT(WEEKDAY(DATE(KalendoriniaiMetai,11,24),1),\"[$-427]aaa\")","v":"1900"},{"$f":"TEXT(WEEKDAY(DATE(KalendoriniaiMetai,11,25),1),\"[$-427]aaa\")","v":"1900"},{"$f":"TEXT(WEEKDAY(DATE(KalendoriniaiMetai,11,26),1),\"[$-427]aaa\")","v":"1900"},{"$f":"TEXT(WEEKDAY(DATE(KalendoriniaiMetai,11,27),1),\"[$-427]aaa\")","v":"1900"},{"$f":"TEXT(WEEKDAY(DATE(KalendoriniaiMetai,11,28),1),\"[$-427]aaa\")","v":"1900"},{"$f":"TEXT(WEEKDAY(DATE(KalendoriniaiMetai,11,29),1),\"[$-427]aaa\")","v":"1900"},{"$f":"TEXT(WEEKDAY(DATE(KalendoriniaiMetai,11,30),1),\"[$-427]aaa\")","v":"1900"},null,"Sumos"]
[null,"Studento ID","Studento vardas ir pavardė","1","2","3","4","5","6","7","8","9","10","11","12","13","14","15","16","17","18","19","20","21","22","23","24","25","26","27","28","29","30"," ","T","E","U","P","Praleista dienų"]
[null,null,{"$f":"IFERROR(VLOOKUP(#REF!,StudentųSąrašas[],18,FALSE),\"\")","v":""},{"$nulls":31},{"$f":"COUNTIF(LapkričioLankomumas[[#This Row],[1]:[ ]],Kodas1)","v":0},{"$f":"COUNTIF(LapkričioLankomumas[[#This Row],[1]:[ ]],Kodas2)","v":0},{"$f":"COUNTIF(LapkričioLankomumas[[#This Row],[1]:[ ]],Kodas3)","v":0},{"$f":"COUNTIF(LapkričioLankomumas[[#This Row],[1]:[ ]],Kodas4)","v":0},{"$f":"SUM(LapkričioLankomumas[[#This Row],[E]:[U]])","v":0}]
[null,null,{"$f":"IFERROR(VLOOKUP(#REF!,StudentųSąrašas[],18,FALSE),\"\")","v":""},{"$nulls":31},{"$f":"COUNTIF(LapkričioLankomumas[[#This Row],[1]:[ ]],Kodas1)","v":0},{"$f":"COUNTIF(LapkričioLankomumas[[#This Row],[1]:[ ]],Kodas2)","v":0},{"$f":"COUNTIF(LapkričioLankomumas[[#This Row],[1]:[ ]],Kodas3)","v":0},{"$f":"COUNTIF(LapkričioLankomumas[[#This Row],[1]:[ ]],Kodas4)","v":0},{"$f":"SUM(LapkričioLankomumas[[#This Row],[E]:[U]])","v":0}]
[null,null,{"$f":"IFERROR(VLOOKUP(#REF!,StudentųSąrašas[],18,FALSE),\"\")","v":""},{"$nulls":31},{"$f":"COUNTIF(LapkričioLankomumas[[#This Row],[1]:[ ]],Kodas1)","v":0},{"$f":"COUNTIF(LapkričioLankomumas[[#This Row],[1]:[ ]],Kodas2)","v":0},{"$f":"COUNTIF(LapkričioLankomumas[[#This Row],[1]:[ ]],Kodas3)","v":0},{"$f":"COUNTIF(LapkričioLankomumas[[#This Row],[1]:[ ]],Kodas4)","v":0},{"$f":"SUM(LapkričioLankomumas[[#This Row],[E]:[U]])","v":0}]
[null,null,{"$f":"IFERROR(VLOOKUP(#REF!,StudentųSąrašas[],18,FALSE),\"\")","v":""},{"$nulls":31},{"$f":"COUNTIF(LapkričioLankomumas[[#This Row],[1]:[ ]],Kodas1)","v":0},{"$f":"COUNTIF(LapkričioLankomumas[[#This Row],[1]:[ ]],Kodas2)","v":0},{"$f":"COUNTIF(LapkričioLankomumas[[#This Row],[1]:[ ]],Kodas3)","v":0},{"$f":"COUNTIF(LapkričioLankomumas[[#This Row],[1]:[ ]],Kodas4)","v":0},{"$f":"SUM(LapkričioLankomumas[[#This Row],[E]:[U]])","v":0}]
[null,null,{"$f":"IFERROR(VLOOKUP(#REF!,StudentųSąrašas[],18,FALSE),\"\")","v":""},{"$nulls":31},{"$f":"COUNTIF(LapkričioLankomumas[[#This Row],[1]:[ ]],Kodas1)","v":0},{"$f":"COUNTIF(LapkričioLankomumas[[#This Row],[1]:[ ]],Kodas2)","v":0},{"$f":"COUNTIF(LapkričioLankomumas[[#This Row],[1]:[ ]],Kodas3)","v":0},{"$f":"COUNTIF(LapkričioLankomumas[[#This Row],[1]:[ ]],Kodas4)","v":0},{"$f":"SUM(LapkričioLankomumas[[#This Row],[E]:[U]])","v":0}]
[null,null,"Iš viso praleista dienų",{"$f":"COUNTIF(LapkričioLankomumas[21],\"U\")+COUNTIF(LapkričioLankomumas[21],\"E\")","v":0},{"$f":"COUNTIF(LapkričioLankomumas[22],\"U\")+COUNTIF(LapkričioLankomumas[22],\"E\")","v":0},{"$f":"COUNTIF(LapkričioLankomumas[23],\"U\")+COUNTIF(LapkričioLankomumas[23],\"E\")","v":0},{"$f":"COUNTIF(LapkričioLankomumas[24],\"U\")+COUNTIF(LapkričioLankomumas[24],\"E\")","v":0},{"$f":"COUNTIF(LapkričioLankomumas[25],\"U\")+COUNTIF(LapkričioLankomumas[25],\"E\")","v":0},{"$f":"COUNTIF(LapkričioLankomumas[26],\"U\")+COUNTIF(LapkričioLankomumas[26],\"E\")","v":0},{"$f":"COUNTIF(LapkričioLankomumas[27],\"U\")+COUNTIF(LapkričioLankomumas[27],\"E\")","v":0},{"$f":"COUNTIF(LapkričioLankomumas[28],\"U\")+COUNTIF(LapkričioLankomumas[28],\"E\")","v":0},{"$f":"COUNTIF(LapkričioLankomumas[29],\"U\")+COUNTIF(LapkričioLankomumas[29],\"E\")","v":0},{"$f":"COUNTIF(LapkričioLankomumas[30],\"U\")+COUNTIF(LapkričioLankomumas[30],\"E\")","v":0},{"$f":"COUNTIF(LapkričioLankomumas[[ ]],\"U\")+COUNTIF(LapkričioLankomumas[[ ]],\"E\")","v":0},{"$f":"COUNTIF(LapkričioLankomumas[T],\"U\")+COUNTIF(LapkričioLankomumas[T],\"E\")","v":0},{"$f":"COUNTIF(LapkričioLankomumas[E],\"U\")+COUNTIF(LapkričioLankomumas[E],\"E\")","v":0},{"$f":"COUNTIF(LapkričioLankomumas[U],\"U\")+COUNTIF(LapkričioLankomumas[U],\"E\")","v":0},{"$f":"COUNTIF(LapkričioLankomumas[P],\"U\")+COUNTIF(LapkričioLankomumas[P],\"E\")","v":0},{"$f":"COUNTIF(LapkričioLankomumas[Praleista dienų],\"U\")+COUNTIF(LapkričioLankomumas[Praleista dienų],\"E\")","v":0},{"$f":"COUNTIF(LapkričioLankomumas[Studento ID],\"U\")+COUNTIF(LapkričioLankomumas[Studento ID],\"E\")","v":0},{"$f":"COUNTIF(LapkričioLankomumas[Studento vardas ir pavardė],\"U\")+COUNTIF(LapkričioLankomumas[Studento vardas ir pavardė],\"E\")","v":0},{"$f":"COUNTIF(LapkričioLankomumas[1],\"U\")+COUNTIF(LapkričioLankomumas[1],\"E\")","v":0},{"$f":"COUNTIF(LapkričioLankomumas[2],\"U\")+COUNTIF(LapkričioLankomumas[2],\"E\")","v":0},{"$f":"COUNTIF(LapkričioLankomumas[3],\"U\")+COUNTIF(LapkričioLankomumas[3],\"E\")","v":0},{"$f":"COUNTIF(LapkričioLankomumas[4],\"U\")+COUNTIF(LapkričioLankomumas[4],\"E\")","v":0},{"$f":"COUNTIF(LapkričioLankomumas[5],\"U\")+COUNTIF(LapkričioLankomumas[5],\"E\")","v":0},{"$f":"COUNTIF(LapkričioLankomumas[6],\"U\")+COUNTIF(LapkričioLankomumas[6],\"E\")","v":0},{"$f":"COUNTIF(LapkričioLankomumas[7],\"U\")+COUNTIF(LapkričioLankomumas[7],\"E\")","v":0},{"$f":"COUNTIF(LapkričioLankomumas[8],\"U\")+COUNTIF(LapkričioLankomumas[8],\"E\")","v":0},{"$f":"COUNTIF(LapkričioLankomumas[9],\"U\")+COUNTIF(LapkričioLankomumas[9],\"E\")","v":0},{"$f":"COUNTIF(LapkričioLankomumas[10],\"U\")+COUNTIF(LapkričioLankomumas[10],\"E\")","v":0},{"$f":"COUNTIF(LapkričioLankomumas[11],\"U\")+COUNTIF(LapkričioLankomumas[11],\"E\")","v":0},null,null,{"$f":"SUBTOTAL(109,LapkričioLankomumas[T])","v":0},{"$f":"SUBTOTAL(109,LapkričioLankomumas[E])","v":0},{"$f":"SUBTOTAL(109,LapkričioLankomumas[U])","v":0},{"$f":"SUBTOTAL(109,LapkričioLankomumas[P])","v":0},{"$f":"SUBTOTAL(109,LapkričioLankomumas[Praleista dienų])","v":0}]
[{"$nulls":3},{"$f":"COUNTIF(LapkričioLankomumas[1],\"U\")+COUNTIF(LapkričioLankomumas[1],\"E\")","v":0},{"$f":"COUNTIF(LapkričioLankomumas[2],\"U\")+COUNTIF(LapkričioLankomumas[2],\"E\")","v":0},{"$f":"COUNTIF(LapkričioLankomumas[3],\"U\")+COUNTIF(LapkričioLankomumas[3],\"E\")","v":0},{"$f":"COUNTIF(LapkričioLankomumas[4],\"U\")+COUNTIF(LapkričioLankomumas[4],\"E\")","v":0},{"$f":"COUNTIF(LapkričioLankomumas[5],\"U\")+COUNTIF(LapkričioLankomumas[5],\"E\")","v":0},{"$f":"COUNTIF(LapkričioLankomumas[6],\"U\")+COUNTIF(LapkričioLankomumas[6],\"E\")","v":0},{"$f":"COUNTIF(LapkričioLankomumas[7],\"U\")+COUNTIF(LapkričioLankomumas[7],\"E\")","v":0},{"$f":"COUNTIF(LapkričioLankomumas[8],\"U\")+COUNTIF(LapkričioLankomumas[8],\"E\")","v":0},{"$f":"COUNTIF(LapkričioLankomumas[9],\"U\")+COUNTIF(LapkričioLankomumas[9],\"E\")","v":0},{"$f":"COUNTIF(LapkričioLankomumas[10],\"U\")+COUNTIF(LapkričioLankomumas[10],\"E\")","v":0},{"$f":"COUNTIF(LapkričioLankomumas[11],\"U\")+COUNTIF(LapkričioLankomumas[11],\"E\")","v":0},{"$f":"COUNTIF(LapkričioLankomumas[12],\"U\")+COUNTIF(LapkričioLankomumas[12],\"E\")","v":0},{"$f":"COUNTIF(LapkričioLankomumas[13],\"U\")+COUNTIF(LapkričioLankomumas[13],\"E\")","v":0},{"$f":"COUNTIF(LapkričioLankomumas[14],\"U\")+COUNTIF(LapkričioLankomumas[14],\"E\")","v":0},{"$f":"COUNTIF(LapkričioLankomumas[15],\"U\")+COUNTIF(LapkričioLankomumas[15],\"E\")","v":0},{"$f":"COUNTIF(LapkričioLankomumas[16],\"U\")+COUNTIF(LapkričioLankomumas[16],\"E\")","v":0},{"$f":"COUNTIF(LapkričioLankomumas[17],\"U\")+COUNTIF(LapkričioLankomumas[17],\"E\")","v":0},{"$f":"COUNTIF(LapkričioLankomumas[18],\"U\")+COUNTIF(LapkričioLankomumas[18],\"E\")","v":0},{"$f":"COUNTIF(LapkričioLankomumas[19],\"U\")+COUNTIF(LapkričioLankomumas[19],\"E\")","v":0},{"$f":"COUNTIF(LapkričioLankomumas[20],\"U\")+COUNTIF(LapkričioLankomumas[20],\"E\")","v":0},{"$f":"COUNTIF(LapkričioLankomumas[21],\"U\")+COUNTIF(LapkričioLankomumas[21],\"E\")","v":0},{"$f":"COUNTIF(LapkričioLankomumas[22],\"U\")+COUNTIF(LapkričioLankomumas[22],\"E\")","v":0},{"$f":"COUNTIF(LapkričioLankomumas[23],\"U\")+COUNTIF(LapkričioLankomumas[23],\"E\")","v":0},{"$f":"COUNTIF(LapkričioLankomumas[24],\"U\")+COUNTIF(LapkričioLankomumas[24],\"E\")","v":0},{"$f":"COUNTIF(LapkričioLankomumas[25],\"U\")+COUNTIF(LapkričioLankomumas[25],\"E\")","v":0},{"$f":"COUNTIF(LapkričioLankomumas[26],\"U\")+COUNTIF(LapkričioLankomumas[26],\"E\")","v":0},{"$f":"COUNTIF(LapkričioLankomumas[27],\"U\")+COUNTIF(LapkričioLankomumas[27],\"E\")","v":0},{"$f":"COUNTIF(LapkričioLankomumas[28],\"U\")+COUNTIF(LapkričioLankomumas[28],\"E\")","v":0},{"$f":"COUNTIF(LapkričioLankomumas[29],\"U\")+COUNTIF(LapkričioLankomumas[29],\"E\")","v":0},{"$f":"COUNTIF(LapkričioLankomumas[30],\"U\")+COUNTIF(LapkričioLankomumas[30],\"E\")","v":0},{"$f":"COUNTIF(LapkričioLankomumas[[ ]],\"U\")+COUNTIF(LapkričioLankomumas[[ ]],\"E\")","v":0},{"$f":"SUBTOTAL(109,LapkričioLankomumas[T])","v":0},{"$f":"SUBTOTAL(109,LapkričioLankomumas[E])","v":0},{"$f":"SUBTOTAL(109,LapkričioLankomumas[U])","v":0},{"$f":"SUBTOTAL(109,LapkričioLankomumas[P])","v":0}]

{"sheet":"Gruodis","index":6,"n_rows":13,"n_cols":39,"rows_kept":13,"merged":[[4,34,4,38]]}
["STUDENTO LANKOMUMO ĮRAŠAS",{"$nulls":36},"Mokslo metai prasideda:",{"$f":"KalendoriniaiMetai","v":2012}]
[]
[null,null,{"$f":"SpalvinioRaktoTekstas","v":"SPALVŲ RAKTAS "},{"$f":"Kodas1","v":"T"},{"$f":"Kodo1Tekstas","v":"Pavėluota"},null,null,{"$f":"Kodas2","v":"E"},{"$f":"Kodo2Tekstas","v":"Pateisinamai praleista"},null,null,{"$f":"Kodas3","v":"U"},{"$f":"Kodo3Tekstas","v":"Nepateisinamai praleista"},null,null,{"$f":"Kodas4","v":"P"},{"$f":"Kodo4Tekstas","v":"Dalyvauta"},null,null,{"$f":"Kodas5","v":"N"},{"$f":"Kodo5Tekstas","v":"Nėra pamokų"}]
[]
[null,{"$f":"DATE(KalendoriniaiMetai,12,1)","v":"2012-12-01"},null,{"$f":"TEXT(WEEKDAY(DATE(KalendoriniaiMetai,12,1),1),\"[$-427]aaa\")","v":"1900"},{"$f":"TEXT(WEEKDAY(DATE(KalendoriniaiMetai,12,2),1),\"[$-427]aaa\")","v":"1900"},{"$f":"TEXT(WEEKDAY(DATE(KalendoriniaiMetai,12,3),1),\"[$-427]aaa\")","v":"1900"},{"$f":"TEXT(WEEKDAY(DATE(KalendoriniaiMetai,12,4),1),\"[$-427]aaa\")","v":"1900"},{"$f":"TEXT(WEEKDAY(DATE(KalendoriniaiMetai,12,5),1),\"[$-427]aaa\")","v":"1900"},{"$f":"TEXT(WEEKDAY(DATE(KalendoriniaiMetai,12,6),1),\"[$-427]aaa\")","v":"1900"},{"$f":"TEXT(WEEKDAY(DATE(KalendoriniaiMetai,12,7),1),\"[$-427]aaa\")","v":"1900"},{"$f":"TEXT(WEEKDAY(DATE(KalendoriniaiMetai,12,8),1),\"[$-427]aaa\")","v":"1900"},{"$f":"TEXT(WEEKDAY(DATE(KalendoriniaiMetai,12,9),1),\"[$-427]aaa\")","v":"1900"},{"$f":"TEXT(WEEKDAY(DATE(KalendoriniaiMetai,12,10),1),\"[$-427]aaa\")","v":"1900"},{"$f":"TEXT(WEEKDAY(DATE(KalendoriniaiMetai,12,11),1),\"[$-427]aaa\")","v":"1900"},{"$f":"TEXT(WEEKDAY(DATE(KalendoriniaiMetai,12,12),1),\"[$-427]aaa\")","v":"1900"},{"$f":"TEXT(WEEKDAY(DATE(KalendoriniaiMetai,12,13),1),\"[$-427]aaa\")","v":"1900"},{"$f":"TEXT(WEEKDAY(DATE(KalendoriniaiMetai,12,14),1),\"[$-427]aaa\")","v":"1900"},{"$f":"TEXT(WEEKDAY(DATE(KalendoriniaiMetai,12,15),1),\"[$-427]aaa\")","v":"1900"},{"$f":"TEXT(WEEKDAY(DATE(KalendoriniaiMetai,12,16),1),\"[$-427]aaa\")","v":"1900"},{"$f":"TEXT(WEEKDAY(DATE(KalendoriniaiMetai,12,17),1),\"[$-427]aaa\")","v":"1900"},{"$f":"TEXT(WEEKDAY(DATE(KalendoriniaiMetai,12,18),1),\"[$-427]aaa\")","v":"1900"},{"$f":"TEXT(WEEKDAY(DATE(KalendoriniaiMetai,12,19),1),\"[$-427]aaa\")","v":"1900"},{"$f":"TEXT(WEEKDAY(DATE(KalendoriniaiMetai,12,20),1),\"[$-427]aaa\")","v":"1900"},{"$f":"TEXT(WEEKDAY(DATE(KalendoriniaiMetai,12,21),1),\"[$-427]aaa\")","v":"1900"},{"$f":"TEXT(WEEKDAY(DATE(KalendoriniaiMetai,12,22),1),\"[$-427]aaa\")","v":"1900"},{"$f":"TEXT(WEEKDAY(DATE(KalendoriniaiMetai,12,23),1),\"[$-427]aaa\")","v":"1900"},{"$f":"TEXT(WEEKDAY(DATE(KalendoriniaiMetai,12,24),1),\"[$-427]aaa\")","v":"1900"},{"$f":"TEXT(WEEKDAY(DATE(KalendoriniaiMetai,12,25),1),\"[$-427]aaa\")","v":"1900"},{"$f":"TEXT(WEEKDAY(DATE(KalendoriniaiMetai,12,26),1),\"[$-427]aaa\")","v":"1900"},{"$f":"TEXT(WEEKDAY(DATE(KalendoriniaiMetai,12,27),1),\"[$-427]aaa\")","v":"1900"},{"$f":"TEXT(WEEKDAY(DATE(KalendoriniaiMetai,12,28),1),\"[$-427]aaa\")","v":"1900"},{"$f":"TEXT(WEEKDAY(DATE(KalendoriniaiMetai,12,29),1),\"[$-427]aaa\")","v":"1900"},{"$f":"TEXT(WEEKDAY(DATE(KalendoriniaiMetai,12,30),1),\"[$-427]aaa\")","v":"1900"},{"$f":"TEXT(WEEKDAY(DATE(KalendoriniaiMetai,12,31),1),\"[$-427]aaa\")","v":"1900"},"Sumos"]
[null,"Studento ID","Studento vardas ir pavardė","1","2","3","4","5","6","7","8","9","10","11","12","13","14","15","16","17","18","19","20","21","22","23","24","25","26","27","28","29","30","31","T","E","U","P","Praleista dienų"]
[null,null,{"$f":"IFERROR(VLOOKUP(#REF!,StudentųSąrašas[],18,FALSE),\"\")","v":""},{"$nulls":31},{"$f":"COUNTIF(GruodžioLankomumas[[#This Row],[1]:[31]],Kodas1)","v":0},{"$f":"COUNTIF(GruodžioLankomumas[[#This Row],[1]:[31]],Kodas2)","v":0},{"$f":"COUNTIF(GruodžioLankomumas[[#This Row],[1]:[31]],Kodas3)","v":0},{"$f":"COUNTIF(GruodžioLankomumas[[#This Row],[1]:[31]],Kodas4)","v":0},{"$f":"SUM(GruodžioLankomumas[[#This Row],[E]:[U]])","v":0}]
[null,null,{"$f":"IFERROR(VLOOKUP(#REF!,StudentųSąrašas[],18,FALSE),\"\")","v":""},{"$nulls":31},{"$f":"COUNTIF(GruodžioLankomumas[[#This Row],[1]:[31]],Kodas1)","v":0},{"$f":"COUNTIF(GruodžioLankomumas[[#This Row],[1]:[31]],Kodas2)","v":0},{"$f":"COUNTIF(GruodžioLankomumas[[#This Row],[1]:[31]],Kodas3)","v":0},{"$f":"COUNTIF(GruodžioLankomumas[[#This Row],[1]:[31]],Kodas4)","v":0},{"$f":"SUM(GruodžioLankomumas[[#This Row],[E]:[U]])","v":0}]
[null,null,{"$f":"IFERROR(VLOOKUP(#REF!,StudentųSąrašas[],18,FALSE),\"\")","v":""},{"$nulls":31},{"$f":"COUNTIF(GruodžioLankomumas[[#This Row],[1]:[31]],Kodas1)","v":0},{"$f":"COUNTIF(GruodžioLankomumas[[#This Row],[1]:[31]],Kodas2)","v":0},{"$f":"COUNTIF(GruodžioLankomumas[[#This Row],[1]:[31]],Kodas3)","v":0},{"$f":"COUNTIF(GruodžioLankomumas[[#This Row],[1]:[31]],Kodas4)","v":0},{"$f":"SUM(GruodžioLankomumas[[#This Row],[E]:[U]])","v":0}]
[null,null,{"$f":"IFERROR(VLOOKUP(#REF!,StudentųSąrašas[],18,FALSE),\"\")","v":""},{"$nulls":31},{"$f":"COUNTIF(GruodžioLankomumas[[#This Row],[1]:[31]],Kodas1)","v":0},{"$f":"COUNTIF(GruodžioLankomumas[[#This Row],[1]:[31]],Kodas2)","v":0},{"$f":"COUNTIF(GruodžioLankomumas[[#This Row],[1]:[31]],Kodas3)","v":0},{"$f":"COUNTIF(GruodžioLankomumas[[#This Row],[1]:[31]],Kodas4)","v":0},{"$f":"SUM(GruodžioLankomumas[[#This Row],[E]:[U]])","v":0}]
[null,null,{"$f":"IFERROR(VLOOKUP(#REF!,StudentųSąrašas[],18,FALSE),\"\")","v":""},{"$nulls":31},{"$f":"COUNTIF(GruodžioLankomumas[[#This Row],[1]:[31]],Kodas1)","v":0},{"$f":"COUNTIF(GruodžioLankomumas[[#This Row],[1]:[31]],Kodas2)","v":0},{"$f":"COUNTIF(GruodžioLankomumas[[#This Row],[1]:[31]],Kodas3)","v":0},{"$f":"COUNTIF(GruodžioLankomumas[[#This Row],[1]:[31]],Kodas4)","v":0},{"$f":"SUM(GruodžioLankomumas[[#This Row],[E]:[U]])","v":0}]
[null,null,"Iš viso praleista dienų",{"$f":"COUNTIF(GruodžioLankomumas[21],\"U\")+COUNTIF(GruodžioLankomumas[21],\"E\")","v":0},{"$f":"COUNTIF(GruodžioLankomumas[22],\"U\")+COUNTIF(GruodžioLankomumas[22],\"E\")","v":0},{"$f":"COUNTIF(GruodžioLankomumas[23],\"U\")+COUNTIF(GruodžioLankomumas[23],\"E\")","v":0},{"$f":"COUNTIF(GruodžioLankomumas[24],\"U\")+COUNTIF(GruodžioLankomumas[24],\"E\")","v":0},{"$f":"COUNTIF(GruodžioLankomumas[25],\"U\")+COUNTIF(GruodžioLankomumas[25],\"E\")","v":0},{"$f":"COUNTIF(GruodžioLankomumas[26],\"U\")+COUNTIF(GruodžioLankomumas[26],\"E\")","v":0},{"$f":"COUNTIF(GruodžioLankomumas[27],\"U\")+COUNTIF(GruodžioLankomumas[27],\"E\")","v":0},{"$f":"COUNTIF(GruodžioLankomumas[28],\"U\")+COUNTIF(GruodžioLankomumas[28],\"E\")","v":0},{"$f":"COUNTIF(GruodžioLankomumas[29],\"U\")+COUNTIF(GruodžioLankomumas[29],\"E\")","v":0},{"$f":"COUNTIF(GruodžioLankomumas[30],\"U\")+COUNTIF(GruodžioLankomumas[30],\"E\")","v":0},{"$f":"COUNTIF(GruodžioLankomumas[31],\"U\")+COUNTIF(GruodžioLankomumas[31],\"E\")","v":0},{"$f":"COUNTIF(GruodžioLankomumas[T],\"U\")+COUNTIF(GruodžioLankomumas[T],\"E\")","v":0},{"$f":"COUNTIF(GruodžioLankomumas[E],\"U\")+COUNTIF(GruodžioLankomumas[E],\"E\")","v":0},{"$f":"COUNTIF(GruodžioLankomumas[U],\"U\")+COUNTIF(GruodžioLankomumas[U],\"E\")","v":0},{"$f":"COUNTIF(GruodžioLankomumas[P],\"U\")+COUNTIF(GruodžioLankomumas[P],\"E\")","v":0},{"$f":"COUNTIF(GruodžioLankomumas[Praleista dienų],\"U\")+COUNTIF(GruodžioLankomumas[Praleista dienų],\"E\")","v":0},{"$f":"COUNTIF(GruodžioLankomumas[Studento ID],\"U\")+COUNTIF(GruodžioLankomumas[Studento ID],\"E\")","v":0},{"$f":"COUNTIF(GruodžioLankomumas[Studento vardas ir pavardė],\"U\")+COUNTIF(GruodžioLankomumas[Studento vardas ir pavardė],\"E\")","v":0},{"$f":"COUNTIF(GruodžioLankomumas[1],\"U\")+COUNTIF(GruodžioLankomumas[1],\"E\")","v":0},{"$f":"COUNTIF(GruodžioLankomumas[2],\"U\")+COUNTIF(GruodžioLankomumas[2],\"E\")","v":0},{"$f":"COUNTIF(GruodžioLankomumas[3],\"U\")+COUNTIF(GruodžioLankomumas[3],\"E\")","v":0},{"$f":"COUNTIF(GruodžioLankomumas[4],\"U\")+COUNTIF(GruodžioLankomumas[4],\"E\")","v":0},{"$f":"COUNTIF(GruodžioLankomumas[5],\"U\")+COUNTIF(GruodžioLankomumas[5],\"E\")","v":0},{"$f":"COUNTIF(GruodžioLankomumas[6],\"U\")+COUNTIF(GruodžioLankomumas[6],\"E\")","v":0},{"$f":"COUNTIF(GruodžioLankomumas[7],\"U\")+COUNTIF(GruodžioLankomumas[7],\"E\")","v":0},{"$f":"COUNTIF(GruodžioLankomumas[8],\"U\")+COUNTIF(GruodžioLankomumas[8],\"E\")","v":0},{"$f":"COUNTIF(GruodžioLankomumas[9],\"U\")+COUNTIF(GruodžioLankomumas[9],\"E\")","v":0},{"$f":"COUNTIF(GruodžioLankomumas[10],\"U\")+COUNTIF(GruodžioLankomumas[10],\"E\")","v":0},{"$f":"COUNTIF(GruodžioLankomumas[11],\"U\")+COUNTIF(GruodžioLankomumas[11],\"E\")","v":0},null,null,{"$f":"SUBTOTAL(109,GruodžioLankomumas[T])","v":0},{"$f":"SUBTOTAL(109,GruodžioLankomumas[E])","v":0},{"$f":"SUBTOTAL(109,GruodžioLankomumas[U])","v":0},{"$f":"SUBTOTAL(109,GruodžioLankomumas[P])","v":0},{"$f":"SUBTOTAL(109,GruodžioLankomumas[Praleista dienų])","v":0}]
[{"$nulls":3},{"$f":"COUNTIF(GruodžioLankomumas[1],\"U\")+COUNTIF(GruodžioLankomumas[1],\"E\")","v":0},{"$f":"COUNTIF(GruodžioLankomumas[2],\"U\")+COUNTIF(GruodžioLankomumas[2],\"E\")","v":0},{"$f":"COUNTIF(GruodžioLankomumas[3],\"U\")+COUNTIF(GruodžioLankomumas[3],\"E\")","v":0},{"$f":"COUNTIF(GruodžioLankomumas[4],\"U\")+COUNTIF(GruodžioLankomumas[4],\"E\")","v":0},{"$f":"COUNTIF(GruodžioLankomumas[5],\"U\")+COUNTIF(GruodžioLankomumas[5],\"E\")","v":0},{"$f":"COUNTIF(GruodžioLankomumas[6],\"U\")+COUNTIF(GruodžioLankomumas[6],\"E\")","v":0},{"$f":"COUNTIF(GruodžioLankomumas[7],\"U\")+COUNTIF(GruodžioLankomumas[7],\"E\")","v":0},{"$f":"COUNTIF(GruodžioLankomumas[8],\"U\")+COUNTIF(GruodžioLankomumas[8],\"E\")","v":0},{"$f":"COUNTIF(GruodžioLankomumas[9],\"U\")+COUNTIF(GruodžioLankomumas[9],\"E\")","v":0},{"$f":"COUNTIF(GruodžioLankomumas[10],\"U\")+COUNTIF(GruodžioLankomumas[10],\"E\")","v":0},{"$f":"COUNTIF(GruodžioLankomumas[11],\"U\")+COUNTIF(GruodžioLankomumas[11],\"E\")","v":0},{"$f":"COUNTIF(GruodžioLankomumas[12],\"U\")+COUNTIF(GruodžioLankomumas[12],\"E\")","v":0},{"$f":"COUNTIF(GruodžioLankomumas[13],\"U\")+COUNTIF(GruodžioLankomumas[13],\"E\")","v":0},{"$f":"COUNTIF(GruodžioLankomumas[14],\"U\")+COUNTIF(GruodžioLankomumas[14],\"E\")","v":0},{"$f":"COUNTIF(GruodžioLankomumas[15],\"U\")+COUNTIF(GruodžioLankomumas[15],\"E\")","v":0},{"$f":"COUNTIF(GruodžioLankomumas[16],\"U\")+COUNTIF(GruodžioLankomumas[16],\"E\")","v":0},{"$f":"COUNTIF(GruodžioLankomumas[17],\"U\")+COUNTIF(GruodžioLankomumas[17],\"E\")","v":0},{"$f":"COUNTIF(GruodžioLankomumas[18],\"U\")+COUNTIF(GruodžioLankomumas[18],\"E\")","v":0},{"$f":"COUNTIF(GruodžioLankomumas[19],\"U\")+COUNTIF(GruodžioLankomumas[19],\"E\")","v":0},{"$f":"COUNTIF(GruodžioLankomumas[20],\"U\")+COUNTIF(GruodžioLankomumas[20],\"E\")","v":0},{"$f":"COUNTIF(GruodžioLankomumas[21],\"U\")+COUNTIF(GruodžioLankomumas[21],\"E\")","v":0},{"$f":"COUNTIF(GruodžioLankomumas[22],\"U\")+COUNTIF(GruodžioLankomumas[22],\"E\")","v":0},{"$f":"COUNTIF(GruodžioLankomumas[23],\"U\")+COUNTIF(GruodžioLankomumas[23],\"E\")","v":0},{"$f":"COUNTIF(GruodžioLankomumas[24],\"U\")+COUNTIF(GruodžioLankomumas[24],\"E\")","v":0},{"$f":"COUNTIF(GruodžioLankomumas[25],\"U\")+COUNTIF(GruodžioLankomumas[25],\"E\")","v":0},{"$f":"COUNTIF(GruodžioLankomumas[26],\"U\")+COUNTIF(GruodžioLankomumas[26],\"E\")","v":0},{"$f":"COUNTIF(GruodžioLankomumas[27],\"U\")+COUNTIF(GruodžioLankomumas[27],\"E\")","v":0},{"$f":"COUNTIF(GruodžioLankomumas[28],\"U\")+COUNTIF(GruodžioLankomumas[28],\"E\")","v":0},{"$f":"COUNTIF(GruodžioLankomumas[29],\"U\")+COUNTIF(GruodžioLankomumas[29],\"E\")","v":0},{"$f":"COUNTIF(GruodžioLankomumas[30],\"U\")+COUNTIF(GruodžioLankomumas[30],\"E\")","v":0},{"$f":"COUNTIF(GruodžioLankomumas[31],\"U\")+COUNTIF(GruodžioLankomumas[31],\"E\")","v":0},{"$f":"SUBTOTAL(109,GruodžioLankomumas[T])","v":0},{"$f":"SUBTOTAL(109,GruodžioLankomumas[E])","v":0},{"$f":"SUBTOTAL(109,GruodžioLankomumas[U])","v":0},{"$f":"SUBTOTAL(109,GruodžioLankomumas[P])","v":0}]

{"sheet":"Sausis","index":7,"n_rows":13,"n_cols":39,"rows_kept":13,"merged":[[4,34,4,38]]}
["STUDENTO LANKOMUMO ĮRAŠAS",{"$nulls":36},"Mokslo metai prasideda:",{"$f":"KalendoriniaiMetai","v":2012}]
[]
[null,null,{"$f":"SpalvinioRaktoTekstas","v":"SPALVŲ RAKTAS "},{"$f":"Kodas1","v":"T"},{"$f":"Kodo1Tekstas","v":"Pavėluota"},null,null,{"$f":"Kodas2","v":"E"},{"$f":"Kodo2Tekstas","v":"Pateisinamai praleista"},null,null,{"$f":"Kodas3","v":"U"},{"$f":"Kodo3Tekstas","v":"Nepateisinamai praleista"},null,null,{"$f":"Kodas4","v":"P"},{"$f":"Kodo4Tekstas","v":"Dalyvauta"},null,null,{"$f":"Kodas5","v":"N"},{"$f":"Kodo5Tekstas","v":"Nėra pamokų"}]
[]
[null,{"$f":"DATE(KalendoriniaiMetai+1,1,1)","v":"2013-01-01"},null,{"$f":"TEXT(WEEKDAY(DATE(KalendoriniaiMetai+1,1,1),1),\"[$-427]aaa\")","v":"1900"},{"$f":"TEXT(WEEKDAY(DATE(KalendoriniaiMetai+1,1,2),1),\"[$-427]aaa\")","v":"1900"},{"$f":"TEXT(WEEKDAY(DATE(KalendoriniaiMetai+1,1,3),1),\"[$-427]aaa\")","v":"1900"},{"$f":"TEXT(WEEKDAY(DATE(KalendoriniaiMetai+1,1,4),1),\"[$-427]aaa\")","v":"1900"},{"$f":"TEXT(WEEKDAY(DATE(KalendoriniaiMetai+1,1,5),1),\"[$-427]aaa\")","v":"1900"},{"$f":"TEXT(WEEKDAY(DATE(KalendoriniaiMetai+1,1,6),1),\"[$-427]aaa\")","v":"1900"},{"$f":"TEXT(WEEKDAY(DATE(KalendoriniaiMetai+1,1,7),1),\"[$-427]aaa\")","v":"1900"},{"$f":"TEXT(WEEKDAY(DATE(KalendoriniaiMetai+1,1,8),1),\"[$-427]aaa\")","v":"1900"},{"$f":"TEXT(WEEKDAY(DATE(KalendoriniaiMetai+1,1,9),1),\"[$-427]aaa\")","v":"1900"},{"$f":"TEXT(WEEKDAY(DATE(KalendoriniaiMetai+1,1,10),1),\"[$-427]aaa\")","v":"1900"},{"$f":"TEXT(WEEKDAY(DATE(KalendoriniaiMetai+1,1,11),1),\"[$-427]aaa\")","v":"1900"},{"$f":"TEXT(WEEKDAY(DATE(KalendoriniaiMetai+1,1,12),1),\"[$-427]aaa\")","v":"1900"},{"$f":"TEXT(WEEKDAY(DATE(KalendoriniaiMetai+1,1,13),1),\"[$-427]aaa\")","v":"1900"},{"$f":"TEXT(WEEKDAY(DATE(KalendoriniaiMetai+1,1,14),1),\"[$-427]aaa\")","v":"1900"},{"$f":"TEXT(WEEKDAY(DATE(KalendoriniaiMetai+1,1,15),1),\"[$-427]aaa\")","v":"1900"},{"$f":"TEXT(WEEKDAY(DATE(KalendoriniaiMetai+1,1,16),1),\"[$-427]aaa\")","v":"1900"},{"$f":"TEXT(WEEKDAY(DATE(KalendoriniaiMetai+1,1,17),1),\"[$-427]aaa\")","v":"1900"},{"$f":"TEXT(WEEKDAY(DATE(KalendoriniaiMetai+1,1,18),1),\"[$-427]aaa\")","v":"1900"},{"$f":"TEXT(WEEKDAY(DATE(KalendoriniaiMetai+1,1,19),1),\"[$-427]aaa\")","v":"1900"},{"$f":"TEXT(WEEKDAY(DATE(KalendoriniaiMetai+1,1,20),1),\"[$-427]aaa\")","v":"1900"},{"$f":"TEXT(WEEKDAY(DATE(KalendoriniaiMetai+1,1,21),1),\"[$-427]aaa\")","v":"1900"},{"$f":"TEXT(WEEKDAY(DATE(KalendoriniaiMetai+1,1,22),1),\"[$-427]aaa\")","v":"1900"},{"$f":"TEXT(WEEKDAY(DATE(KalendoriniaiMetai+1,1,23),1),\"[$-427]aaa\")","v":"1900"},{"$f":"TEXT(WEEKDAY(DATE(KalendoriniaiMetai+1,1,24),1),\"[$-427]aaa\")","v":"1900"},{"$f":"TEXT(WEEKDAY(DATE(KalendoriniaiMetai+1,1,25),1),\"[$-427]aaa\")","v":"1900"},{"$f":"TEXT(WEEKDAY(DATE(KalendoriniaiMetai+1,1,26),1),\"[$-427]aaa\")","v":"1900"},{"$f":"TEXT(WEEKDAY(DATE(KalendoriniaiMetai+1,1,27),1),\"[$-427]aaa\")","v":"1900"},{"$f":"TEXT(WEEKDAY(DATE(KalendoriniaiMetai+1,1,28),1),\"[$-427]aaa\")","v":"1900"},{"$f":"TEXT(WEEKDAY(DATE(KalendoriniaiMetai+1,1,29),1),\"[$-427]aaa\")","v":"1900"},{"$f":"TEXT(WEEKDAY(DATE(KalendoriniaiMetai+1,1,30),1),\"[$-427]aaa\")","v":"1900"},{"$f":"TEXT(WEEKDAY(DATE(KalendoriniaiMetai+1,1,31),1),\"[$-427]aaa\")","v":"1900"},"Sumos"]
[null,"Studento ID","Studento vardas ir pavardė","1","2","3","4","5","6","7","8","9","10","11","12","13","14","15","16","17","18","19","20","21","22","23","24","25","26","27","28","29","30","31","T","E","U","P","Praleista dienų"]
[null,null,{"$f":"IFERROR(VLOOKUP(#REF!,StudentųSąrašas[],18,FALSE),\"\")","v":""},{"$nulls":31},{"$f":"COUNTIF(SausioLankomumas[[#This Row],[1]:[31]],Kodas1)","v":0},{"$f":"COUNTIF(SausioLankomumas[[#This Row],[1]:[31]],Kodas2)","v":0},{"$f":"COUNTIF(SausioLankomumas[[#This Row],[1]:[31]],Kodas3)","v":0},{"$f":"COUNTIF(SausioLankomumas[[#This Row],[1]:[31]],Kodas4)","v":0},{"$f":"SUM(SausioLankomumas[[#This Row],[E]:[U]])","v":0}]
[null,null,{"$f":"IFERROR(VLOOKUP(#REF!,StudentųSąrašas[],18,FALSE),\"\")","v":""},{"$nulls":31},{"$f":"COUNTIF(SausioLankomumas[[#This Row],[1]:[31]],Kodas1)","v":0},{"$f":"COUNTIF(SausioLankomumas[[#This Row],[1]:[31]],Kodas2)","v":0},{"$f":"COUNTIF(SausioLankomumas[[#This Row],[1]:[31]],Kodas3)","v":0},{"$f":"COUNTIF(SausioLankomumas[[#This Row],[1]:[31]],Kodas4)","v":0},{"$f":"SUM(SausioLankomumas[[#This Row],[E]:[U]])","v":0}]
[null,null,{"$f":"IFERROR(VLOOKUP(#REF!,StudentųSąrašas[],18,FALSE),\"\")","v":""},{"$nulls":31},{"$f":"COUNTIF(SausioLankomumas[[#This Row],[1]:[31]],Kodas1)","v":0},{"$f":"COUNTIF(SausioLankomumas[[#This Row],[1]:[31]],Kodas2)","v":0},{"$f":"COUNTIF(SausioLankomumas[[#This Row],[1]:[31]],Kodas3)","v":0},{"$f":"COUNTIF(SausioLankomumas[[#This Row],[1]:[31]],Kodas4)","v":0},{"$f":"SUM(SausioLankomumas[[#This Row],[E]:[U]])","v":0}]
[null,null,{"$f":"IFERROR(VLOOKUP(#REF!,StudentųSąrašas[],18,FALSE),\"\")","v":""},{"$nulls":31},{"$f":"COUNTIF(SausioLankomumas[[#This Row],[1]:[31]],Kodas1)","v":0},{"$f":"COUNTIF(SausioLankomumas[[#This Row],[1]:[31]],Kodas2)","v":0},{"$f":"COUNTIF(SausioLankomumas[[#This Row],[1]:[31]],Kodas3)","v":0},{"$f":"COUNTIF(SausioLankomumas[[#This Row],[1]:[31]],Kodas4)","v":0},{"$f":"SUM(SausioLankomumas[[#This Row],[E]:[U]])","v":0}]
[null,null,{"$f":"IFERROR(VLOOKUP(#REF!,StudentųSąrašas[],18,FALSE),\"\")","v":""},{"$nulls":31},{"$f":"COUNTIF(SausioLankomumas[[#This Row],[1]:[31]],Kodas1)","v":0},{"$f":"COUNTIF(SausioLankomumas[[#This Row],[1]:[31]],Kodas2)","v":0},{"$f":"COUNTIF(SausioLankomumas[[#This Row],[1]:[31]],Kodas3)","v":0},{"$f":"COUNTIF(SausioLankomumas[[#This Row],[1]:[31]],Kodas4)","v":0},{"$f":"SUM(SausioLankomumas[[#This Row],[E]:[U]])","v":0}]
[null,null,"Iš viso praleista dienų",{"$f":"COUNTIF(SausioLankomumas[21],\"U\")+COUNTIF(SausioLankomumas[21],\"E\")","v":0},{"$f":"COUNTIF(SausioLankomumas[22],\"U\")+COUNTIF(SausioLankomumas[22],\"E\")","v":0},{"$f":"COUNTIF(SausioLankomumas[23],\"U\")+COUNTIF(SausioLankomumas[23],\"E\")","v":0},{"$f":"COUNTIF(SausioLankomumas[24],\"U\")+COUNTIF(SausioLankomumas[24],\"E\")","v":0},{"$f":"COUNTIF(SausioLankomumas[25],\"U\")+COUNTIF(SausioLankomumas[25],\"E\")","v":0},{"$f":"COUNTIF(SausioLankomumas[26],\"U\")+COUNTIF(SausioLankomumas[26],\"E\")","v":0},{"$f":"COUNTIF(SausioLankomumas[27],\"U\")+COUNTIF(SausioLankomumas[27],\"E\")","v":0},{"$f":"COUNTIF(SausioLankomumas[28],\"U\")+COUNTIF(SausioLankomumas[28],\"E\")","v":0},{"$f":"COUNTIF(SausioLankomumas[29],\"U\")+COUNTIF(SausioLankomumas[29],\"E\")","v":0},{"$f":"COUNTIF(SausioLankomumas[30],\"U\")+COUNTIF(SausioLankomumas[30],\"E\")","v":0},{"$f":"COUNTIF(SausioLankomumas[31],\"U\")+COUNTIF(SausioLankomumas[31],\"E\")","v":0},{"$f":"COUNTIF(SausioLankomumas[T],\"U\")+COUNTIF(SausioLankomumas[T],\"E\")","v":0},{"$f":"COUNTIF(SausioLankomumas[E],\"U\")+COUNTIF(SausioLankomumas[E],\"E\")","v":0},{"$f":"COUNTIF(SausioLankomumas[U],\"U\")+COUNTIF(SausioLankomumas[U],\"E\")","v":0},{"$f":"COUNTIF(SausioLankomumas[P],\"U\")+COUNTIF(SausioLankomumas[P],\"E\")","v":0},{"$f":"COUNTIF(SausioLankomumas[Praleista dienų],\"U\")+COUNTIF(SausioLankomumas[Praleista dienų],\"E\")","v":0},{"$f":"COUNTIF(SausioLankomumas[Studento ID],\"U\")+COUNTIF(SausioLankomumas[Studento ID],\"E\")","v":0},{"$f":"COUNTIF(SausioLankomumas[Studento vardas ir pavardė],\"U\")+COUNTIF(SausioLankomumas[Studento vardas ir pavardė],\"E\")","v":0},{"$f":"COUNTIF(SausioLankomumas[1],\"U\")+COUNTIF(SausioLankomumas[1],\"E\")","v":0},{"$f":"COUNTIF(SausioLankomumas[2],\"U\")+COUNTIF(SausioLankomumas[2],\"E\")","v":0},{"$f":"COUNTIF(SausioLankomumas[3],\"U\")+COUNTIF(SausioLankomumas[3],\"E\")","v":0},{"$f":"COUNTIF(SausioLankomumas[4],\"U\")+COUNTIF(SausioLankomumas[4],\"E\")","v":0},{"$f":"COUNTIF(SausioLankomumas[5],\"U\")+COUNTIF(SausioLankomumas[5],\"E\")","v":0},{"$f":"COUNTIF(SausioLankomumas[6],\"U\")+COUNTIF(SausioLankomumas[6],\"E\")","v":0},{"$f":"COUNTIF(SausioLankomumas[7],\"U\")+COUNTIF(SausioLankomumas[7],\"E\")","v":0},{"$f":"COUNTIF(SausioLankomumas[8],\"U\")+COUNTIF(SausioLankomumas[8],\"E\")","v":0},{"$f":"COUNTIF(SausioLankomumas[9],\"U\")+COUNTIF(SausioLankomumas[9],\"E\")","v":0},{"$f":"COUNTIF(SausioLankomumas[10],\"U\")+COUNTIF(SausioLankomumas[10],\"E\")","v":0},{"$f":"COUNTIF(SausioLankomumas[11],\"U\")+COUNTIF(SausioLankomumas[11],\"E\")","v":0},null,null,{"$f":"SUBTOTAL(109,SausioLankomumas[T])","v":0},{"$f":"SUBTOTAL(109,SausioLankomumas[E])","v":0},{"$f":"SUBTOTAL(109,SausioLankomumas[U])","v":0},{"$f":"SUBTOTAL(109,SausioLankomumas[P])","v":0},{"$f":"SUBTOTAL(109,SausioLankomumas[Praleista dienų])","v":0}]
[{"$nulls":3},{"$f":"COUNTIF(SausioLankomumas[1],\"U\")+COUNTIF(SausioLankomumas[1],\"E\")","v":0},{"$f":"COUNTIF(SausioLankomumas[2],\"U\")+COUNTIF(SausioLankomumas[2],\"E\")","v":0},{"$f":"COUNTIF(SausioLankomumas[3],\"U\")+COUNTIF(SausioLankomumas[3],\"E\")","v":0},{"$f":"COUNTIF(SausioLankomumas[4],\"U\")+COUNTIF(SausioLankomumas[4],\"E\")","v":0},{"$f":"COUNTIF(SausioLankomumas[5],\"U\")+COUNTIF(SausioLankomumas[5],\"E\")","v":0},{"$f":"COUNTIF(SausioLankomumas[6],\"U\")+COUNTIF(SausioLankomumas[6],\"E\")","v":0},{"$f":"COUNTIF(SausioLankomumas[7],\"U\")+COUNTIF(SausioLankomumas[7],\"E\")","v":0},{"$f":"COUNTIF(SausioLankomumas[8],\"U\")+COUNTIF(SausioLankomumas[8],\"E\")","v":0},{"$f":"COUNTIF(SausioLankomumas[9],\"U\")+COUNTIF(SausioLankomumas[9],\"E\")","v":0},{"$f":"COUNTIF(SausioLankomumas[10],\"U\")+COUNTIF(SausioLankomumas[10],\"E\")","v":0},{"$f":"COUNTIF(SausioLankomumas[11],\"U\")+COUNTIF(SausioLankomumas[11],\"E\")","v":0},{"$f":"COUNTIF(SausioLankomumas[12],\"U\")+COUNTIF(SausioLankomumas[12],\"E\")","v":0},{"$f":"COUNTIF(SausioLankomumas[13],\"U\")+COUNTIF(SausioLankomumas[13],\"E\")","v":0},{"$f":"COUNTIF(SausioLankomumas[14],\"U\")+COUNTIF(SausioLankomumas[14],\"E\")","v":0},{"$f":"COUNTIF(SausioLankomumas[15],\"U\")+COUNTIF(SausioLankomumas[15],\"E\")","v":0},{"$f":"COUNTIF(SausioLankomumas[16],\"U\")+COUNTIF(SausioLankomumas[16],\"E\")","v":0},{"$f":"COUNTIF(SausioLankomumas[17],\"U\")+COUNTIF(SausioLankomumas[17],\"E\")","v":0},{"$f":"COUNTIF(SausioLankomumas[18],\"U\")+COUNTIF(SausioLankomumas[18],\"E\")","v":0},{"$f":"COUNTIF(SausioLankomumas[19],\"U\")+COUNTIF(SausioLankomumas[19],\"E\")","v":0},{"$f":"COUNTIF(SausioLankomumas[20],\"U\")+COUNTIF(SausioLankomumas[20],\"E\")","v":0},{"$f":"COUNTIF(SausioLankomumas[21],\"U\")+COUNTIF(SausioLankomumas[21],\"E\")","v":0},{"$f":"COUNTIF(SausioLankomumas[22],\"U\")+COUNTIF(SausioLankomumas[22],\"E\")","v":0},{"$f":"COUNTIF(SausioLankomumas[23],\"U\")+COUNTIF(SausioLankomumas[23],\"E\")","v":0},{"$f":"COUNTIF(SausioLankomumas[24],\"U\")+COUNTIF(SausioLankomumas[24],\"E\")","v":0},{"$f":"COUNTIF(SausioLankomumas[25],\"U\")+COUNTIF(SausioLankomumas[25],\"E\")","v":0},{"$f":"COUNTIF(SausioLankomumas[26],\"U\")+COUNTIF(SausioLankomumas[26],\"E\")","v":0},{"$f":"COUNTIF(SausioLankomumas[27],\"U\")+COUNTIF(SausioLankomumas[27],\"E\")","v":0},{"$f":"COUNTIF(SausioLankomumas[28],\"U\")+COUNTIF(SausioLankomumas[28],\"E\")","v":0},{"$f":"COUNTIF(SausioLankomumas[29],\"U\")+COUNTIF(SausioLankomumas[29],\"E\")","v":0},null,null,{"$f":"SUBTOTAL(109,SausioLankomumas[T])","v":0},{"$f":"SUBTOTAL(109,SausioLankomumas[E])","v":0},{"$f":"SUBTOTAL(109,SausioLankomumas[U])","v":0},{"$f":"SUBTOTAL(109,SausioLankomumas[P])","v":0}]

{"sheet":"Vasaris","index":8,"n_rows":13,"n_cols":39,"rows_kept":13,"merged":[[4,34,4,38]]}
["STUDENTO LANKOMUMO ĮRAŠAS",{"$nulls":36},"Mokslo metai prasideda:",{"$f":"KalendoriniaiMetai","v":2012}]
[]
[null,null,{"$f":"SpalvinioRaktoTekstas","v":"SPALVŲ RAKTAS "},{"$f":"Kodas1","v":"T"},{"$f":"Kodo1Tekstas","v":"Pavėluota"},null,null,{"$f":"Kodas2","v":"E"},{"$f":"Kodo2Tekstas","v":"Pateisinamai praleista"},null,null,{"$f":"Kodas3","v":"U"},{"$f":"Kodo3Tekstas","v":"Nepateisinamai praleista"},null,null,{"$f":"Kodas4","v":"P"},{"$f":"Kodo4Tekstas","v":"Dalyvauta"},null,null,{"$f":"Kodas5","v":"N"},{"$f":"Kodo5Tekstas","v":"Nėra pamokų"}]
[]
[null,{"$f":"DATE(KalendoriniaiMetai+1,2,1)","v":"2013-02-01"},null,{"$f":"TEXT(WEEKDAY(DATE(KalendoriniaiMetai+1,2,1),1),\"[$-427]aaa\")","v":"1900"},{"$f":"TEXT(WEEKDAY(DATE(KalendoriniaiMetai+1,2,2),1),\"[$-427]aaa\")","v":"1900"},{"$f":"TEXT(WEEKDAY(DATE(KalendoriniaiMetai+1,2,3),1),\"[$-427]aaa\")","v":"1900"},{"$f":"TEXT(WEEKDAY(DATE(KalendoriniaiMetai+1,2,4),1),\"[$-427]aaa\")","v":"1900"},{"$f":"TEXT(WEEKDAY(DATE(KalendoriniaiMetai+1,2,5),1),\"[$-427]aaa\")","v":"1900"},{"$f":"TEXT(WEEKDAY(DATE(KalendoriniaiMetai+1,2,6),1),\"[$-427]aaa\")","v":"1900"},{"$f":"TEXT(WEEKDAY(DATE(KalendoriniaiMetai+1,2,7),1),\"[$-427]aaa\")","v":"1900"},{"$f":"TEXT(WEEKDAY(DATE(KalendoriniaiMetai+1,2,8),1),\"[$-427]aaa\")","v":"1900"},{"$f":"TEXT(WEEKDAY(DATE(KalendoriniaiMetai+1,2,9),1),\"[$-427]aaa\")","v":"1900"},{"$f":"TEXT(WEEKDAY(DATE(KalendoriniaiMetai+1,2,10),1),\"[$-427]aaa\")","v":"1900"},{"$f":"TEXT(WEEKDAY(DATE(KalendoriniaiMetai+1,2,11),1),\"[$-427]aaa\")","v":"1900"},{"$f":"TEXT(WEEKDAY(DATE(KalendoriniaiMetai+1,2,12),1),\"[$-427]aaa\")","v":"1900"},{"$f":"TEXT(WEEKDAY(DATE(KalendoriniaiMetai+1,2,13),1),\"[$-427]aaa\")","v":"1900"},{"$f":"TEXT(WEEKDAY(DATE(KalendoriniaiMetai+1,2,14),1),\"[$-427]aaa\")","v":"1900"},{"$f":"TEXT(WEEKDAY(DATE(KalendoriniaiMetai+1,2,15),1),\"[$-427]aaa\")","v":"1900"},{"$f":"TEXT(WEEKDAY(DATE(KalendoriniaiMetai+1,2,16),1),\"[$-427]aaa\")","v":"1900"},{"$f":"TEXT(WEEKDAY(DATE(KalendoriniaiMetai+1,2,17),1),\"[$-427]aaa\")","v":"1900"},{"$f":"TEXT(WEEKDAY(DATE(KalendoriniaiMetai+1,2,18),1),\"[$-427]aaa\")","v":"1900"},{"$f":"TEXT(WEEKDAY(DATE(KalendoriniaiMetai+1,2,19),1),\"[$-427]aaa\")","v":"1900"},{"$f":"TEXT(WEEKDAY(DATE(KalendoriniaiMetai+1,2,20),1),\"[$-427]aaa\")","v":"1900"},{"$f":"TEXT(WEEKDAY(DATE(KalendoriniaiMetai+1,2,21),1),\"[$-427]aaa\")","v":"1900"},{"$f":"TEXT(WEEKDAY(DATE(KalendoriniaiMetai+1,2,22),1),\"[$-427]aaa\")","v":"1900"},{"$f":"TEXT(WEEKDAY(DATE(KalendoriniaiMetai+1,2,23),1),\"[$-427]aaa\")","v":"1900"},{"$f":"TEXT(WEEKDAY(DATE(KalendoriniaiMetai+1,2,24),1),\"[$-427]aaa\")","v":"1900"},{"$f":"TEXT(WEEKDAY(DATE(KalendoriniaiMetai+1,2,25),1),\"[$-427]aaa\")","v":"1900"},{"$f":"TEXT(WEEKDAY(DATE(KalendoriniaiMetai+1,2,26),1),\"[$-427]aaa\")","v":"1900"},{"$f":"TEXT(WEEKDAY(DATE(KalendoriniaiMetai+1,2,27),1),\"[$-427]aaa\")","v":"1900"},{"$f":"TEXT(WEEKDAY(DATE(KalendoriniaiMetai+1,2,28),1),\"[$-427]aaa\")","v":"1900"},{"$f":"TEXT(WEEKDAY(DATE(KalendoriniaiMetai+1,2,29),1),\"[$-427]aaa\")","v":"1900"},null,null,"Sumos"]
[null,"Studento ID","Studento vardas ir pavardė","1","2","3","4","5","6","7","8","9","10","11","12","13","14","15","16","17","18","19","20","21","22","23","24","25","26","27","28","29","30","31","T","E","U","P","Praleista dienų"]
[null,null,{"$f":"IFERROR(VLOOKUP(#REF!,StudentųSąrašas[],18,FALSE),\"\")","v":""},{"$nulls":31},{"$f":"COUNTIF(VasarioLankomumas[[#This Row],[1]:[31]],Kodas1)","v":0},{"$f":"COUNTIF(VasarioLankomumas[[#This Row],[1]:[31]],Kodas2)","v":0},{"$f":"COUNTIF(VasarioLankomumas[[#This Row],[1]:[31]],Kodas3)","v":0},{"$f":"COUNTIF(VasarioLankomumas[[#This Row],[1]:[31]],Kodas4)","v":0},{"$f":"SUM(VasarioLankomumas[[#This Row],[E]:[U]])","v":0}]
[null,null,{"$f":"IFERROR(VLOOKUP(#REF!,StudentųSąrašas[],18,FALSE),\"\")","v":""},{"$nulls":31},{"$f":"COUNTIF(VasarioLankomumas[[#This Row],[1]:[31]],Kodas1)","v":0},{"$f":"COUNTIF(VasarioLankomumas[[#This Row],[1]:[31]],Kodas2)","v":0},{"$f":"COUNTIF(VasarioLankomumas[[#This Row],[1]:[31]],Kodas3)","v":0},{"$f":"COUNTIF(VasarioLankomumas[[#This Row],[1]:[31]],Kodas4)","v":0},{"$f":"SUM(VasarioLankomumas[[#This Row],[E]:[U]])","v":0}]
[null,null,{"$f":"IFERROR(VLOOKUP(#REF!,StudentųSąrašas[],18,FALSE),\"\")","v":""},{"$nulls":31},{"$f":"COUNTIF(VasarioLankomumas[[#This Row],[1]:[31]],Kodas1)","v":0},{"$f":"COUNTIF(VasarioLankomumas[[#This Row],[1]:[31]],Kodas2)","v":0},{"$f":"COUNTIF(VasarioLankomumas[[#This Row],[1]:[31]],Kodas3)","v":0},{"$f":"COUNTIF(VasarioLankomumas[[#This Row],[1]:[31]],Kodas4)","v":0},{"$f":"SUM(VasarioLankomumas[[#This Row],[E]:[U]])","v":0}]
[null,null,{"$f":"IFERROR(VLOOKUP(#REF!,StudentųSąrašas[],18,FALSE),\"\")","v":""},{"$nulls":31},{"$f":"COUNTIF(VasarioLankomumas[[#This Row],[1]:[31]],Kodas1)","v":0},{"$f":"COUNTIF(VasarioLankomumas[[#This Row],[1]:[31]],Kodas2)","v":0},{"$f":"COUNTIF(VasarioLankomumas[[#This Row],[1]:[31]],Kodas3)","v":0},{"$f":"COUNTIF(VasarioLankomumas[[#This Row],[1]:[31]],Kodas4)","v":0},{"$f":"SUM(VasarioLankomumas[[#This Row],[E]:[U]])","v":0}]
[null,null,{"$f":"IFERROR(VLOOKUP(#REF!,StudentųSąrašas[],18,FALSE),\"\")","v":""},{"$nulls":31},{"$f":"COUNTIF(VasarioLankomumas[[#This Row],[1]:[31]],Kodas1)","v":0},{"$f":"COUNTIF(VasarioLankomumas[[#This Row],[1]:[31]],Kodas2)","v":0},{"$f":"COUNTIF(VasarioLankomumas[[#This Row],[1]:[31]],Kodas3)","v":0},{"$f":"COUNTIF(VasarioLankomumas[[#This Row],[1]:[31]],Kodas4)","v":0},{"$f":"SUM(VasarioLankomumas[[#This Row],[E]:[U]])","v":0}]
[null,null,"Iš viso praleista dienų",{"$f":"COUNTIF(VasarioLankomumas[22],\"U\")+COUNTIF(VasarioLankomumas[22],\"E\")","v":0},{"$f":"COUNTIF(VasarioLankomumas[23],\"U\")+COUNTIF(VasarioLankomumas[23],\"E\")","v":0},{"$f":"COUNTIF(VasarioLankomumas[24],\"U\")+COUNTIF(VasarioLankomumas[24],\"E\")","v":0},{"$f":"COUNTIF(VasarioLankomumas[25],\"U\")+COUNTIF(VasarioLankomumas[25],\"E\")","v":0},{"$f":"COUNTIF(VasarioLankomumas[26],\"U\")+COUNTIF(VasarioLankomumas[26],\"E\")","v":0},{"$f":"COUNTIF(VasarioLankomumas[27],\"U\")+COUNTIF(VasarioLankomumas[27],\"E\")","v":0},{"$f":"COUNTIF(VasarioLankomumas[28],\"U\")+COUNTIF(VasarioLankomumas[28],\"E\")","v":0},{"$f":"COUNTIF(VasarioLankomumas[29],\"U\")+COUNTIF(VasarioLankomumas[29],\"E\")","v":0},{"$f":"COUNTIF(VasarioLankomumas[30],\"U\")+COUNTIF(VasarioLankomumas[30],\"E\")","v":0},{"$f":"COUNTIF(VasarioLankomumas[31],\"U\")+COUNTIF(VasarioLankomumas[31],\"E\")","v":0},{"$f":"COUNTIF(VasarioLankomumas[T],\"U\")+COUNTIF(VasarioLankomumas[T],\"E\")","v":0},{"$f":"COUNTIF(VasarioLankomumas[E],\"U\")+COUNTIF(VasarioLankomumas[E],\"E\")","v":0},{"$f":"COUNTIF(VasarioLankomumas[U],\"U\")+COUNTIF(VasarioLankomumas[U],\"E\")","v":0},{"$f":"COUNTIF(VasarioLankomumas[P],\"U\")+COUNTIF(VasarioLankomumas[P],\"E\")","v":0},{"$f":"COUNTIF(VasarioLankomumas[Praleista dienų],\"U\")+COUNTIF(VasarioLankomumas[Praleista dienų],\"E\")","v":0},{"$f":"COUNTIF(VasarioLankomumas[Studento ID],\"U\")+COUNTIF(VasarioLankomumas[Studento ID],\"E\")","v":0},{"$f":"COUNTIF(VasarioLankomumas[Studento vardas ir pavardė],\"U\")+COUNTIF(VasarioLankomumas[Studento vardas ir pavardė],\"E\")","v":0},{"$f":"COUNTIF(VasarioLankomumas[1],\"U\")+COUNTIF(VasarioLankomumas[1],\"E\")","v":0},{"$f":"COUNTIF(VasarioLankomumas[2],\"U\")+COUNTIF(VasarioLankomumas[2],\"E\")","v":0},{"$f":"COUNTIF(VasarioLankomumas[3],\"U\")+COUNTIF(VasarioLankomumas[3],\"E\")","v":0},{"$f":"COUNTIF(VasarioLankomumas[4],\"U\")+COUNTIF(VasarioLankomumas[4],\"E\")","v":0},{"$f":"COUNTIF(VasarioLankomumas[5],\"U\")+COUNTIF(VasarioLankomumas[5],\"E\")","v":0},{"$f":"COUNTIF(VasarioLankomumas[6],\"U\")+COUNTIF(VasarioLankomumas[6],\"E\")","v":0},{"$f":"COUNTIF(VasarioLankomumas[7],\"U\")+COUNTIF(VasarioLankomumas[7],\"E\")","v":0},{"$f":"COUNTIF(VasarioLankomumas[8],\"U\")+COUNTIF(VasarioLankomumas[8],\"E\")","v":0},{"$f":"COUNTIF(VasarioLankomumas[9],\"U\")+COUNTIF(VasarioLankomumas[9],\"E\")","v":0},{"$f":"COUNTIF(VasarioLankomumas[10],\"U\")+COUNTIF(VasarioLankomumas[10],\"E\")","v":0},{"$f":"COUNTIF(VasarioLankomumas[11],\"U\")+COUNTIF(VasarioLankomumas[11],\"E\")","v":0},{"$nulls":3},{"$f":"SUBTOTAL(109,VasarioLankomumas[T])","v":0},{"$f":"SUBTOTAL(109,VasarioLankomumas[E])","v":0},{"$f":"SUBTOTAL(109,VasarioLankomumas[U])","v":0},{"$f":"SUBTOTAL(109,VasarioLankomumas[P])","v":0},{"$f":"SUBTOTAL(109,VasarioLankomumas[Praleista dienų])","v":0}]
[{"$nulls":3},{"$f":"COUNTIF(VasarioLankomumas[1],\"U\")+COUNTIF(VasarioLankomumas[1],\"E\")","v":0},{"$f":"COUNTIF(VasarioLankomumas[2],\"U\")+COUNTIF(VasarioLankomumas[2],\"E\")","v":0},{"$f":"COUNTIF(VasarioLankomumas[3],\"U\")+COUNTIF(VasarioLankomumas[3],\"E\")","v":0},{"$f":"COUNTIF(VasarioLankomumas[4],\"U\")+COUNTIF(VasarioLankomumas[4],\"E\")","v":0},{"$f":"COUNTIF(VasarioLankomumas[5],\"U\")+COUNTIF(VasarioLankomumas[5],\"E\")","v":0},{"$f":"COUNTIF(VasarioLankomumas[6],\"U\")+COUNTIF(VasarioLankomumas[6],\"E\")","v":0},{"$f":"COUNTIF(VasarioLankomumas[7],\"U\")+COUNTIF(VasarioLankomumas[7],\"E\")","v":0},{"$f":"COUNTIF(VasarioLankomumas[8],\"U\")+COUNTIF(VasarioLankomumas[8],\"E\")","v":0},{"$f":"COUNTIF(VasarioLankomumas[9],\"U\")+COUNTIF(VasarioLankomumas[9],\"E\")","v":0},{"$f":"COUNTIF(VasarioLankomumas[10],\"U\")+COUNTIF(VasarioLankomumas[10],\"E\")","v":0},{"$f":"COUNTIF(VasarioLankomumas[11],\"U\")+COUNTIF(VasarioLankomumas[11],\"E\")","v":0},{"$f":"COUNTIF(VasarioLankomumas[12],\"U\")+COUNTIF(VasarioLankomumas[12],\"E\")","v":0},{"$f":"COUNTIF(VasarioLankomumas[13],\"U\")+COUNTIF(VasarioLankomumas[13],\"E\")","v":0},{"$f":"COUNTIF(VasarioLankomumas[14],\"U\")+COUNTIF(VasarioLankomumas[14],\"E\")","v":0},{"$f":"COUNTIF(VasarioLankomumas[15],\"U\")+COUNTIF(VasarioLankomumas[15],\"E\")","v":0},{"$f":"COUNTIF(VasarioLankomumas[16],\"U\")+COUNTIF(VasarioLankomumas[16],\"E\")","v":0},{"$f":"COUNTIF(VasarioLankomumas[17],\"U\")+COUNTIF(VasarioLankomumas[17],\"E\")","v":0},{"$f":"COUNTIF(VasarioLankomumas[18],\"U\")+COUNTIF(VasarioLankomumas[18],\"E\")","v":0},{"$f":"COUNTIF(VasarioLankomumas[19],\"U\")+COUNTIF(VasarioLankomumas[19],\"E\")","v":0},{"$f":"COUNTIF(VasarioLankomumas[20],\"U\")+COUNTIF(VasarioLankomumas[20],\"E\")","v":0},{"$f":"COUNTIF(VasarioLankomumas[21],\"U\")+COUNTIF(VasarioLankomumas[21],\"E\")","v":0},{"$f":"COUNTIF(VasarioLankomumas[22],\"U\")+COUNTIF(VasarioLankomumas[22],\"E\")","v":0},{"$f":"COUNTIF(VasarioLankomumas[23],\"U\")+COUNTIF(VasarioLankomumas[23],\"E\")","v":0},{"$f":"COUNTIF(VasarioLankomumas[24],\"U\")+COUNTIF(VasarioLankomumas[24],\"E\")","v":0},{"$f":"COUNTIF(VasarioLankomumas[25],\"U\")+COUNTIF(VasarioLankomumas[25],\"E\")","v":0},{"$f":"COUNTIF(VasarioLankomumas[26],\"U\")+COUNTIF(VasarioLankomumas[26],\"E\")","v":0},{"$f":"COUNTIF(VasarioLankomumas[27],\"U\")+COUNTIF(VasarioLankomumas[27],\"E\")","v":0},{"$f":"COUNTIF(VasarioLankomumas[28],\"U\")+COUNTIF(VasarioLankomumas[28],\"E\")","v":0},{"$f":"COUNTIF(VasarioLankomumas[29],\"U\")+COUNTIF(VasarioLankomumas[29],\"E\")","v":0},null,null,{"$f":"SUBTOTAL(109,VasarioLankomumas[T])","v":0},{"$f":"SUBTOTAL(109,VasarioLankomumas[E])","v":0},{"$f":"SUBTOTAL(109,VasarioLankomumas[U])","v":0},{"$f":"SUBTOTAL(109,VasarioLankomumas[P])","v":0}]

{"sheet":"Kovas","index":9,"n_rows":13,"n_cols":39,"rows_kept":13,"merged":[[4,34,4,38]]}
["STUDENTO LANKOMUMO ĮRAŠAS",{"$nulls":36},"Mokslo metai prasideda:",{"$f":"KalendoriniaiMetai","v":2012}]
[]
[null,null,{"$f":"SpalvinioRaktoTekstas","v":"SPALVŲ RAKTAS "},{"$f":"Kodas1","v":"T"},{"$f":"Kodo1Tekstas","v":"Pavėluota"},null,null,{"$f":"Kodas2","v":"E"},{"$f":"Kodo2Tekstas","v":"Pateisinamai praleista"},null,null,{"$f":"Kodas3","v":"U"},{"$f":"Kodo3Tekstas","v":"Nepateisinamai praleista"},null,null,{"$f":"Kodas4","v":"P"},{"$f":"Kodo4Tekstas","v":"Dalyvauta"},null,null,{"$f":"Kodas5","v":"N"},{"$f":"Kodo5Tekstas","v":"Nėra pamokų"}]
[]
[null,{"$f":"DATE(KalendoriniaiMetai+1,3,1)","v":"2013-03-01"},null,{"$f":"TEXT(WEEKDAY(DATE(KalendoriniaiMetai+1,3,1),1),\"[$-427]aaa\")","v":"1900"},{"$f":"TEXT(WEEKDAY(DATE(KalendoriniaiMetai+1,3,2),1),\"[$-427]aaa\")","v":"1900"},{"$f":"TEXT(WEEKDAY(DATE(KalendoriniaiMetai+1,3,3),1),\"[$-427]aaa\")","v":"1900"},{"$f":"TEXT(WEEKDAY(DATE(KalendoriniaiMetai+1,3,4),1),\"[$-427]aaa\")","v":"1900"},{"$f":"TEXT(WEEKDAY(DATE(KalendoriniaiMetai+1,3,5),1),\"[$-427]aaa\")","v":"1900"},{"$f":"TEXT(WEEKDAY(DATE(KalendoriniaiMetai+1,3,6),1),\"[$-427]aaa\")","v":"1900"},{"$f":"TEXT(WEEKDAY(DATE(KalendoriniaiMetai+1,3,7),1),\"[$-427]aaa\")","v":"1900"},{"$f":"TEXT(WEEKDAY(DATE(KalendoriniaiMetai+1,3,8),1),\"[$-427]aaa\")","v":"1900"},{"$f":"TEXT(WEEKDAY(DATE(KalendoriniaiMetai+1,3,9),1),\"[$-427]aaa\")","v":"1900"},{"$f":"TEXT(WEEKDAY(DATE(KalendoriniaiMetai+1,3,10),1),\"[$-427]aaa\")","v":"1900"},{"$f":"TEXT(WEEKDAY(DATE(KalendoriniaiMetai+1,3,11),1),\"[$-427]aaa\")","v":"1900"},{"$f":"TEXT(WEEKDAY(DATE(KalendoriniaiMetai+1,3,12),1),\"[$-427]aaa\")","v":"1900"},{"$f":"TEXT(WEEKDAY(DATE(KalendoriniaiMetai+1,3,13),1),\"[$-427]aaa\")","v":"1900"},{"$f":"TEXT(WEEKDAY(DATE(KalendoriniaiMetai+1,3,14),1),\"[$-427]aaa\")","v":"1900"},{"$f":"TEXT(WEEKDAY(DATE(KalendoriniaiMetai+1,3,15),1),\"[$-427]aaa\")","v":"1900"},{"$f":"TEXT(WEEKDAY(DATE(KalendoriniaiMetai+1,3,16),1),\"[$-427]aaa\")","v":"1900"},{"$f":"TEXT(WEEKDAY(DATE(KalendoriniaiMetai+1,3,17),1),\"[$-427]aaa\")","v":"1900"},{"$f":"TEXT(WEEKDAY(DATE(KalendoriniaiMetai+1,3,18),1),\"[$-427]aaa\")","v":"1900"},{"$f":"TEXT(WEEKDAY(DATE(KalendoriniaiMetai+1,3,19),1),\"[$-427]aaa\")","v":"1900"},{"$f":"TEXT(WEEKDAY(DATE(KalendoriniaiMetai+1,3,20),1),\"[$-427]aaa\")","v":"1900"},{"$f":"TEXT(WEEKDAY(DATE(KalendoriniaiMetai+1,3,21),1),\"[$-427]aaa\")","v":"1900"},{"$f":"TEXT(WEEKDAY(DATE(KalendoriniaiMetai+1,3,22),1),\"[$-427]aaa\")","v":"1900"},{"$f":"TEXT(WEEKDAY(DATE(KalendoriniaiMetai+1,3,23),1),\"[$-427]aaa\")","v":"1900"},{"$f":"TEXT(WEEKDAY(DATE(KalendoriniaiMetai+1,3,24),1),\"[$-427]aaa\")","v":"1900"},{"$f":"TEXT(WEEKDAY(DATE(KalendoriniaiMetai+1,3,25),1),\"[$-427]aaa\")","v":"1900"},{"$f":"TEXT(WEEKDAY(DATE(KalendoriniaiMetai+1,3,26),1),\"[$-427]aaa\")","v":"1900"},{"$f":"TEXT(WEEKDAY(DATE(KalendoriniaiMetai+1,3,27),1),\"[$-427]aaa\")","v":"1900"},{"$f":"TEXT(WEEKDAY(DATE(KalendoriniaiMetai+1,3,28),1),\"[$-427]aaa\")","v":"1900"},{"$f":"TEXT(WEEKDAY(DATE(KalendoriniaiMetai+1,3,29),1),\"[$-427]aaa\")","v":"1900"},{"$f":"TEXT(WEEKDAY(DATE(KalendoriniaiMetai+1,3,30),1),\"[$-427]aaa\")","v":"1900"},{"$f":"TEXT(WEEKDAY(DATE(KalendoriniaiMetai+1,3,31),1),\"[$-427]aaa\")","v":"1900"},"Sumos"]
[null,"Studento ID","Studento vardas ir pavardė","1","2","3","4","5","6","7","8","9","10","11","12","13","14","15","16","17","18","19","20","21","22","23","24","25","26","27","28","29","30","31","T","E","U","P","Praleista dienų"]
[null,null,{"$f":"IFERROR(VLOOKUP(#REF!,StudentųSąrašas[],18,FALSE),\"\")","v":""},{"$nulls":31},{"$f":"COUNTIF(KovoLankomumas[[#This Row],[1]:[31]],Kodas1)","v":0},{"$f":"COUNTIF(KovoLankomumas[[#This Row],[1]:[31]],Kodas2)","v":0},{"$f":"COUNTIF(KovoLankomumas[[#This Row],[1]:[31]],Kodas3)","v":0},{"$f":"COUNTIF(KovoLankomumas[[#This Row],[1]:[31]],Kodas4)","v":0},{"$f":"SUM(KovoLankomumas[[#This Row],[E]:[U]])","v":0}]
[null,null,{"$f":"IFERROR(VLOOKUP(#REF!,StudentųSąrašas[],18,FALSE),\"\")","v":""},{"$nulls":31},{"$f":"COUNTIF(KovoLankomumas[[#This Row],[1]:[31]],Kodas1)","v":0},{"$f":"COUNTIF(KovoLankomumas[[#This Row],[1]:[31]],Kodas2)","v":0},{"$f":"COUNTIF(KovoLankomumas[[#This Row],[1]:[31]],Kodas3)","v":0},{"$f":"COUNTIF(KovoLankomumas[[#This Row],[1]:[31]],Kodas4)","v":0},{"$f":"SUM(KovoLankomumas[[#This Row],[E]:[U]])","v":0}]
[null,null,{"$f":"IFERROR(VLOOKUP(#REF!,StudentųSąrašas[],18,FALSE),\"\")","v":""},{"$nulls":31},{"$f":"COUNTIF(KovoLankomumas[[#This Row],[1]:[31]],Kodas1)","v":0},{"$f":"COUNTIF(KovoLankomumas[[#This Row],[1]:[31]],Kodas2)","v":0},{"$f":"COUNTIF(KovoLankomumas[[#This Row],[1]:[31]],Kodas3)","v":0},{"$f":"COUNTIF(KovoLankomumas[[#This Row],[1]:[31]],Kodas4)","v":0},{"$f":"SUM(KovoLankomumas[[#This Row],[E]:[U]])","v":0}]
[null,null,{"$f":"IFERROR(VLOOKUP(#REF!,StudentųSąrašas[],18,FALSE),\"\")","v":""},{"$nulls":31},{"$f":"COUNTIF(KovoLankomumas[[#This Row],[1]:[31]],Kodas1)","v":0},{"$f":"COUNTIF(KovoLankomumas[[#This Row],[1]:[31]],Kodas2)","v":0},{"$f":"COUNTIF(KovoLankomumas[[#This Row],[1]:[31]],Kodas3)","v":0},{"$f":"COUNTIF(KovoLankomumas[[#This Row],[1]:[31]],Kodas4)","v":0},{"$f":"SUM(KovoLankomumas[[#This Row],[E]:[U]])","v":0}]
[null,null,{"$f":"IFERROR(VLOOKUP(#REF!,StudentųSąrašas[],18,FALSE),\"\")","v":""},{"$nulls":31},{"$f":"COUNTIF(KovoLankomumas[[#This Row],[1]:[31]],Kodas1)","v":0},{"$f":"COUNTIF(KovoLankomumas[[#This Row],[1]:[31]],Kodas2)","v":0},{"$f":"COUNTIF(KovoLankomumas[[#This Row],[1]:[31]],Kodas3)","v":0},{"$f":"COUNTIF(KovoLankomumas[[#This Row],[1]:[31]],Kodas4)","v":0},{"$f":"SUM(KovoLankomumas[[#This Row],[E]:[U]])","v":0}]
[null,null,"Iš viso praleista dienų",{"$f":"COUNTIF(KovoLankomumas[21],\"U\")+COUNTIF(KovoLankomumas[21],\"E\")","v":0},{"$f":"COUNTIF(KovoLankomumas[22],\"U\")+COUNTIF(KovoLankomumas[22],\"E\")","v":0},{"$f":"COUNTIF(KovoLankomumas[23],\"U\")+COUNTIF(KovoLankomumas[23],\"E\")","v":0},{"$f":"COUNTIF(KovoLankomumas[24],\"U\")+COUNTIF(KovoLankomumas[24],\"E\")","v":0},{"$f":"COUNTIF(KovoLankomumas[25],\"U\")+COUNTIF(KovoLankomumas[25],\"E\")","v":0},{"$f":"COUNTIF(KovoLankomumas[26],\"U\")+COUNTIF(KovoLankomumas[26],\"E\")","v":0},{"$f":"COUNTIF(KovoLankomumas[27],\"U\")+COUNTIF(KovoLankomumas[27],\"E\")","v":0},{"$f":"COUNTIF(KovoLankomumas[28],\"U\")+COUNTIF(KovoLankomumas[28],\"E\")","v":0},{"$f":"COUNTIF(KovoLankomumas[29],\"U\")+COUNTIF(KovoLankomumas[29],\"E\")","v":0},{"$f":"COUNTIF(KovoLankomumas[30],\"U\")+COUNTIF(KovoLankomumas[30],\"E\")","v":0},{"$f":"COUNTIF(KovoLankomumas[31],\"U\")+COUNTIF(KovoLankomumas[31],\"E\")","v":0},{"$f":"COUNTIF(KovoLankomumas[T],\"U\")+COUNTIF(KovoLankomumas[T],\"E\")","v":0},{"$f":"COUNTIF(KovoLankomumas[E],\"U\")+COUNTIF(KovoLankomumas[E],\"E\")","v":0},{"$f":"COUNTIF(KovoLankomumas[U],\"U\")+COUNTIF(KovoLankomumas[U],\"E\")","v":0},{"$f":"COUNTIF(KovoLankomumas[P],\"U\")+COUNTIF(KovoLankomumas[P],\"E\")","v":0},{"$f":"COUNTIF(KovoLankomumas[Praleista dienų],\"U\")+COUNTIF(KovoLankomumas[Praleista dienų],\"E\")","v":0},{"$f":"COUNTIF(KovoLankomumas[Studento ID],\"U\")+COUNTIF(KovoLankomumas[Studento ID],\"E\")","v":0},{"$f":"COUNTIF(KovoLankomumas[Studento vardas ir pavardė],\"U\")+COUNTIF(KovoLankomumas[Studento vardas ir pavardė],\"E\")","v":0},{"$f":"COUNTIF(KovoLankomumas[1],\"U\")+COUNTIF(KovoLankomumas[1],\"E\")","v":0},{"$f":"COUNTIF(KovoLankomumas[2],\"U\")+COUNTIF(KovoLankomumas[2],\"E\")","v":0},{"$f":"COUNTIF(KovoLankomumas[3],\"U\")+COUNTIF(KovoLankomumas[3],\"E\")","v":0},{"$f":"COUNTIF(KovoLankomumas[4],\"U\")+COUNTIF(KovoLankomumas[4],\"E\")","v":0},{"$f":"COUNTIF(KovoLankomumas[5],\"U\")+COUNTIF(KovoLankomumas[5],\"E\")","v":0},{"$f":"COUNTIF(KovoLankomumas[6],\"U\")+COUNTIF(KovoLankomumas[6],\"E\")","v":0},{"$f":"COUNTIF(KovoLankomumas[7],\"U\")+COUNTIF(KovoLankomumas[7],\"E\")","v":0},{"$f":"COUNTIF(KovoLankomumas[8],\"U\")+COUNTIF(KovoLankomumas[8],\"E\")","v":0},{"$f":"COUNTIF(KovoLankomumas[9],\"U\")+COUNTIF(KovoLankomumas[9],\"E\")","v":0},{"$f":"COUNTIF(KovoLankomumas[10],\"U\")+COUNTIF(KovoLankomumas[10],\"E\")","v":0},{"$f":"COUNTIF(KovoLankomumas[11],\"U\")+COUNTIF(KovoLankomumas[11],\"E\")","v":0},null,null,{"$f":"SUBTOTAL(109,KovoLankomumas[T])","v":0},{"$f":"SUBTOTAL(109,KovoLankomumas[E])","v":0},{"$f":"SUBTOTAL(109,KovoLankomumas[U])","v":0},{"$f":"SUBTOTAL(109,KovoLankomumas[P])","v":0},{"$f":"SUBTOTAL(109,KovoLankomumas[Praleista dienų])","v":0}]
[{"$nulls":3},{"$f":"COUNTIF(KovoLankomumas[1],\"U\")+COUNTIF(KovoLankomumas[1],\"E\")","v":0},{"$f":"COUNTIF(KovoLankomumas[2],\"U\")+COUNTIF(KovoLankomumas[2],\"E\")","v":0},{"$f":"COUNTIF(KovoLankomumas[3],\"U\")+COUNTIF(KovoLankomumas[3],\"E\")","v":0},{"$f":"COUNTIF(KovoLankomumas[4],\"U\")+COUNTIF(KovoLankomumas[4],\"E\")","v":0},{"$f":"COUNTIF(KovoLankomumas[5],\"U\")+COUNTIF(KovoLankomumas[5],\"E\")","v":0},{"$f":"COUNTIF(KovoLankomumas[6],\"U\")+COUNTIF(KovoLankomumas[6],\"E\")","v":0},{"$f":"COUNTIF(KovoLankomumas[7],\"U\")+COUNTIF(KovoLankomumas[7],\"E\")","v":0},{"$f":"COUNTIF(KovoLankomumas[8],\"U\")+COUNTIF(KovoLankomumas[8],\"E\")","v":0},{"$f":"COUNTIF(KovoLankomumas[9],\"U\")+COUNTIF(KovoLankomumas[9],\"E\")","v":0},{"$f":"COUNTIF(KovoLankomumas[10],\"U\")+COUNTIF(KovoLankomumas[10],\"E\")","v":0},{"$f":"COUNTIF(KovoLankomumas[11],\"U\")+COUNTIF(KovoLankomumas[11],\"E\")","v":0},{"$f":"COUNTIF(KovoLankomumas[12],\"U\")+COUNTIF(KovoLankomumas[12],\"E\")","v":0},{"$f":"COUNTIF(KovoLankomumas[13],\"U\")+COUNTIF(KovoLankomumas[13],\"E\")","v":0},{"$f":"COUNTIF(KovoLankomumas[14],\"U\")+COUNTIF(KovoLankomumas[14],\"E\")","v":0},{"$f":"COUNTIF(KovoLankomumas[15],\"U\")+COUNTIF(KovoLankomumas[15],\"E\")","v":0},{"$f":"COUNTIF(KovoLankomumas[16],\"U\")+COUNTIF(KovoLankomumas[16],\"E\")","v":0},{"$f":"COUNTIF(KovoLankomumas[17],\"U\")+COUNTIF(KovoLankomumas[17],\"E\")","v":0},{"$f":"COUNTIF(KovoLankomumas[18],\"U\")+COUNTIF(KovoLankomumas[18],\"E\")","v":0},{"$f":"COUNTIF(KovoLankomumas[19],\"U\")+COUNTIF(KovoLankomumas[19],\"E\")","v":0},{"$f":"COUNTIF(KovoLankomumas[20],\"U\")+COUNTIF(KovoLankomumas[20],\"E\")","v":0},{"$f":"COUNTIF(KovoLankomumas[21],\"U\")+COUNTIF(KovoLankomumas[21],\"E\")","v":0},{"$f":"COUNTIF(KovoLankomumas[22],\"U\")+COUNTIF(KovoLankomumas[22],\"E\")","v":0},{"$f":"COUNTIF(KovoLankomumas[23],\"U\")+COUNTIF(KovoLankomumas[23],\"E\")","v":0},{"$f":"COUNTIF(KovoLankomumas[24],\"U\")+COUNTIF(KovoLankomumas[24],\"E\")","v":0},{"$f":"COUNTIF(KovoLankomumas[25],\"U\")+COUNTIF(KovoLankomumas[25],\"E\")","v":0},{"$f":"COUNTIF(KovoLankomumas[26],\"U\")+COUNTIF(KovoLankomumas[26],\"E\")","v":0},{"$f":"COUNTIF(KovoLankomumas[27],\"U\")+COUNTIF(KovoLankomumas[27],\"E\")","v":0},{"$f":"COUNTIF(KovoLankomumas[28],\"U\")+COUNTIF(KovoLankomumas[28],\"E\")","v":0},{"$f":"COUNTIF(KovoLankomumas[29],\"U\")+COUNTIF(KovoLankomumas[29],\"E\")","v":0},null,null,{"$f":"SUBTOTAL(109,KovoLankomumas[T])","v":0},{"$f":"SUBTOTAL(109,KovoLankomumas[E])","v":0},{"$f":"SUBTOTAL(109,KovoLankomumas[U])","v":0},{"$f":"SUBTOTAL(109,KovoLankomumas[P])","v":0}]

{"sheet":"Balandis","index":10,"n_rows":13,"n_cols":39,"rows_kept":13,"merged":[[4,34,4,38]]}
["STUDENTO LANKOMUMO ĮRAŠAS",{"$nulls":36},"Mokslo metai prasideda:",{"$f":"KalendoriniaiMetai","v":2012}]
[]
[null,null,{"$f":"SpalvinioRaktoTekstas","v":"SPALVŲ RAKTAS "},{"$f":"Kodas1","v":"T"},{"$f":"Kodo1Tekstas","v":"Pavėluota"},null,null,{"$f":"Kodas2","v":"E"},{"$f":"Kodo2Tekstas","v":"Pateisinamai praleista"},null,null,{"$f":"Kodas3","v":"U"},{"$f":"Kodo3Tekstas","v":"Nepateisinamai praleista"},null,null,{"$f":"Kodas4","v":"P"},{"$f":"Kodo4Tekstas","v":"Dalyvauta"},null,null,{"$f":"Kodas5","v":"N"},{"$f":"Kodo5Tekstas","v":"Nėra pamokų"}]
[]
[null,{"$f":"DATE(KalendoriniaiMetai+1,4,1)","v":"2013-04-01"},null,{"$f":"TEXT(WEEKDAY(DATE(KalendoriniaiMetai+1,4,1),1),\"[$-427]aaa\")","v":"1900"},{"$f":"TEXT(WEEKDAY(DATE(KalendoriniaiMetai+1,4,2),1),\"[$-427]aaa\")","v":"1900"},{"$f":"TEXT(WEEKDAY(DATE(KalendoriniaiMetai+1,4,3),1),\"[$-427]aaa\")","v":"1900"},{"$f":"TEXT(WEEKDAY(DATE(KalendoriniaiMetai+1,4,4),1),\"[$-427]aaa\")","v":"1900"},{"$f":"TEXT(WEEKDAY(DATE(KalendoriniaiMetai+1,4,5),1),\"[$-427]aaa\")","v":"1900"},{"$f":"TEXT(WEEKDAY(DATE(KalendoriniaiMetai+1,4,6),1),\"[$-427]aaa\")","v":"1900"},{"$f":"TEXT(WEEKDAY(DATE(KalendoriniaiMetai+1,4,7),1),\"[$-427]aaa\")","v":"1900"},{"$f":"TEXT(WEEKDAY(DATE(KalendoriniaiMetai+1,4,8),1),\"[$-427]aaa\")","v":"1900"},{"$f":"TEXT(WEEKDAY(DATE(KalendoriniaiMetai+1,4,9),1),\"[$-427]aaa\")","v":"1900"},{"$f":"TEXT(WEEKDAY(DATE(KalendoriniaiMetai+1,4,10),1),\"[$-427]aaa\")","v":"1900"},{"$f":"TEXT(WEEKDAY(DATE(KalendoriniaiMetai+1,4,11),1),\"[$-427]aaa\")","v":"1900"},{"$f":"TEXT(WEEKDAY(DATE(KalendoriniaiMetai+1,4,12),1),\"[$-427]aaa\")","v":"1900"},{"$f":"TEXT(WEEKDAY(DATE(KalendoriniaiMetai+1,4,13),1),\"[$-427]aaa\")","v":"1900"},{"$f":"TEXT(WEEKDAY(DATE(KalendoriniaiMetai+1,4,14),1),\"[$-427]aaa\")","v":"1900"},{"$f":"TEXT(WEEKDAY(DATE(KalendoriniaiMetai+1,4,15),1),\"[$-427]aaa\")","v":"1900"},{"$f":"TEXT(WEEKDAY(DATE(KalendoriniaiMetai+1,4,16),1),\"[$-427]aaa\")","v":"1900"},{"$f":"TEXT(WEEKDAY(DATE(KalendoriniaiMetai+1,4,17),1),\"[$-427]aaa\")","v":"1900"},{"$f":"TEXT(WEEKDAY(DATE(KalendoriniaiMetai+1,4,18),1),\"[$-427]aaa\")","v":"1900"},{"$f":"TEXT(WEEKDAY(DATE(KalendoriniaiMetai+1,4,19),1),\"[$-427]aaa\")","v":"1900"},{"$f":"TEXT(WEEKDAY(DATE(KalendoriniaiMetai+1,4,20),1),\"[$-427]aaa\")","v":"1900"},{"$f":"TEXT(WEEKDAY(DATE(KalendoriniaiMetai+1,4,21),1),\"[$-427]aaa\")","v":"1900"},{"$f":"TEXT(WEEKDAY(DATE(KalendoriniaiMetai+1,4,22),1),\"[$-427]aaa\")","v":"1900"},{"$f":"TEXT(WEEKDAY(DATE(KalendoriniaiMetai+1,4,23),1),\"[$-427]aaa\")","v":"1900"},{"$f":"TEXT(WEEKDAY(DATE(KalendoriniaiMetai+1,4,24),1),\"[$-427]aaa\")","v":"1900"},{"$f":"TEXT(WEEKDAY(DATE(KalendoriniaiMetai+1,4,25),1),\"[$-427]aaa\")","v":"1900"},{"$f":"TEXT(WEEKDAY(DATE(KalendoriniaiMetai+1,4,26),1),\"[$-427]aaa\")","v":"1900"},{"$f":"TEXT(WEEKDAY(DATE(KalendoriniaiMetai+1,4,27),1),\"[$-427]aaa\")","v":"1900"},{"$f":"TEXT(WEEKDAY(DATE(KalendoriniaiMetai+1,4,28),1),\"[$-427]aaa\")","v":"1900"},{"$f":"TEXT(WEEKDAY(DATE(KalendoriniaiMetai+1,4,29),1),\"[$-427]aaa\")","v":"1900"},{"$f":"TEXT(WEEKDAY(DATE(KalendoriniaiMetai+1,4,30),1),\"[$-427]aaa\")","v":"1900"},null,"Sumos"]
[null,"Studento ID","Studento vardas ir pavardė","1","2","3","4","5","6","7","8","9","10","11","12","13","14","15","16","17","18","19","20","21","22","23","24","25","26","27","28","29","30"," ","T","E","U","P","Praleista dienų"]
[null,null,{"$f":"IFERROR(VLOOKUP(#REF!,StudentųSąrašas[],18,FALSE),\"\")","v":""},{"$nulls":31},{"$f":"COUNTIF(BalandžioLankomumas[[#This Row],[1]:[ ]],Kodas1)","v":0},{"$f":"COUNTIF(BalandžioLankomumas[[#This Row],[1]:[ ]],Kodas2)","v":0},{"$f":"COUNTIF(BalandžioLankomumas[[#This Row],[1]:[ ]],Kodas3)","v":0},{"$f":"COUNTIF(BalandžioLankomumas[[#This Row],[1]:[ ]],Kodas4)","v":0},{"$f":"SUM(BalandžioLankomumas[[#This Row],[E]:[U]])","v":0}]
[null,null,{"$f":"IFERROR(VLOOKUP(#REF!,StudentųSąrašas[],18,FALSE),\"\")","v":""},{"$nulls":31},{"$f":"COUNTIF(BalandžioLankomumas[[#This Row],[1]:[ ]],Kodas1)","v":0},{"$f":"COUNTIF(BalandžioLankomumas[[#This Row],[1]:[ ]],Kodas2)","v":0},{"$f":"COUNTIF(BalandžioLankomumas[[#This Row],[1]:[ ]],Kodas3)","v":0},{"$f":"COUNTIF(BalandžioLankomumas[[#This Row],[1]:[ ]],Kodas4)","v":0},{"$f":"SUM(BalandžioLankomumas[[#This Row],[E]:[U]])","v":0}]
[null,null,{"$f":"IFERROR(VLOOKUP(#REF!,StudentųSąrašas[],18,FALSE),\"\")","v":""},{"$nulls":31},{"$f":"COUNTIF(BalandžioLankomumas[[#This Row],[1]:[ ]],Kodas1)","v":0},{"$f":"COUNTIF(BalandžioLankomumas[[#This Row],[1]:[ ]],Kodas2)","v":0},{"$f":"COUNTIF(BalandžioLankomumas[[#This Row],[1]:[ ]],Kodas3)","v":0},{"$f":"COUNTIF(BalandžioLankomumas[[#This Row],[1]:[ ]],Kodas4)","v":0},{"$f":"SUM(BalandžioLankomumas[[#This Row],[E]:[U]])","v":0}]
[null,null,{"$f":"IFERROR(VLOOKUP(#REF!,StudentųSąrašas[],18,FALSE),\"\")","v":""},{"$nulls":31},{"$f":"COUNTIF(BalandžioLankomumas[[#This Row],[1]:[ ]],Kodas1)","v":0},{"$f":"COUNTIF(BalandžioLankomumas[[#This Row],[1]:[ ]],Kodas2)","v":0},{"$f":"COUNTIF(BalandžioLankomumas[[#This Row],[1]:[ ]],Kodas3)","v":0},{"$f":"COUNTIF(BalandžioLankomumas[[#This Row],[1]:[ ]],Kodas4)","v":0},{"$f":"SUM(BalandžioLankomumas[[#This Row],[E]:[U]])","v":0}]
[null,null,{"$f":"IFERROR(VLOOKUP(#REF!,StudentųSąrašas[],18,FALSE),\"\")","v":""},{"$nulls":31},{"$f":"COUNTIF(BalandžioLankomumas[[#This Row],[1]:[ ]],Kodas1)","v":0},{"$f":"COUNTIF(BalandžioLankomumas[[#This Row],[1]:[ ]],Kodas2)","v":0},{"$f":"COUNTIF(BalandžioLankomumas[[#This Row],[1]:[ ]],Kodas3)","v":0},{"$f":"COUNTIF(BalandžioLankomumas[[#This Row],[1]:[ ]],Kodas4)","v":0},{"$f":"SUM(BalandžioLankomumas[[#This Row],[E]:[U]])","v":0}]
[null,null,"Iš viso praleista dienų",{"$f":"COUNTIF(BalandžioLankomumas[11],\"U\")+COUNTIF(BalandžioLankomumas[11],\"E\")","v":0},{"$f":"COUNTIF(BalandžioLankomumas[12],\"U\")+COUNTIF(BalandžioLankomumas[12],\"E\")","v":0},{"$f":"COUNTIF(BalandžioLankomumas[13],\"U\")+COUNTIF(BalandžioLankomumas[13],\"E\")","v":0},{"$f":"COUNTIF(BalandžioLankomumas[14],\"U\")+COUNTIF(BalandžioLankomumas[14],\"E\")","v":0},{"$f":"COUNTIF(BalandžioLankomumas[15],\"U\")+COUNTIF(BalandžioLankomumas[15],\"E\")","v":0},{"$f":"COUNTIF(BalandžioLankomumas[16],\"U\")+COUNTIF(BalandžioLankomumas[16],\"E\")","v":0},{"$f":"COUNTIF(BalandžioLankomumas[17],\"U\")+COUNTIF(BalandžioLankomumas[17],\"E\")","v":0},{"$f":"COUNTIF(BalandžioLankomumas[18],\"U\")+COUNTIF(BalandžioLankomumas[18],\"E\")","v":0},{"$f":"COUNTIF(BalandžioLankomumas[19],\"U\")+COUNTIF(BalandžioLankomumas[19],\"E\")","v":0},{"$f":"COUNTIF(BalandžioLankomumas[20],\"U\")+COUNTIF(BalandžioLankomumas[20],\"E\")","v":0},{"$f":"COUNTIF(BalandžioLankomumas[21],\"U\")+COUNTIF(BalandžioLankomumas[21],\"E\")","v":0},{"$f":"COUNTIF(BalandžioLankomumas[22],\"U\")+COUNTIF(BalandžioLankomumas[22],\"E\")","v":0},{"$f":"COUNTIF(BalandžioLankomumas[23],\"U\")+COUNTIF(BalandžioLankomumas[23],\"E\")","v":0},{"$f":"COUNTIF(BalandžioLankomumas[24],\"U\")+COUNTIF(BalandžioLankomumas[24],\"E\")","v":0},{"$f":"COUNTIF(BalandžioLankomumas[25],\"U\")+COUNTIF(BalandžioLankomumas[25],\"E\")","v":0},{"$f":"COUNTIF(BalandžioLankomumas[26],\"U\")+COUNTIF(BalandžioLankomumas[26],\"E\")","v":0},{"$f":"COUNTIF(BalandžioLankomumas[27],\"U\")+COUNTIF(BalandžioLankomumas[27],\"E\")","v":0},{"$f":"COUNTIF(BalandžioLankomumas[28],\"U\")+COUNTIF(BalandžioLankomumas[28],\"E\")","v":0},{"$f":"COUNTIF(BalandžioLankomumas[29],\"U\")+COUNTIF(BalandžioLankomumas[29],\"E\")","v":0},{"$f":"COUNTIF(BalandžioLankomumas[30],\"U\")+COUNTIF(BalandžioLankomumas[30],\"E\")","v":0},{"$f":"COUNTIF(BalandžioLankomumas[[ ]],\"U\")+COUNTIF(BalandžioLankomumas[[ ]],\"E\")","v":0},{"$f":"COUNTIF(BalandžioLankomumas[T],\"U\")+COUNTIF(BalandžioLankomumas[T],\"E\")","v":0},{"$f":"COUNTIF(BalandžioLankomumas[E],\"U\")+COUNTIF(BalandžioLankomumas[E],\"E\")","v":0},{"$f":"COUNTIF(BalandžioLankomumas[U],\"U\")+COUNTIF(BalandžioLankomumas[U],\"E\")","v":0},{"$f":"COUNTIF(BalandžioLankomumas[P],\"U\")+COUNTIF(BalandžioLankomumas[P],\"E\")","v":0},{"$f":"COUNTIF(BalandžioLankomumas[Praleista dienų],\"U\")+COUNTIF(BalandžioLankomumas[Praleista dienų],\"E\")","v":0},{"$f":"COUNTIF(BalandžioLankomumas[Studento ID],\"U\")+COUNTIF(BalandžioLankomumas[Studento ID],\"E\")","v":0},{"$f":"COUNTIF(BalandžioLankomumas[Studento vardas ir pavardė],\"U\")+COUNTIF(BalandžioLankomumas[Studento vardas ir pavardė],\"E\")","v":0},{"$f":"COUNTIF(BalandžioLankomumas[1],\"U\")+COUNTIF(BalandžioLankomumas[1],\"E\")","v":0},null,null,{"$f":"SUBTOTAL(109,BalandžioLankomumas[T])","v":0},{"$f":"SUBTOTAL(109,BalandžioLankomumas[E])","v":0},{"$f":"SUBTOTAL(109,BalandžioLankomumas[U])","v":0},{"$f":"SUBTOTAL(109,BalandžioLankomumas[P])","v":0},{"$f":"SUBTOTAL(109,BalandžioLankomumas[Praleista dienų])","v":0}]
[{"$nulls":3},{"$f":"COUNTIF(BalandžioLankomumas[1],\"U\")+COUNTIF(BalandžioLankomumas[1],\"E\")","v":0},{"$f":"COUNTIF(BalandžioLankomumas[2],\"U\")+COUNTIF(BalandžioLankomumas[2],\"E\")","v":0},{"$f":"COUNTIF(BalandžioLankomumas[3],\"U\")+COUNTIF(BalandžioLankomumas[3],\"E\")","v":0},{"$f":"COUNTIF(BalandžioLankomumas[4],\"U\")+COUNTIF(BalandžioLankomumas[4],\"E\")","v":0},{"$f":"COUNTIF(BalandžioLankomumas[5],\"U\")+COUNTIF(BalandžioLankomumas[5],\"E\")","v":0},{"$f":"COUNTIF(BalandžioLankomumas[6],\"U\")+COUNTIF(BalandžioLankomumas[6],\"E\")","v":0},{"$f":"COUNTIF(BalandžioLankomumas[7],\"U\")+COUNTIF(BalandžioLankomumas[7],\"E\")","v":0},{"$f":"COUNTIF(BalandžioLankomumas[8],\"U\")+COUNTIF(BalandžioLankomumas[8],\"E\")","v":0},{"$f":"COUNTIF(BalandžioLankomumas[9],\"U\")+COUNTIF(BalandžioLankomumas[9],\"E\")","v":0},{"$f":"COUNTIF(BalandžioLankomumas[10],\"U\")+COUNTIF(BalandžioLankomumas[10],\"E\")","v":0},{"$f":"COUNTIF(BalandžioLankomumas[11],\"U\")+COUNTIF(BalandžioLankomumas[11],\"E\")","v":0},{"$f":"COUNTIF(BalandžioLankomumas[12],\"U\")+COUNTIF(BalandžioLankomumas[12],\"E\")","v":0},{"$f":"COUNTIF(BalandžioLankomumas[13],\"U\")+COUNTIF(BalandžioLankomumas[13],\"E\")","v":0},{"$f":"COUNTIF(BalandžioLankomumas[14],\"U\")+COUNTIF(BalandžioLankomumas[14],\"E\")","v":0},{"$f":"COUNTIF(BalandžioLankomumas[15],\"U\")+COUNTIF(BalandžioLankomumas[15],\"E\")","v":0},{"$f":"COUNTIF(BalandžioLankomumas[16],\"U\")+COUNTIF(BalandžioLankomumas[16],\"E\")","v":0},{"$f":"COUNTIF(BalandžioLankomumas[17],\"U\")+COUNTIF(BalandžioLankomumas[17],\"E\")","v":0},{"$f":"COUNTIF(BalandžioLankomumas[18],\"U\")+COUNTIF(BalandžioLankomumas[18],\"E\")","v":0},{"$f":"COUNTIF(BalandžioLankomumas[19],\"U\")+COUNTIF(BalandžioLankomumas[19],\"E\")","v":0},{"$f":"COUNTIF(BalandžioLankomumas[20],\"U\")+COUNTIF(BalandžioLankomumas[20],\"E\")","v":0},{"$f":"COUNTIF(BalandžioLankomumas[21],\"U\")+COUNTIF(BalandžioLankomumas[21],\"E\")","v":0},{"$f":"COUNTIF(BalandžioLankomumas[22],\"U\")+COUNTIF(BalandžioLankomumas[22],\"E\")","v":0},{"$f":"COUNTIF(BalandžioLankomumas[23],\"U\")+COUNTIF(BalandžioLankomumas[23],\"E\")","v":0},{"$f":"COUNTIF(BalandžioLankomumas[24],\"U\")+COUNTIF(BalandžioLankomumas[24],\"E\")","v":0},{"$f":"COUNTIF(BalandžioLankomumas[25],\"U\")+COUNTIF(BalandžioLankomumas[25],\"E\")","v":0},{"$f":"COUNTIF(BalandžioLankomumas[26],\"U\")+COUNTIF(BalandžioLankomumas[26],\"E\")","v":0},{"$f":"COUNTIF(BalandžioLankomumas[27],\"U\")+COUNTIF(BalandžioLankomumas[27],\"E\")","v":0},{"$f":"COUNTIF(BalandžioLankomumas[28],\"U\")+COUNTIF(BalandžioLankomumas[28],\"E\")","v":0},{"$f":"COUNTIF(BalandžioLankomumas[29],\"U\")+COUNTIF(BalandžioLankomumas[29],\"E\")","v":0},null,null,{"$f":"SUBTOTAL(109,BalandžioLankomumas[T])","v":0},{"$f":"SUBTOTAL(109,BalandžioLankomumas[E])","v":0},{"$f":"SUBTOTAL(109,BalandžioLankomumas[U])","v":0},{"$f":"SUBTOTAL(109,BalandžioLankomumas[P])","v":0}]

{"sheet":"Gegužė","index":11,"n_rows":13,"n_cols":39,"rows_kept":13,"merged":[[4,34,4,38]]}
["STUDENTO LANKOMUMO ĮRAŠAS",{"$nulls":36},"Mokslo metai prasideda:",{"$f":"KalendoriniaiMetai","v":2012}]
[]
[null,null,{"$f":"SpalvinioRaktoTekstas","v":"SPALVŲ RAKTAS "},{"$f":"Kodas1","v":"T"},{"$f":"Kodo1Tekstas","v":"Pavėluota"},null,null,{"$f":"Kodas2","v":"E"},{"$f":"Kodo2Tekstas","v":"Pateisinamai praleista"},null,null,{"$f":"Kodas3","v":"U"},{"$f":"Kodo3Tekstas","v":"Nepateisinamai praleista"},null,null,{"$f":"Kodas4","v":"P"},{"$f":"Kodo4Tekstas","v":"Dalyvauta"},null,null,{"$f":"Kodas5","v":"N"},{"$f":"Kodo5Tekstas","v":"Nėra pamokų"}]
[]
[null,{"$f":"DATE(KalendoriniaiMetai+1,5,1)","v":"2013-05-01"},null,{"$f":"TEXT(WEEKDAY(DATE(KalendoriniaiMetai+1,5,1),1),\"[$-427]aaa\")","v":"1900"},{"$f":"TEXT(WEEKDAY(DATE(KalendoriniaiMetai+1,5,2),1),\"[$-427]aaa\")","v":"1900"},{"$f":"TEXT(WEEKDAY(DATE(KalendoriniaiMetai+1,5,3),1),\"[$-427]aaa\")","v":"1900"},{"$f":"TEXT(WEEKDAY(DATE(KalendoriniaiMetai+1,5,4),1),\"[$-427]aaa\")","v":"1900"},{"$f":"TEXT(WEEKDAY(DATE(KalendoriniaiMetai+1,5,5),1),\"[$-427]aaa\")","v":"1900"},{"$f":"TEXT(WEEKDAY(DATE(KalendoriniaiMetai+1,5,6),1),\"[$-427]aaa\")","v":"1900"},{"$f":"TEXT(WEEKDAY(DATE(KalendoriniaiMetai+1,5,7),1),\"[$-427]aaa\")","v":"1900"},{"$f":"TEXT(WEEKDAY(DATE(KalendoriniaiMetai+1,5,8),1),\"[$-427]aaa\")","v":"1900"},{"$f":"TEXT(WEEKDAY(DATE(KalendoriniaiMetai+1,5,9),1),\"[$-427]aaa\")","v":"1900"},{"$f":"TEXT(WEEKDAY(DATE(KalendoriniaiMetai+1,5,10),1),\"[$-427]aaa\")","v":"1900"},{"$f":"TEXT(WEEKDAY(DATE(KalendoriniaiMetai+1,5,11),1),\"[$-427]aaa\")","v":"1900"},{"$f":"TEXT(WEEKDAY(DATE(KalendoriniaiMetai+1,5,12),1),\"[$-427]aaa\")","v":"1900"},{"$f":"TEXT(WEEKDAY(DATE(KalendoriniaiMetai+1,5,13),1),\"[$-427]aaa\")","v":"1900"},{"$f":"TEXT(WEEKDAY(DATE(KalendoriniaiMetai+1,5,14),1),\"[$-427]aaa\")","v":"1900"},{"$f":"TEXT(WEEKDAY(DATE(KalendoriniaiMetai+1,5,15),1),\"[$-427]aaa\")","v":"1900"},{"$f":"TEXT(WEEKDAY(DATE(KalendoriniaiMetai+1,5,16),1),\"[$-427]aaa\")","v":"1900"},{"$f":"TEXT(WEEKDAY(DATE(KalendoriniaiMetai+1,5,17),1),\"[$-427]aaa\")","v":"1900"},{"$f":"TEXT(WEEKDAY(DATE(KalendoriniaiMetai+1,5,18),1),\"[$-427]aaa\")","v":"1900"},{"$f":"TEXT(WEEKDAY(DATE(KalendoriniaiMetai+1,5,19),1),\"[$-427]aaa\")","v":"1900"},{"$f":"TEXT(WEEKDAY(DATE(KalendoriniaiMetai+1,5,20),1),\"[$-427]aaa\")","v":"1900"},{"$f":"TEXT(WEEKDAY(DATE(KalendoriniaiMetai+1,5,21),1),\"[$-427]aaa\")","v":"1900"},{"$f":"TEXT(WEEKDAY(DATE(KalendoriniaiMetai+1,5,22),1),\"[$-427]aaa\")","v":"1900"},{"$f":"TEXT(WEEKDAY(DATE(KalendoriniaiMetai+1,5,23),1),\"[$-427]aaa\")","v":"1900"},{"$f":"TEXT(WEEKDAY(DATE(KalendoriniaiMetai+1,5,24),1),\"[$-427]aaa\")","v":"1900"},{"$f":"TEXT(WEEKDAY(DATE(KalendoriniaiMetai+1,5,25),1),\"[$-427]aaa\")","v":"1900"},{"$f":"TEXT(WEEKDAY(DATE(KalendoriniaiMetai+1,5,26),1),\"[$-427]aaa\")","v":"1900"},{"$f":"TEXT(WEEKDAY(DATE(KalendoriniaiMetai+1,5,27),1),\"[$-427]aaa\")","v":"1900"},{"$f":"TEXT(WEEKDAY(DATE(KalendoriniaiMetai+1,5,28),1),\"[$-427]aaa\")","v":"1900"},{"$f":"TEXT(WEEKDAY(DATE(KalendoriniaiMetai+1,5,29),1),\"[$-427]aaa\")","v":"1900"},{"$f":"TEXT(WEEKDAY(DATE(KalendoriniaiMetai+1,5,30),1),\"[$-427]aaa\")","v":"1900"},{"$f":"TEXT(WEEKDAY(DATE(KalendoriniaiMetai+1,5,31),1),\"[$-427]aaa\")","v":"1900"},"Sumos"]
[null,"Studento ID","Studento vardas ir pavardė","1","2","3","4","5","6","7","8","9","10","11","12","13","14","15","16","17","18","19","20","21","22","23","24","25","26","27","28","29","30","31","T","E","U","P","Praleista dienų"]
[null,null,{"$f":"IFERROR(VLOOKUP(#REF!,StudentųSąrašas[],18,FALSE),\"\")","v":""},{"$nulls":31},{"$f":"COUNTIF(GegužėsLankomumas[[#This Row],[1]:[31]],Kodas1)","v":0},{"$f":"COUNTIF(GegužėsLankomumas[[#This Row],[1]:[31]],Kodas2)","v":0},{"$f":"COUNTIF(GegužėsLankomumas[[#This Row],[1]:[31]],Kodas3)","v":0},{"$f":"COUNTIF(GegužėsLankomumas[[#This Row],[1]:[31]],Kodas4)","v":0},{"$f":"SUM(GegužėsLankomumas[[#This Row],[E]:[U]])","v":0}]
[null,null,{"$f":"IFERROR(VLOOKUP(#REF!,StudentųSąrašas[],18,FALSE),\"\")","v":""},{"$nulls":31},{"$f":"COUNTIF(GegužėsLankomumas[[#This Row],[1]:[31]],Kodas1)","v":0},{"$f":"COUNTIF(GegužėsLankomumas[[#This Row],[1]:[31]],Kodas2)","v":0},{"$f":"COUNTIF(GegužėsLankomumas[[#This Row],[1]:[31]],Kodas3)","v":0},{"$f":"COUNTIF(GegužėsLankomumas[[#This Row],[1]:[31]],Kodas4)","v":0},{"$f":"SUM(GegužėsLankomumas[[#This Row],[E]:[U]])","v":0}]
[null,null,{"$f":"IFERROR(VLOOKUP(#REF!,StudentųSąrašas[],18,FALSE),\"\")","v":""},{"$nulls":31},{"$f":"COUNTIF(GegužėsLankomumas[[#This Row],[1]:[31]],Kodas1)","v":0},{"$f":"COUNTIF(GegužėsLankomumas[[#This Row],[1]:[31]],Kodas2)","v":0},{"$f":"COUNTIF(GegužėsLankomumas[[#This Row],[1]:[31]],Kodas3)","v":0},{"$f":"COUNTIF(GegužėsLankomumas[[#This Row],[1]:[31]],Kodas4)","v":0},{"$f":"SUM(GegužėsLankomumas[[#This Row],[E]:[U]])","v":0}]
[null,null,{"$f":"IFERROR(VLOOKUP(#REF!,StudentųSąrašas[],18,FALSE),\"\")","v":""},{"$nulls":31},{"$f":"COUNTIF(GegužėsLankomumas[[#This Row],[1]:[31]],Kodas1)","v":0},{"$f":"COUNTIF(GegužėsLankomumas[[#This Row],[1]:[31]],Kodas2)","v":0},{"$f":"COUNTIF(GegužėsLankomumas[[#This Row],[1]:[31]],Kodas3)","v":0},{"$f":"COUNTIF(GegužėsLankomumas[[#This Row],[1]:[31]],Kodas4)","v":0},{"$f":"SUM(GegužėsLankomumas[[#This Row],[E]:[U]])","v":0}]
[null,null,{"$f":"IFERROR(VLOOKUP(#REF!,StudentųSąrašas[],18,FALSE),\"\")","v":""},{"$nulls":31},{"$f":"COUNTIF(GegužėsLankomumas[[#This Row],[1]:[31]],Kodas1)","v":0},{"$f":"COUNTIF(GegužėsLankomumas[[#This Row],[1]:[31]],Kodas2)","v":0},{"$f":"COUNTIF(GegužėsLankomumas[[#This Row],[1]:[31]],Kodas3)","v":0},{"$f":"COUNTIF(GegužėsLankomumas[[#This Row],[1]:[31]],Kodas4)","v":0},{"$f":"SUM(GegužėsLankomumas[[#This Row],[E]:[U]])","v":0}]
[null,null,"Iš viso praleista dienų",{"$f":"COUNTIF(GegužėsLankomumas[11],\"U\")+COUNTIF(GegužėsLankomumas[11],\"E\")","v":0},{"$f":"COUNTIF(GegužėsLankomumas[12],\"U\")+COUNTIF(GegužėsLankomumas[12],\"E\")","v":0},{"$f":"COUNTIF(GegužėsLankomumas[13],\"U\")+COUNTIF(GegužėsLankomumas[13],\"E\")","v":0},{"$f":"COUNTIF(GegužėsLankomumas[14],\"U\")+COUNTIF(GegužėsLankomumas[14],\"E\")","v":0},{"$f":"COUNTIF(GegužėsLankomumas[15],\"U\")+COUNTIF(GegužėsLankomumas[15],\"E\")","v":0},{"$f":"COUNTIF(GegužėsLankomumas[16],\"U\")+COUNTIF(GegužėsLankomumas[16],\"E\")","v":0},{"$f":"COUNTIF(GegužėsLankomumas[17],\"U\")+COUNTIF(GegužėsLankomumas[17],\"E\")","v":0},{"$f":"COUNTIF(GegužėsLankomumas[18],\"U\")+COUNTIF(GegužėsLankomumas[18],\"E\")","v":0},{"$f":"COUNTIF(GegužėsLankomumas[19],\"U\")+COUNTIF(GegužėsLankomumas[19],\"E\")","v":0},{"$f":"COUNTIF(GegužėsLankomumas[20],\"U\")+COUNTIF(GegužėsLankomumas[20],\"E\")","v":0},{"$f":"COUNTIF(GegužėsLankomumas[21],\"U\")+COUNTIF(GegužėsLankomumas[21],\"E\")","v":0},{"$f":"COUNTIF(GegužėsLankomumas[22],\"U\")+COUNTIF(GegužėsLankomumas[22],\"E\")","v":0},{"$f":"COUNTIF(GegužėsLankomumas[23],\"U\")+COUNTIF(GegužėsLankomumas[23],\"E\")","v":0},{"$f":"COUNTIF(GegužėsLankomumas[24],\"U\")+COUNTIF(GegužėsLankomumas[24],\"E\")","v":0},{"$f":"COUNTIF(GegužėsLankomumas[25],\"U\")+COUNTIF(GegužėsLankomumas[25],\"E\")","v":0},{"$f":"COUNTIF(GegužėsLankomumas[26],\"U\")+COUNTIF(GegužėsLankomumas[26],\"E\")","v":0},{"$f":"COUNTIF(GegužėsLankomumas[27],\"U\")+COUNTIF(GegužėsLankomumas[27],\"E\")","v":0},{"$f":"COUNTIF(GegužėsLankomumas[28],\"U\")+COUNTIF(GegužėsLankomumas[28],\"E\")","v":0},{"$f":"COUNTIF(GegužėsLankomumas[29],\"U\")+COUNTIF(GegužėsLankomumas[29],\"E\")","v":0},{"$f":"COUNTIF(GegužėsLankomumas[30],\"U\")+COUNTIF(GegužėsLankomumas[30],\"E\")","v":0},{"$f":"COUNTIF(GegužėsLankomumas[31],\"U\")+COUNTIF(GegužėsLankomumas[31],\"E\")","v":0},{"$f":"COUNTIF(GegužėsLankomumas[T],\"U\")+COUNTIF(GegužėsLankomumas[T],\"E\")","v":0},{"$f":"COUNTIF(GegužėsLankomumas[E],\"U\")+COUNTIF(GegužėsLankomumas[E],\"E\")","v":0},{"$f":"COUNTIF(GegužėsLankomumas[U],\"U\")+COUNTIF(GegužėsLankomumas[U],\"E\")","v":0},{"$f":"COUNTIF(GegužėsLankomumas[P],\"U\")+COUNTIF(GegužėsLankomumas[P],\"E\")","v":0},{"$f":"COUNTIF(GegužėsLankomumas[Praleista dienų],\"U\")+COUNTIF(GegužėsLankomumas[Praleista dienų],\"E\")","v":0},{"$f":"COUNTIF(GegužėsLankomumas[Studento ID],\"U\")+COUNTIF(GegužėsLankomumas[Studento ID],\"E\")","v":0},{"$f":"COUNTIF(GegužėsLankomumas[Studento vardas ir pavardė],\"U\")+COUNTIF(GegužėsLankomumas[Studento vardas ir pavardė],\"E\")","v":0},{"$f":"COUNTIF(GegužėsLankomumas[1],\"U\")+COUNTIF(GegužėsLankomumas[1],\"E\")","v":0},null,null,{"$f":"SUBTOTAL(109,GegužėsLankomumas[T])","v":0},{"$f":"SUBTOTAL(109,GegužėsLankomumas[E])","v":0},{"$f":"SUBTOTAL(109,GegužėsLankomumas[U])","v":0},{"$f":"SUBTOTAL(109,GegužėsLankomumas[P])","v":0},{"$f":"SUBTOTAL(109,GegužėsLankomumas[Praleista dienų])","v":0}]
[{"$nulls":3},{"$f":"COUNTIF(GegužėsLankomumas[1],\"U\")+COUNTIF(GegužėsLankomumas[1],\"E\")","v":0},{"$f":"COUNTIF(GegužėsLankomumas[2],\"U\")+COUNTIF(GegužėsLankomumas[2],\"E\")","v":0},{"$f":"COUNTIF(GegužėsLankomumas[3],\"U\")+COUNTIF(GegužėsLankomumas[3],\"E\")","v":0},{"$f":"COUNTIF(GegužėsLankomumas[4],\"U\")+COUNTIF(GegužėsLankomumas[4],\"E\")","v":0},{"$f":"COUNTIF(GegužėsLankomumas[5],\"U\")+COUNTIF(GegužėsLankomumas[5],\"E\")","v":0},{"$f":"COUNTIF(GegužėsLankomumas[6],\"U\")+COUNTIF(GegužėsLankomumas[6],\"E\")","v":0},{"$f":"COUNTIF(GegužėsLankomumas[7],\"U\")+COUNTIF(GegužėsLankomumas[7],\"E\")","v":0},{"$f":"COUNTIF(GegužėsLankomumas[8],\"U\")+COUNTIF(GegužėsLankomumas[8],\"E\")","v":0},{"$f":"COUNTIF(GegužėsLankomumas[9],\"U\")+COUNTIF(GegužėsLankomumas[9],\"E\")","v":0},{"$f":"COUNTIF(GegužėsLankomumas[10],\"U\")+COUNTIF(GegužėsLankomumas[10],\"E\")","v":0},{"$f":"COUNTIF(GegužėsLankomumas[11],\"U\")+COUNTIF(GegužėsLankomumas[11],\"E\")","v":0},{"$f":"COUNTIF(GegužėsLankomumas[12],\"U\")+COUNTIF(GegužėsLankomumas[12],\"E\")","v":0},{"$f":"COUNTIF(GegužėsLankomumas[13],\"U\")+COUNTIF(GegužėsLankomumas[13],\"E\")","v":0},{"$f":"COUNTIF(GegužėsLankomumas[14],\"U\")+COUNTIF(GegužėsLankomumas[14],\"E\")","v":0},{"$f":"COUNTIF(GegužėsLankomumas[15],\"U\")+COUNTIF(GegužėsLankomumas[15],\"E\")","v":0},{"$f":"COUNTIF(GegužėsLankomumas[16],\"U\")+COUNTIF(GegužėsLankomumas[16],\"E\")","v":0},{"$f":"COUNTIF(GegužėsLankomumas[17],\"U\")+COUNTIF(GegužėsLankomumas[17],\"E\")","v":0},{"$f":"COUNTIF(GegužėsLankomumas[18],\"U\")+COUNTIF(GegužėsLankomumas[18],\"E\")","v":0},{"$f":"COUNTIF(GegužėsLankomumas[19],\"U\")+COUNTIF(GegužėsLankomumas[19],\"E\")","v":0},{"$f":"COUNTIF(GegužėsLankomumas[20],\"U\")+COUNTIF(GegužėsLankomumas[20],\"E\")","v":0},{"$f":"COUNTIF(GegužėsLankomumas[21],\"U\")+COUNTIF(GegužėsLankomumas[21],\"E\")","v":0},{"$f":"COUNTIF(GegužėsLankomumas[22],\"U\")+COUNTIF(GegužėsLankomumas[22],\"E\")","v":0},{"$f":"COUNTIF(GegužėsLankomumas[23],\"U\")+COUNTIF(GegužėsLankomumas[23],\"E\")","v":0},{"$f":"COUNTIF(GegužėsLankomumas[24],\"U\")+COUNTIF(GegužėsLankomumas[24],\"E\")","v":0},{"$f":"COUNTIF(GegužėsLankomumas[25],\"U\")+COUNTIF(GegužėsLankomumas[25],\"E\")","v":0},{"$f":"COUNTIF(GegužėsLankomumas[26],\"U\")+COUNTIF(GegužėsLankomumas[26],\"E\")","v":0},{"$f":"COUNTIF(GegužėsLankomumas[27],\"U\")+COUNTIF(GegužėsLankomumas[27],\"E\")","v":0},{"$f":"COUNTIF(GegužėsLankomumas[28],\"U\")+COUNTIF(GegužėsLankomumas[28],\"E\")","v":0},{"$f":"COUNTIF(GegužėsLankomumas[29],\"U\")+COUNTIF(GegužėsLankomumas[29],\"E\")","v":0},null,null,{"$f":"SUBTOTAL(109,GegužėsLankomumas[T])","v":0},{"$f":"SUBTOTAL(109,GegužėsLankomumas[E])","v":0},{"$f":"SUBTOTAL(109,GegužėsLankomumas[U])","v":0},{"$f":"SUBTOTAL(109,GegužėsLankomumas[P])","v":0}]

{"sheet":"Birželis","index":12,"n_rows":13,"n_cols":39,"rows_kept":13,"merged":[[4,34,4,38]]}
["STUDENTO LANKOMUMO ĮRAŠAS",{"$nulls":36},"Mokslo metai prasideda:",{"$f":"KalendoriniaiMetai","v":2012}]
[]
[null,null,{"$f":"SpalvinioRaktoTekstas","v":"SPALVŲ RAKTAS "},{"$f":"Kodas1","v":"T"},{"$f":"Kodo1Tekstas","v":"Pavėluota"},null,null,{"$f":"Kodas2","v":"E"},{"$f":"Kodo2Tekstas","v":"Pateisinamai praleista"},null,null,{"$f":"Kodas3","v":"U"},{"$f":"Kodo3Tekstas","v":"Nepateisinamai praleista"},null,null,{"$f":"Kodas4","v":"P"},{"$f":"Kodo4Tekstas","v":"Dalyvauta"},null,null,{"$f":"Kodas5","v":"N"},{"$f":"Kodo5Tekstas","v":"Nėra pamokų"}]
[]
[null,{"$f":"DATE(KalendoriniaiMetai+1,6,1)","v":"2013-06-01"},null,{"$f":"TEXT(WEEKDAY(DATE(KalendoriniaiMetai+1,6,1),1),\"[$-427]aaa\")","v":"1900"},{"$f":"TEXT(WEEKDAY(DATE(KalendoriniaiMetai+1,6,2),1),\"[$-427]aaa\")","v":"1900"},{"$f":"TEXT(WEEKDAY(DATE(KalendoriniaiMetai+1,6,3),1),\"[$-427]aaa\")","v":"1900"},{"$f":"TEXT(WEEKDAY(DATE(KalendoriniaiMetai+1,6,4),1),\"[$-427]aaa\")","v":"1900"},{"$f":"TEXT(WEEKDAY(DATE(KalendoriniaiMetai+1,6,5),1),\"[$-427]aaa\")","v":"1900"},{"$f":"TEXT(WEEKDAY(DATE(KalendoriniaiMetai+1,6,6),1),\"[$-427]aaa\")","v":"1900"},{"$f":"TEXT(WEEKDAY(DATE(KalendoriniaiMetai+1,6,7),1),\"[$-427]aaa\")","v":"1900"},{"$f":"TEXT(WEEKDAY(DATE(KalendoriniaiMetai+1,6,8),1),\"[$-427]aaa\")","v":"1900"},{"$f":"TEXT(WEEKDAY(DATE(KalendoriniaiMetai+1,6,9),1),\"[$-427]aaa\")","v":"1900"},{"$f":"TEXT(WEEKDAY(DATE(KalendoriniaiMetai+1,6,10),1),\"[$-427]aaa\")","v":"1900"},{"$f":"TEXT(WEEKDAY(DATE(KalendoriniaiMetai+1,6,11),1),\"[$-427]aaa\")","v":"1900"},{"$f":"TEXT(WEEKDAY(DATE(KalendoriniaiMetai+1,6,12),1),\"[$-427]aaa\")","v":"1900"},{"$f":"TEXT(WEEKDAY(DATE(KalendoriniaiMetai+1,6,13),1),\"[$-427]aaa\")","v":"1900"},{"$f":"TEXT(WEEKDAY(DATE(KalendoriniaiMetai+1,6,14),1),\"[$-427]aaa\")","v":"1900"},{"$f":"TEXT(WEEKDAY(DATE(KalendoriniaiMetai+1,6,15),1),\"[$-427]aaa\")","v":"1900"},{"$f":"TEXT(WEEKDAY(DATE(KalendoriniaiMetai+1,6,16),1),\"[$-427]aaa\")","v":"1900"},{"$f":"TEXT(WEEKDAY(DATE(KalendoriniaiMetai+1,6,17),1),\"[$-427]aaa\")","v":"1900"},{"$f":"TEXT(WEEKDAY(DATE(KalendoriniaiMetai+1,6,18),1),\"[$-427]aaa\")","v":"1900"},{"$f":"TEXT(WEEKDAY(DATE(KalendoriniaiMetai+1,6,19),1),\"[$-427]aaa\")","v":"1900"},{"$f":"TEXT(WEEKDAY(DATE(KalendoriniaiMetai+1,6,20),1),\"[$-427]aaa\")","v":"1900"},{"$f":"TEXT(WEEKDAY(DATE(KalendoriniaiMetai+1,6,21),1),\"[$-427]aaa\")","v":"1900"},{"$f":"TEXT(WEEKDAY(DATE(KalendoriniaiMetai+1,6,22),1),\"[$-427]aaa\")","v":"1900"},{"$f":"TEXT(WEEKDAY(DATE(KalendoriniaiMetai+1,6,23),1),\"[$-427]aaa\")","v":"1900"},{"$f":"TEXT(WEEKDAY(DATE(KalendoriniaiMetai+1,6,24),1),\"[$-427]aaa\")","v":"1900"},{"$f":"TEXT(WEEKDAY(DATE(KalendoriniaiMetai+1,6,25),1),\"[$-427]aaa\")","v":"1900"},{"$f":"TEXT(WEEKDAY(DATE(KalendoriniaiMetai+1,6,26),1),\"[$-427]aaa\")","v":"1900"},{"$f":"TEXT(WEEKDAY(DATE(KalendoriniaiMetai+1,6,27),1),\"[$-427]aaa\")","v":"1900"},{"$f":"TEXT(WEEKDAY(DATE(KalendoriniaiMetai+1,6,28),1),\"[$-427]aaa\")","v":"1900"},{"$f":"TEXT(WEEKDAY(DATE(KalendoriniaiMetai+1,6,29),1),\"[$-427]aaa\")","v":"1900"},{"$f":"TEXT(WEEKDAY(DATE(KalendoriniaiMetai+1,6,30),1),\"[$-427]aaa\")","v":"1900"},null,"Sumos"]
[null,"Studento ID","Studento vardas ir pavardė","1","2","3","4","5","6","7","8","9","10","11","12","13","14","15","16","17","18","19","20","21","22","23","24","25","26","27","28","29","30"," ","T","E","U","P","Praleista dienų"]
[null,null,{"$f":"IFERROR(VLOOKUP(#REF!,StudentųSąrašas[],18,FALSE),\"\")","v":""},{"$nulls":31},{"$f":"COUNTIF(BirželioLankomumas[[#This Row],[1]:[ ]],Kodas1)","v":0},{"$f":"COUNTIF(BirželioLankomumas[[#This Row],[1]:[ ]],Kodas2)","v":0},{"$f":"COUNTIF(BirželioLankomumas[[#This Row],[1]:[ ]],Kodas3)","v":0},{"$f":"COUNTIF(BirželioLankomumas[[#This Row],[1]:[ ]],Kodas4)","v":0},{"$f":"SUM(BirželioLankomumas[[#This Row],[E]:[U]])","v":0}]
[null,null,{"$f":"IFERROR(VLOOKUP(#REF!,StudentųSąrašas[],18,FALSE),\"\")","v":""},{"$nulls":31},{"$f":"COUNTIF(BirželioLankomumas[[#This Row],[1]:[ ]],Kodas1)","v":0},{"$f":"COUNTIF(BirželioLankomumas[[#This Row],[1]:[ ]],Kodas2)","v":0},{"$f":"COUNTIF(BirželioLankomumas[[#This Row],[1]:[ ]],Kodas3)","v":0},{"$f":"COUNTIF(BirželioLankomumas[[#This Row],[1]:[ ]],Kodas4)","v":0},{"$f":"SUM(BirželioLankomumas[[#This Row],[E]:[U]])","v":0}]
[null,null,{"$f":"IFERROR(VLOOKUP(#REF!,StudentųSąrašas[],18,FALSE),\"\")","v":""},{"$nulls":31},{"$f":"COUNTIF(BirželioLankomumas[[#This Row],[1]:[ ]],Kodas1)","v":0},{"$f":"COUNTIF(BirželioLankomumas[[#This Row],[1]:[ ]],Kodas2)","v":0},{"$f":"COUNTIF(BirželioLankomumas[[#This Row],[1]:[ ]],Kodas3)","v":0},{"$f":"COUNTIF(BirželioLankomumas[[#This Row],[1]:[ ]],Kodas4)","v":0},{"$f":"SUM(BirželioLankomumas[[#This Row],[E]:[U]])","v":0}]
[null,null,{"$f":"IFERROR(VLOOKUP(#REF!,StudentųSąrašas[],18,FALSE),\"\")","v":""},{"$nulls":31},{"$f":"COUNTIF(BirželioLankomumas[[#This Row],[1]:[ ]],Kodas1)","v":0},{"$f":"COUNTIF(BirželioLankomumas[[#This Row],[1]:[ ]],Kodas2)","v":0},{"$f":"COUNTIF(BirželioLankomumas[[#This Row],[1]:[ ]],Kodas3)","v":0},{"$f":"COUNTIF(BirželioLankomumas[[#This Row],[1]:[ ]],Kodas4)","v":0},{"$f":"SUM(BirželioLankomumas[[#This Row],[E]:[U]])","v":0}]
[null,null,{"$f":"IFERROR(VLOOKUP(#REF!,StudentųSąrašas[],18,FALSE),\"\")","v":""},{"$nulls":31},{"$f":"COUNTIF(BirželioLankomumas[[#This Row],[1]:[ ]],Kodas1)","v":0},{"$f":"COUNTIF(BirželioLankomumas[[#This Row],[1]:[ ]],Kodas2)","v":0},{"$f":"COUNTIF(BirželioLankomumas[[#This Row],[1]:[ ]],Kodas3)","v":0},{"$f":"COUNTIF(BirželioLankomumas[[#This Row],[1]:[ ]],Kodas4)","v":0},{"$f":"SUM(BirželioLankomumas[[#This Row],[E]:[U]])","v":0}]
[null,null,"Iš viso praleista dienų",{"$f":"COUNTIF(BirželioLankomumas[1],\"U\")+COUNTIF(BirželioLankomumas[1],\"E\")","v":0},{"$f":"COUNTIF(BirželioLankomumas[2],\"U\")+COUNTIF(BirželioLankomumas[2],\"E\")","v":0},{"$f":"COUNTIF(BirželioLankomumas[3],\"U\")+COUNTIF(BirželioLankomumas[3],\"E\")","v":0},{"$f":"COUNTIF(BirželioLankomumas[4],\"U\")+COUNTIF(BirželioLankomumas[4],\"E\")","v":0},{"$f":"COUNTIF(BirželioLankomumas[5],\"U\")+COUNTIF(BirželioLankomumas[5],\"E\")","v":0},{"$f":"COUNTIF(BirželioLankomumas[6],\"U\")+COUNTIF(BirželioLankomumas[6],\"E\")","v":0},{"$f":"COUNTIF(BirželioLankomumas[7],\"U\")+COUNTIF(BirželioLankomumas[7],\"E\")","v":0},{"$f":"COUNTIF(BirželioLankomumas[8],\"U\")+COUNTIF(BirželioLankomumas[8],\"E\")","v":0},{"$f":"COUNTIF(BirželioLankomumas[9],\"U\")+COUNTIF(BirželioLankomumas[9],\"E\")","v":0},{"$f":"COUNTIF(BirželioLankomumas[10],\"U\")+COUNTIF(BirželioLankomumas[10],\"E\")","v":0},{"$f":"COUNTIF(BirželioLankomumas[11],\"U\")+COUNTIF(BirželioLankomumas[11],\"E\")","v":0},{"$f":"COUNTIF(BirželioLankomumas[12],\"U\")+COUNTIF(BirželioLankomumas[12],\"E\")","v":0},{"$f":"COUNTIF(BirželioLankomumas[13],\"U\")+COUNTIF(BirželioLankomumas[13],\"E\")","v":0},{"$f":"COUNTIF(BirželioLankomumas[14],\"U\")+COUNTIF(BirželioLankomumas[14],\"E\")","v":0},{"$f":"COUNTIF(BirželioLankomumas[15],\"U\")+COUNTIF(BirželioLankomumas[15],\"E\")","v":0},{"$f":"COUNTIF(BirželioLankomumas[16],\"U\")+COUNTIF(BirželioLankomumas[16],\"E\")","v":0},{"$f":"COUNTIF(BirželioLankomumas[17],\"U\")+COUNTIF(BirželioLankomumas[17],\"E\")","v":0},{"$f":"COUNTIF(BirželioLankomumas[18],\"U\")+COUNTIF(BirželioLankomumas[18],\"E\")","v":0},{"$f":"COUNTIF(BirželioLankomumas[19],\"U\")+COUNTIF(BirželioLankomumas[19],\"E\")","v":0},{"$f":"COUNTIF(BirželioLankomumas[20],\"U\")+COUNTIF(BirželioLankomumas[20],\"E\")","v":0},{"$f":"COUNTIF(BirželioLankomumas[21],\"U\")+COUNTIF(BirželioLankomumas[21],\"E\")","v":0},{"$f":"COUNTIF(BirželioLankomumas[22],\"U\")+COUNTIF(BirželioLankomumas[22],\"E\")","v":0},{"$f":"COUNTIF(BirželioLankomumas[23],\"U\")+COUNTIF(BirželioLankomumas[23],\"E\")","v":0},{"$f":"COUNTIF(BirželioLankomumas[24],\"U\")+COUNTIF(BirželioLankomumas[24],\"E\")","v":0},{"$f":"COUNTIF(BirželioLankomumas[25],\"U\")+COUNTIF(BirželioLankomumas[25],\"E\")","v":0},{"$f":"COUNTIF(BirželioLankomumas[26],\"U\")+COUNTIF(BirželioLankomumas[26],\"E\")","v":0},{"$f":"COUNTIF(BirželioLankomumas[27],\"U\")+COUNTIF(BirželioLankomumas[27],\"E\")","v":0},{"$f":"COUNTIF(BirželioLankomumas[28],\"U\")+COUNTIF(BirželioLankomumas[28],\"E\")","v":0},{"$f":"COUNTIF(BirželioLankomumas[29],\"U\")+COUNTIF(BirželioLankomumas[29],\"E\")","v":0},null,null,{"$f":"SUBTOTAL(109,BirželioLankomumas[T])","v":0},{"$f":"SUBTOTAL(109,BirželioLankomumas[E])","v":0},{"$f":"SUBTOTAL(109,BirželioLankomumas[U])","v":0},{"$f":"SUBTOTAL(109,BirželioLankomumas[P])","v":0},{"$f":"SUBTOTAL(109,BirželioLankomumas[Praleista dienų])","v":0}]
[{"$nulls":3},{"$f":"COUNTIF(BirželioLankomumas[1],\"U\")+COUNTIF(BirželioLankomumas[1],\"E\")","v":0},{"$f":"COUNTIF(BirželioLankomumas[2],\"U\")+COUNTIF(BirželioLankomumas[2],\"E\")","v":0},{"$f":"COUNTIF(BirželioLankomumas[3],\"U\")+COUNTIF(BirželioLankomumas[3],\"E\")","v":0},{"$f":"COUNTIF(BirželioLankomumas[4],\"U\")+COUNTIF(BirželioLankomumas[4],\"E\")","v":0},{"$f":"COUNTIF(BirželioLankomumas[5],\"U\")+COUNTIF(BirželioLankomumas[5],\"E\")","v":0},{"$f":"COUNTIF(BirželioLankomumas[6],\"U\")+COUNTIF(BirželioLankomumas[6],\"E\")","v":0},{"$f":"COUNTIF(BirželioLankomumas[7],\"U\")+COUNTIF(BirželioLankomumas[7],\"E\")","v":0},{"$f":"COUNTIF(BirželioLankomumas[8],\"U\")+COUNTIF(BirželioLankomumas[8],\"E\")","v":0},{"$f":"COUNTIF(BirželioLankomumas[9],\"U\")+COUNTIF(BirželioLankomumas[9],\"E\")","v":0},{"$f":"COUNTIF(BirželioLankomumas[10],\"U\")+COUNTIF(BirželioLankomumas[10],\"E\")","v":0},{"$f":"COUNTIF(BirželioLankomumas[11],\"U\")+COUNTIF(BirželioLankomumas[11],\"E\")","v":0},{"$f":"COUNTIF(BirželioLankomumas[12],\"U\")+COUNTIF(BirželioLankomumas[12],\"E\")","v":0},{"$f":"COUNTIF(BirželioLankomumas[13],\"U\")+COUNTIF(BirželioLankomumas[13],\"E\")","v":0},{"$f":"COUNTIF(BirželioLankomumas[14],\"U\")+COUNTIF(BirželioLankomumas[14],\"E\")","v":0},{"$f":"COUNTIF(BirželioLankomumas[15],\"U\")+COUNTIF(BirželioLankomumas[15],\"E\")","v":0},{"$f":"COUNTIF(BirželioLankomumas[16],\"U\")+COUNTIF(BirželioLankomumas[16],\"E\")","v":0},{"$f":"COUNTIF(BirželioLankomumas[17],\"U\")+COUNTIF(BirželioLankomumas[17],\"E\")","v":0},{"$f":"COUNTIF(BirželioLankomumas[18],\"U\")+COUNTIF(BirželioLankomumas[18],\"E\")","v":0},{"$f":"COUNTIF(BirželioLankomumas[19],\"U\")+COUNTIF(BirželioLankomumas[19],\"E\")","v":0},{"$f":"COUNTIF(BirželioLankomumas[20],\"U\")+COUNTIF(BirželioLankomumas[20],\"E\")","v":0},{"$f":"COUNTIF(BirželioLankomumas[21],\"U\")+COUNTIF(BirželioLankomumas[21],\"E\")","v":0},{"$f":"COUNTIF(BirželioLankomumas[22],\"U\")+COUNTIF(BirželioLankomumas[22],\"E\")","v":0},{"$f":"COUNTIF(BirželioLankomumas[23],\"U\")+COUNTIF(BirželioLankomumas[23],\"E\")","v":0},{"$f":"COUNTIF(BirželioLankomumas[24],\"U\")+COUNTIF(BirželioLankomumas[24],\"E\")","v":0},{"$f":"COUNTIF(BirželioLankomumas[25],\"U\")+COUNTIF(BirželioLankomumas[25],\"E\")","v":0},{"$f":"COUNTIF(BirželioLankomumas[26],\"U\")+COUNTIF(BirželioLankomumas[26],\"E\")","v":0},{"$f":"COUNTIF(BirželioLankomumas[27],\"U\")+COUNTIF(BirželioLankomumas[27],\"E\")","v":0},{"$f":"COUNTIF(BirželioLankomumas[28],\"U\")+COUNTIF(BirželioLankomumas[28],\"E\")","v":0},{"$f":"COUNTIF(BirželioLankomumas[29],\"U\")+COUNTIF(BirželioLankomumas[29],\"E\")","v":0},null,null,{"$f":"SUBTOTAL(109,BirželioLankomumas[T])","v":0},{"$f":"SUBTOTAL(109,BirželioLankomumas[E])","v":0},{"$f":"SUBTOTAL(109,BirželioLankomumas[U])","v":0},{"$f":"SUBTOTAL(109,BirželioLankomumas[P])","v":0}]

{"sheet":"Liepa","index":13,"n_rows":13,"n_cols":39,"rows_kept":13,"merged":[[4,34,4,38]]}
["STUDENTO LANKOMUMO ĮRAŠAS",{"$nulls":36},"Mokslo metai prasideda:",{"$f":"KalendoriniaiMetai","v":2012}]
[]
[null,null,{"$f":"SpalvinioRaktoTekstas","v":"SPALVŲ RAKTAS "},{"$f":"Kodas1","v":"T"},{"$f":"Kodo1Tekstas","v":"Pavėluota"},null,null,{"$f":"Kodas2","v":"E"},{"$f":"Kodo2Tekstas","v":"Pateisinamai praleista"},null,null,{"$f":"Kodas3","v":"U"},{"$f":"Kodo3Tekstas","v":"Nepateisinamai praleista"},null,null,{"$f":"Kodas4","v":"P"},{"$f":"Kodo4Tekstas","v":"Dalyvauta"},null,null,{"$f":"Kodas5","v":"N"},{"$f":"Kodo5Tekstas","v":"Nėra pamokų"}]
[]
[null,{"$f":"DATE(KalendoriniaiMetai+1,7,1)","v":"2013-07-01"},null,{"$f":"TEXT(WEEKDAY(DATE(KalendoriniaiMetai+1,7,1),1),\"[$-427]aaa\")","v":"1900"},{"$f":"TEXT(WEEKDAY(DATE(KalendoriniaiMetai+1,7,2),1),\"[$-427]aaa\")","v":"1900"},{"$f":"TEXT(WEEKDAY(DATE(KalendoriniaiMetai+1,7,3),1),\"[$-427]aaa\")","v":"1900"},{"$f":"TEXT(WEEKDAY(DATE(KalendoriniaiMetai+1,7,4),1),\"[$-427]aaa\")","v":"1900"},{"$f":"TEXT(WEEKDAY(DATE(KalendoriniaiMetai+1,7,5),1),\"[$-427]aaa\")","v":"1900"},{"$f":"TEXT(WEEKDAY(DATE(KalendoriniaiMetai+1,7,6),1),\"[$-427]aaa\")","v":"1900"},{"$f":"TEXT(WEEKDAY(DATE(KalendoriniaiMetai+1,7,7),1),\"[$-427]aaa\")","v":"1900"},{"$f":"TEXT(WEEKDAY(DATE(KalendoriniaiMetai+1,7,8),1),\"[$-427]aaa\")","v":"1900"},{"$f":"TEXT(WEEKDAY(DATE(KalendoriniaiMetai+1,7,9),1),\"[$-427]aaa\")","v":"1900"},{"$f":"TEXT(WEEKDAY(DATE(KalendoriniaiMetai+1,7,10),1),\"[$-427]aaa\")","v":"1900"},{"$f":"TEXT(WEEKDAY(DATE(KalendoriniaiMetai+1,7,11),1),\"[$-427]aaa\")","v":"1900"},{"$f":"TEXT(WEEKDAY(DATE(KalendoriniaiMetai+1,7,12),1),\"[$-427]aaa\")","v":"1900"},{"$f":"TEXT(WEEKDAY(DATE(KalendoriniaiMetai+1,7,13),1),\"[$-427]aaa\")","v":"1900"},{"$f":"TEXT(WEEKDAY(DATE(KalendoriniaiMetai+1,7,14),1),\"[$-427]aaa\")","v":"1900"},{"$f":"TEXT(WEEKDAY(DATE(KalendoriniaiMetai+1,7,15),1),\"[$-427]aaa\")","v":"1900"},{"$f":"TEXT(WEEKDAY(DATE(KalendoriniaiMetai+1,7,16),1),\"[$-427]aaa\")","v":"1900"},{"$f":"TEXT(WEEKDAY(DATE(KalendoriniaiMetai+1,7,17),1),\"[$-427]aaa\")","v":"1900"},{"$f":"TEXT(WEEKDAY(DATE(KalendoriniaiMetai+1,7,18),1),\"[$-427]aaa\")","v":"1900"},{"$f":"TEXT(WEEKDAY(DATE(KalendoriniaiMetai+1,7,19),1),\"[$-427]aaa\")","v":"1900"},{"$f":"TEXT(WEEKDAY(DATE(KalendoriniaiMetai+1,7,20),1),\"[$-427]aaa\")","v":"1900"},{"$f":"TEXT(WEEKDAY(DATE(KalendoriniaiMetai+1,7,21),1),\"[$-427]aaa\")","v":"1900"},{"$f":"TEXT(WEEKDAY(DATE(KalendoriniaiMetai+1,7,22),1),\"[$-427]aaa\")","v":"1900"},{"$f":"TEXT(WEEKDAY(DATE(KalendoriniaiMetai+1,7,23),1),\"[$-427]aaa\")","v":"1900"},{"$f":"TEXT(WEEKDAY(DATE(KalendoriniaiMetai+1,7,24),1),\"[$-427]aaa\")","v":"1900"},{"$f":"TEXT(WEEKDAY(DATE(KalendoriniaiMetai+1,7,25),1),\"[$-427]aaa\")","v":"1900"},{"$f":"TEXT(WEEKDAY(DATE(KalendoriniaiMetai+1,7,26),1),\"[$-427]aaa\")","v":"1900"},{"$f":"TEXT(WEEKDAY(DATE(KalendoriniaiMetai+1,7,27),1),\"[$-427]aaa\")","v":"1900"},{"$f":"TEXT(WEEKDAY(DATE(KalendoriniaiMetai+1,7,28),1),\"[$-427]aaa\")","v":"1900"},{"$f":"TEXT(WEEKDAY(DATE(KalendoriniaiMetai+1,7,29),1),\"[$-427]aaa\")","v":"1900"},{"$f":"TEXT(WEEKDAY(DATE(KalendoriniaiMetai+1,7,30),1),\"[$-427]aaa\")","v":"1900"},{"$f":"TEXT(WEEKDAY(DATE(KalendoriniaiMetai+1,7,31),1),\"[$-427]aaa\")","v":"1900"},"Sumos"]
[null,"Studento ID","Studento vardas ir pavardė","1","2","3","4","5","6","7","8","9","10","11","12","13","14","15","16","17","18","19","20","21","22","23","24","25","26","27","28","29","30","31","T","E","U","P","Praleista dienų"]
[null,null,{"$f":"IFERROR(VLOOKUP(#REF!,StudentųSąrašas[],18,FALSE),\"\")","v":""},{"$nulls":31},{"$f":"COUNTIF(LieposLankomumas[[#This Row],[1]:[31]],Kodas1)","v":0},{"$f":"COUNTIF(LieposLankomumas[[#This Row],[1]:[31]],Kodas2)","v":0},{"$f":"COUNTIF(LieposLankomumas[[#This Row],[1]:[31]],Kodas3)","v":0},{"$f":"COUNTIF(LieposLankomumas[[#This Row],[1]:[31]],Kodas4)","v":0},{"$f":"SUM(LieposLankomumas[[#This Row],[E]:[U]])","v":0}]
[null,null,{"$f":"IFERROR(VLOOKUP(#REF!,StudentųSąrašas[],18,FALSE),\"\")","v":""},{"$nulls":31},{"$f":"COUNTIF(LieposLankomumas[[#This Row],[1]:[31]],Kodas1)","v":0},{"$f":"COUNTIF(LieposLankomumas[[#This Row],[1]:[31]],Kodas2)","v":0},{"$f":"COUNTIF(LieposLankomumas[[#This Row],[1]:[31]],Kodas3)","v":0},{"$f":"COUNTIF(LieposLankomumas[[#This Row],[1]:[31]],Kodas4)","v":0},{"$f":"SUM(LieposLankomumas[[#This Row],[E]:[U]])","v":0}]
[null,null,{"$f":"IFERROR(VLOOKUP(#REF!,StudentųSąrašas[],18,FALSE),\"\")","v":""},{"$nulls":31},{"$f":"COUNTIF(LieposLankomumas[[#This Row],[1]:[31]],Kodas1)","v":0},{"$f":"COUNTIF(LieposLankomumas[[#This Row],[1]:[31]],Kodas2)","v":0},{"$f":"COUNTIF(LieposLankomumas[[#This Row],[1]:[31]],Kodas3)","v":0},{"$f":"COUNTIF(LieposLankomumas[[#This Row],[1]:[31]],Kodas4)","v":0},{"$f":"SUM(LieposLankomumas[[#This Row],[E]:[U]])","v":0}]
[null,null,{"$f":"IFERROR(VLOOKUP(#REF!,StudentųSąrašas[],18,FALSE),\"\")","v":""},{"$nulls":31},{"$f":"COUNTIF(LieposLankomumas[[#This Row],[1]:[31]],Kodas1)","v":0},{"$f":"COUNTIF(LieposLankomumas[[#This Row],[1]:[31]],Kodas2)","v":0},{"$f":"COUNTIF(LieposLankomumas[[#This Row],[1]:[31]],Kodas3)","v":0},{"$f":"COUNTIF(LieposLankomumas[[#This Row],[1]:[31]],Kodas4)","v":0},{"$f":"SUM(LieposLankomumas[[#This Row],[E]:[U]])","v":0}]
[null,null,{"$f":"IFERROR(VLOOKUP(#REF!,StudentųSąrašas[],18,FALSE),\"\")","v":""},{"$nulls":31},{"$f":"COUNTIF(LieposLankomumas[[#This Row],[1]:[31]],Kodas1)","v":0},{"$f":"COUNTIF(LieposLankomumas[[#This Row],[1]:[31]],Kodas2)","v":0},{"$f":"COUNTIF(LieposLankomumas[[#This Row],[1]:[31]],Kodas3)","v":0},{"$f":"COUNTIF(LieposLankomumas[[#This Row],[1]:[31]],Kodas4)","v":0},{"$f":"SUM(LieposLankomumas[[#This Row],[E]:[U]])","v":0}]
[null,null,"Iš viso praleista dienų",{"$f":"COUNTIF(LieposLankomumas[1],\"U\")+COUNTIF(LieposLankomumas[1],\"E\")","v":0},{"$f":"COUNTIF(LieposLankomumas[2],\"U\")+COUNTIF(LieposLankomumas[2],\"E\")","v":0},{"$f":"COUNTIF(LieposLankomumas[3],\"U\")+COUNTIF(LieposLankomumas[3],\"E\")","v":0},{"$f":"COUNTIF(LieposLankomumas[4],\"U\")+COUNTIF(LieposLankomumas[4],\"E\")","v":0},{"$f":"COUNTIF(LieposLankomumas[5],\"U\")+COUNTIF(LieposLankomumas[5],\"E\")","v":0},{"$f":"COUNTIF(LieposLankomumas[6],\"U\")+COUNTIF(LieposLankomumas[6],\"E\")","v":0},{"$f":"COUNTIF(LieposLankomumas[7],\"U\")+COUNTIF(LieposLankomumas[7],\"E\")","v":0},{"$f":"COUNTIF(LieposLankomumas[8],\"U\")+COUNTIF(LieposLankomumas[8],\"E\")","v":0},{"$f":"COUNTIF(LieposLankomumas[9],\"U\")+COUNTIF(LieposLankomumas[9],\"E\")","v":0},{"$f":"COUNTIF(LieposLankomumas[10],\"U\")+COUNTIF(LieposLankomumas[10],\"E\")","v":0},{"$f":"COUNTIF(LieposLankomumas[11],\"U\")+COUNTIF(LieposLankomumas[11],\"E\")","v":0},{"$f":"COUNTIF(LieposLankomumas[12],\"U\")+COUNTIF(LieposLankomumas[12],\"E\")","v":0},{"$f":"COUNTIF(LieposLankomumas[13],\"U\")+COUNTIF(LieposLankomumas[13],\"E\")","v":0},{"$f":"COUNTIF(LieposLankomumas[14],\"U\")+COUNTIF(LieposLankomumas[14],\"E\")","v":0},{"$f":"COUNTIF(LieposLankomumas[15],\"U\")+COUNTIF(LieposLankomumas[15],\"E\")","v":0},{"$f":"COUNTIF(LieposLankomumas[16],\"U\")+COUNTIF(LieposLankomumas[16],\"E\")","v":0},{"$f":"COUNTIF(LieposLankomumas[17],\"U\")+COUNTIF(LieposLankomumas[17],\"E\")","v":0},{"$f":"COUNTIF(LieposLankomumas[18],\"U\")+COUNTIF(LieposLankomumas[18],\"E\")","v":0},{"$f":"COUNTIF(LieposLankomumas[19],\"U\")+COUNTIF(LieposLankomumas[19],\"E\")","v":0},{"$f":"COUNTIF(LieposLankomumas[20],\"U\")+COUNTIF(LieposLankomumas[20],\"E\")","v":0},{"$f":"COUNTIF(LieposLankomumas[21],\"U\")+COUNTIF(LieposLankomumas[21],\"E\")","v":0},{"$f":"COUNTIF(LieposLankomumas[22],\"U\")+COUNTIF(LieposLankomumas[22],\"E\")","v":0},{"$f":"COUNTIF(LieposLankomumas[23],\"U\")+COUNTIF(LieposLankomumas[23],\"E\")","v":0},{"$f":"COUNTIF(LieposLankomumas[24],\"U\")+COUNTIF(LieposLankomumas[24],\"E\")","v":0},{"$f":"COUNTIF(LieposLankomumas[25],\"U\")+COUNTIF(LieposLankomumas[25],\"E\")","v":0},{"$f":"COUNTIF(LieposLankomumas[26],\"U\")+COUNTIF(LieposLankomumas[26],\"E\")","v":0},{"$f":"COUNTIF(LieposLankomumas[27],\"U\")+COUNTIF(LieposLankomumas[27],\"E\")","v":0},{"$f":"COUNTIF(LieposLankomumas[28],\"U\")+COUNTIF(LieposLankomumas[28],\"E\")","v":0},{"$f":"COUNTIF(LieposLankomumas[29],\"U\")+COUNTIF(LieposLankomumas[29],\"E\")","v":0},null,null,{"$f":"SUBTOTAL(109,LieposLankomumas[T])","v":0},{"$f":"SUBTOTAL(109,LieposLankomumas[E])","v":0},{"$f":"SUBTOTAL(109,LieposLankomumas[U])","v":0},{"$f":"SUBTOTAL(109,LieposLankomumas[P])","v":0},{"$f":"SUBTOTAL(109,LieposLankomumas[Praleista dienų])","v":0}]
[{"$nulls":3},{"$f":"COUNTIF(LieposLankomumas[1],\"U\")+COUNTIF(LieposLankomumas[1],\"E\")","v":0},{"$f":"COUNTIF(LieposLankomumas[2],\"U\")+COUNTIF(LieposLankomumas[2],\"E\")","v":0},{"$f":"COUNTIF(LieposLankomumas[3],\"U\")+COUNTIF(LieposLankomumas[3],\"E\")","v":0},{"$f":"COUNTIF(LieposLankomumas[4],\"U\")+COUNTIF(LieposLankomumas[4],\"E\")","v":0},{"$f":"COUNTIF(LieposLankomumas[5],\"U\")+COUNTIF(LieposLankomumas[5],\"E\")","v":0},{"$f":"COUNTIF(LieposLankomumas[6],\"U\")+COUNTIF(LieposLankomumas[6],\"E\")","v":0},{"$f":"COUNTIF(LieposLankomumas[7],\"U\")+COUNTIF(LieposLankomumas[7],\"E\")","v":0},{"$f":"COUNTIF(LieposLankomumas[8],\"U\")+COUNTIF(LieposLankomumas[8],\"E\")","v":0},{"$f":"COUNTIF(LieposLankomumas[9],\"U\")+COUNTIF(LieposLankomumas[9],\"E\")","v":0},{"$f":"COUNTIF(LieposLankomumas[10],\"U\")+COUNTIF(LieposLankomumas[10],\"E\")","v":0},{"$f":"COUNTIF(LieposLankomumas[11],\"U\")+COUNTIF(LieposLankomumas[11],\"E\")","v":0},{"$f":"COUNTIF(LieposLankomumas[12],\"U\")+COUNTIF(LieposLankomumas[12],\"E\")","v":0},{"$f":"COUNTIF(LieposLankomumas[13],\"U\")+COUNTIF(LieposLankomumas[13],\"E\")","v":0},{"$f":"COUNTIF(LieposLankomumas[14],\"U\")+COUNTIF(LieposLankomumas[14],\"E\")","v":0},{"$f":"COUNTIF(LieposLankomumas[15],\"U\")+COUNTIF(LieposLankomumas[15],\"E\")","v":0},{"$f":"COUNTIF(LieposLankomumas[16],\"U\")+COUNTIF(LieposLankomumas[16],\"E\")","v":0},{"$f":"COUNTIF(LieposLankomumas[17],\"U\")+COUNTIF(LieposLankomumas[17],\"E\")","v":0},{"$f":"COUNTIF(LieposLankomumas[18],\"U\")+COUNTIF(LieposLankomumas[18],\"E\")","v":0},{"$f":"COUNTIF(LieposLankomumas[19],\"U\")+COUNTIF(LieposLankomumas[19],\"E\")","v":0},{"$f":"COUNTIF(LieposLankomumas[20],\"U\")+COUNTIF(LieposLankomumas[20],\"E\")","v":0},{"$f":"COUNTIF(LieposLankomumas[21],\"U\")+COUNTIF(LieposLankomumas[21],\"E\")","v":0},{"$f":"COUNTIF(LieposLankomumas[22],\"U\")+COUNTIF(LieposLankomumas[22],\"E\")","v":0},{"$f":"COUNTIF(LieposLankomumas[23],\"U\")+COUNTIF(LieposLankomumas[23],\"E\")","v":0},{"$f":"COUNTIF(LieposLankomumas[24],\"U\")+COUNTIF(LieposLankomumas[24],\"E\")","v":0},{"$f":"COUNTIF(LieposLankomumas[25],\"U\")+COUNTIF(LieposLankomumas[25],\"E\")","v":0},{"$f":"COUNTIF(LieposLankomumas[26],\"U\")+COUNTIF(LieposLankomumas[26],\"E\")","v":0},{"$f":"COUNTIF(LieposLankomumas[27],\"U\")+COUNTIF(LieposLankomumas[27],\"E\")","v":0},{"$f":"COUNTIF(LieposLankomumas[28],\"U\")+COUNTIF(LieposLankomumas[28],\"E\")","v":0},{"$f":"COUNTIF(LieposLankomumas[29],\"U\")+COUNTIF(LieposLankomumas[29],\"E\")","v":0},null,null,{"$f":"SUBTOTAL(109,LieposLankomumas[T])","v":0},{"$f":"SUBTOTAL(109,LieposLankomumas[E])","v":0},{"$f":"SUBTOTAL(109,LieposLankomumas[U])","v":0},{"$f":"SUBTOTAL(109,LieposLankomumas[P])","v":0}]

{"sheet":"Studentų lankomumo ataskaita","index":14,"n_rows":40,"n_cols":37,"rows_kept":40,"merged":[[2,3,2,14],[2,15,2,17],[2,18,2,21],[2,22,2,29],[2,30,2,31],[2,32,2,35],[3,1,3,2],[3,3,3,14],[3,15,3,17],[3,18,3,21],[3,22,3,29],[3,30,3,31],[3,32,3,35],[4,1,4,9],[4,10,4,21],[4,22,4,29],[4,30,4,36],[5,1,5,9],[5,10,5,21],[5,22,5,29],[5,30,5,36],[6,1,6,9],[6,10,6,21],[6,22,6,29],[6,30,6,36],[7,1,7,9],[7,10,7,21],[7,22,7,29],[7,30,7,36],[8,1,8,9],[8,10,8,21],[8,22,8,29],[8,30,8,36],[9,1,9,9],[9,10,9,21],[9,22,9,29],[9,30,9,36],[13,1,14,32],[13,33,13,36],[15,1,16,1],[15,33,16,33],[15,34,16,34],[15,35,16,35],[15,36,16,36],[17,1,18,1],[17,33,18,33],[17,34,18,34],[17,35,18,35],[17,36,18,36],[19,1,20,1],[19,33,20,33],[19,34,20,34],[19,35,20,35],[19,36,20,36],[21,1,22,1],[21,33,22,33],[21,34,22,34],[21,35,22,35],[21,36,22,36],[23,1,24,1],[23,33,24,33],[23,34,24,34],[23,35,24,35],[23,36,24,36],[25,1,26,1],[25,33,26,33],[25,34,26,34],[25,35,26,35],[25,36,26,36],[27,1,28,1],[27,33,28,33],[27,34,28,34],[27,35,28,35],[27,36,28,36],[29,1,30,1],[29,33,30,33],[29,34,30,34],[29,35,30,35],[29,36,30,36],[31,1,32,1],[31,33,32,33],[31,34,32,34],[31,35,32,35],[31,36,32,36],[33,1,34,1],[33,33,34,33],[33,34,34,34],[33,35,34,35],[33,36,34,36],[35,1,36,1],[35,33,36,33],[35,34,36,34],[35,35,36,35],[35,36,36,36],[37,1,38,1],[37,33,38,33],[37,34,38,34],[37,35,38,35],[37,36,38,36],[39,30,39,32]]}
[{"$f":"\"Lankomumo ataskaita:  \"","v":"Lankomumo ataskaita:  "},{"$nulls":7},{"$f":"D4","v":"AlgisGustas"}]
[]
[null,"Studento ID",null,"Studento vardas ir pavardė",{"$nulls":11},"Lytis",null,null,"Gimimo diena",{"$nulls":3},"Mokykla",{"$nulls":7},"Klasė",null,"Mokytojas",{"$nulls":3},"Auditorija"]
[null,"S001",null,{"$f":"IFERROR(VLOOKUP(StudentųPeržvalga,StudentųSąrašas[],18,FALSE),\"\")","v":"AlgisGustas"},{"$nulls":11},{"$f":"IFERROR(VLOOKUP(StudentųPeržvalga,StudentųSąrašas[],4,FALSE),\"\")","v":"M"},null,null,{"$f":"IFERROR(VLOOKUP(StudentųPeržvalga,StudentųSąrašas[],5,FALSE),\"\")","v":"1997-03-28"},{"$nulls":3},"Dailiųjų menų mokykla ",{"$nulls":7},7,null,"Virginijus Gražulis",{"$nulls":3},123]
[null,"1 tėvo arba globėjo vardas ir pavardė",{"$nulls":8},"Giminystės ryšys",{"$nulls":11},"Darbo numeris",{"$nulls":7},"Namų numeris"]
[null,{"$f":"IFERROR(VLOOKUP(StudentųPeržvalga,StudentųSąrašas[],6,FALSE),\"\")","v":"Petras"},{"$nulls":8},{"$f":"IFERROR(VLOOKUP(StudentųPeržvalga,StudentųSąrašas[],7,FALSE),\"\")","v":"Stankevičius"},{"$nulls":11},{"$f":"IFERROR(VLOOKUP(StudentųPeržvalga,StudentųSąrašas[],8,FALSE),\"\")","v":1235550134},{"$nulls":7},{"$f":"IFERROR(VLOOKUP(StudentųPeržvalga,StudentųSąrašas[],9,FALSE),\"\")","v":2345550134}]
[null,"2 tėvo arba globėjo vardas ir pavardė",{"$nulls":8},"Giminystės ryšys",{"$nulls":11},"Darbo numeris",{"$nulls":7},"Namų numeris"]
[null,{"$f":"IFERROR(VLOOKUP(StudentųPeržvalga,StudentųSąrašas[],10,FALSE),\"\")","v":"Juozas Stankevičius"},{"$nulls":8},{"$f":"IFERROR(VLOOKUP(StudentųPeržvalga,StudentųSąrašas[],11,FALSE),\"\")","v":"Tėvas"},{"$nulls":11},{"$f":"IFERROR(VLOOKUP(StudentųPeržvalga,StudentųSąrašas[],12,FALSE),\"\")","v":1235550134},{"$nulls":7},{"$f":"IFERROR(VLOOKUP(StudentųPeržvalga,StudentųSąrašas[],13,FALSE),\"\")","v":2345550134}]
[null,"Kontaktas nelaimės atveju",{"$nulls":8},"Giminystės ryšys",{"$nulls":11},"Darbo numeris",{"$nulls":7},"Namų numeris"]
[null,{"$f":"IFERROR(VLOOKUP(StudentųPeržvalga,StudentųSąrašas[],14,FALSE),\"\")","v":"Darius Dūda"},{"$nulls":8},{"$f":"IFERROR(VLOOKUP(StudentųPeržvalga,StudentųSąrašas[],15,FALSE),\"\")","v":"Senelis"},{"$nulls":11},{"$f":"IFERROR(VLOOKUP(StudentųPeržvalga,StudentųSąrašas[],16,FALSE),\"\")","v":7895550189},{"$nulls":7},{"$f":"IFERROR(VLOOKUP(StudentųPeržvalga,StudentųSąrašas[],17,FALSE),\"\")","v":7895550134}]
[]
[null,{"$f":"Rugpjūtis!C3","v":"SPALVŲ RAKTAS "},{"$f":"Rugpjūtis!D3","v":"T"},{"$f":"Rugpjūtis!E3","v":"Pavėluota"},null,null,{"$f":"Rugpjūtis!H3","v":"E"},{"$f":"Rugpjūtis!I3","v":"Pateisinamai praleista"},null,null,{"$f":"Rugpjūtis!L3","v":"U"},{"$f":"Rugpjūtis!M3","v":"Nepateisinamai praleista"},{"$nulls":3},{"$f":"Rugpjūtis!P3","v":"P"},{"$f":"Rugpjūtis!Q3","v":"Dalyvauta"},null,null,{"$f":"Rugpjūtis!T3","v":"N"},{"$f":"Rugpjūtis!U3","v":"Nėra pamokų"}]
[]
[null,"Lankomumas",{"$nulls":31},"Lankomumo sumos"]
[{"$nulls":33},"T","E","U","P"]
[null,"Rugpjūtis",1,2,3,4,5,6,7,8,9,10,11,12,13,14,15,16,17,18,19,20,21,22,23,24,25,26,27,28,29,30,31,{"$f":"COUNTIF($D17:$AH17,Kodas1)","v":2},{"$f":"COUNTIF($D17:$AH17,Kodas2)","v":1},{"$f":"COUNTIF($D17:$AH17,Kodas3)","v":0},{"$f":"COUNTIF($D17:$AH17,Kodas4)","v":19}]
[null,null,{"$f":"IFERROR(VLOOKUP(StudentųPeržvalga,RugpjūčioLankomumas[],3,FALSE),\"\")","v":"P"},{"$f":"IFERROR(VLOOKUP(StudentųPeržvalga,RugpjūčioLankomumas[],4,FALSE),\"\")","v":"P"},{"$f":"IFERROR(VLOOKUP(StudentųPeržvalga,RugpjūčioLankomumas[],5,FALSE),\"\")","v":"T"},{"$f":"IFERROR(VLOOKUP(StudentųPeržvalga,RugpjūčioLankomumas[],6,FALSE),\"\")","v":"T"},{"$f":"IFERROR(VLOOKUP(StudentųPeržvalga,RugpjūčioLankomumas[],7,FALSE),\"\")","v":"P"},{"$f":"IFERROR(VLOOKUP(StudentųPeržvalga,RugpjūčioLankomumas[],8,FALSE),\"\")","v":"N"},{"$f":"IFERROR(VLOOKUP(StudentųPeržvalga,RugpjūčioLankomumas[],9,FALSE),\"\")","v":"N"},{"$f":"IFERROR(VLOOKUP(StudentųPeržvalga,RugpjūčioLankomumas[],10,FALSE),\"\")","v":"P"},{"$f":"IFERROR(VLOOKUP(StudentųPeržvalga,RugpjūčioLankomumas[],11,FALSE),\"\")","v":"P"},{"$f":"IFERROR(VLOOKUP(StudentųPeržvalga,RugpjūčioLankomumas[],12,FALSE),\"\")","v":"E"},{"$f":"IFERROR(VLOOKUP(StudentųPeržvalga,RugpjūčioLankomumas[],13,FALSE),\"\")","v":"P"},{"$f":"IFERROR(VLOOKUP(StudentųPeržvalga,RugpjūčioLankomumas[],14,FALSE),\"\")","v":"P"},{"$f":"IFERROR(VLOOKUP(StudentųPeržvalga,RugpjūčioLankomumas[],15,FALSE),\"\")","v":"N"},{"$f":"IFERROR(VLOOKUP(StudentųPeržvalga,RugpjūčioLankomumas[],16,FALSE),\"\")","v":"N"},{"$f":"IFERROR(VLOOKUP(StudentųPeržvalga,RugpjūčioLankomumas[],17,FALSE),\"\")","v":"P"},{"$f":"IFERROR(VLOOKUP(StudentųPeržvalga,RugpjūčioLankomumas[],18,FALSE),\"\")","v":"P"},{"$f":"IFERROR(VLOOKUP(StudentųPeržvalga,RugpjūčioLankomumas[],19,FALSE),\"\")","v":"P"},{"$f":"IFERROR(VLOOKUP(StudentųPeržvalga,RugpjūčioLankomumas[],20,FALSE),\"\")","v":"P"},{"$f":"IFERROR(VLOOKUP(StudentųPeržvalga,RugpjūčioLankomumas[],21,FALSE),\"\")","v":"P"},{"$f":"IFERROR(VLOOKUP(StudentųPeržvalga,RugpjūčioLankomumas[],22,FALSE),\"\")","v":"N"},{"$f":"IFERROR(VLOOKUP(StudentųPeržvalga,RugpjūčioLankomumas[],23,FALSE),\"\")","v":"N"},{"$f":"IFERROR(VLOOKUP(StudentųPeržvalga,RugpjūčioLankomumas[],24,FALSE),\"\")","v":"P"},{"$f":"IFERROR(VLOOKUP(StudentųPeržvalga,RugpjūčioLankomumas[],25,FALSE),\"\")","v":"P"},{"$f":"IFERROR(VLOOKUP(StudentųPeržvalga,RugpjūčioLankomumas[],26,FALSE),\"\")","v":"P"},{"$f":"IFERROR(VLOOKUP(StudentųPeržvalga,RugpjūčioLankomumas[],27,FALSE),\"\")","v":"P"},{"$f":"IFERROR(VLOOKUP(StudentųPeržvalga,RugpjūčioLankomumas[],28,FALSE),\"\")","v":"P"},{"$f":"IFERROR(VLOOKUP(StudentųPeržvalga,RugpjūčioLankomumas[],29,FALSE),\"\")","v":"N"},{"$f":"IFERROR(VLOOKUP(StudentųPeržvalga,RugpjūčioLankomumas[],30,FALSE),\"\")","v":"N"},{"$f":"IFERROR(VLOOKUP(StudentųPeržvalga,RugpjūčioLankomumas[],31,FALSE),\"\")","v":"P"},{"$f":"IFERROR(VLOOKUP(StudentųPeržvalga,RugpjūčioLankomumas[],32,FALSE),\"\")","v":"P"},{"$f":"IFERROR(VLOOKUP(StudentųPeržvalga,RugpjūčioLankomumas[],33,FALSE),\"\")","v":"P"}]
[null,"Rugsėjis",1,2,3,4,5,6,7,8,9,10,11,12,13,14,15,16,17,18,19,20,21,22,23,24,25,26,27,28,29,30,null,{"$f":"COUNTIF($D19:$AH19,Kodas1)","v":0},{"$f":"COUNTIF($D19:$AH19,Kodas2)","v":0},{"$f":"COUNTIF($D19:$AH19,Kodas3)","v":0},{"$f":"COUNTIF($D19:$AH19,Kodas4)","v":0}]
[null,null,{"$f":"IFERROR(VLOOKUP(StudentųPeržvalga,RugsėjoLankomumas[],3,FALSE),\"\")","v":""},{"$f":"IFERROR(VLOOKUP(StudentųPeržvalga,RugsėjoLankomumas[],4,FALSE),\"\")","v":""},{"$f":"IFERROR(VLOOKUP(StudentųPeržvalga,RugsėjoLankomumas[],5,FALSE),\"\")","v":""},{"$f":"IFERROR(VLOOKUP(StudentųPeržvalga,RugsėjoLankomumas[],6,FALSE),\"\")","v":""},{"$f":"IFERROR(VLOOKUP(StudentųPeržvalga,RugsėjoLankomumas[],7,FALSE),\"\")","v":""},{"$f":"IFERROR(VLOOKUP(StudentųPeržvalga,RugsėjoLankomumas[],8,FALSE),\"\")","v":""},{"$f":"IFERROR(VLOOKUP(StudentųPeržvalga,RugsėjoLankomumas[],9,FALSE),\"\")","v":""},{"$f":"IFERROR(VLOOKUP(StudentųPeržvalga,RugsėjoLankomumas[],10,FALSE),\"\")","v":""},{"$f":"IFERROR(VLOOKUP(StudentųPeržvalga,RugsėjoLankomumas[],11,FALSE),\"\")","v":""},{"$f":"IFERROR(VLOOKUP(StudentųPeržvalga,RugsėjoLankomumas[],12,FALSE),\"\")","v":""},{"$f":"IFERROR(VLOOKUP(StudentųPeržvalga,RugsėjoLankomumas[],13,FALSE),\"\")","v":""},{"$f":"IFERROR(VLOOKUP(StudentųPeržvalga,RugsėjoLankomumas[],14,FALSE),\"\")","v":""},{"$f":"IFERROR(VLOOKUP(StudentųPeržvalga,RugsėjoLankomumas[],15,FALSE),\"\")","v":""},{"$f":"IFERROR(VLOOKUP(StudentųPeržvalga,RugsėjoLankomumas[],16,FALSE),\"\")","v":""},{"$f":"IFERROR(VLOOKUP(StudentųPeržvalga,RugsėjoLankomumas[],17,FALSE),\"\")","v":""},{"$f":"IFERROR(VLOOKUP(StudentųPeržvalga,RugsėjoLankomumas[],18,FALSE),\"\")","v":""},{"$f":"IFERROR(VLOOKUP(StudentųPeržvalga,RugsėjoLankomumas[],19,FALSE),\"\")","v":""},{"$f":"IFERROR(VLOOKUP(StudentųPeržvalga,RugsėjoLankomumas[],20,FALSE),\"\")","v":""},{"$f":"IFERROR(VLOOKUP(StudentųPeržvalga,RugsėjoLankomumas[],21,FALSE),\"\")","v":""},{"$f":"IFERROR(VLOOKUP(StudentųPeržvalga,RugsėjoLankomumas[],22,FALSE),\"\")","v":""},{"$f":"IFERROR(VLOOKUP(StudentųPeržvalga,RugsėjoLankomumas[],23,FALSE),\"\")","v":""},{"$f":"IFERROR(VLOOKUP(StudentųPeržvalga,RugsėjoLankomumas[],24,FALSE),\"\")","v":""},{"$f":"IFERROR(VLOOKUP(StudentųPeržvalga,RugsėjoLankomumas[],25,FALSE),\"\")","v":""},{"$f":"IFERROR(VLOOKUP(StudentųPeržvalga,RugsėjoLankomumas[],26,FALSE),\"\")","v":""},{"$f":"IFERROR(VLOOKUP(StudentųPeržvalga,RugsėjoLankomumas[],27,FALSE),\"\")","v":""},{"$f":"IFERROR(VLOOKUP(StudentųPeržvalga,RugsėjoLankomumas[],28,FALSE),\"\")","v":""},{"$f":"IFERROR(VLOOKUP(StudentųPeržvalga,RugsėjoLankomumas[],29,FALSE),\"\")","v":""},{"$f":"IFERROR(VLOOKUP(StudentųPeržvalga,RugsėjoLankomumas[],30,FALSE),\"\")","v":""},{"$f":"IFERROR(VLOOKUP(StudentųPeržvalga,RugsėjoLankomumas[],31,FALSE),\"\")","v":""},{"$f":"IFERROR(VLOOKUP(StudentųPeržvalga,RugsėjoLankomumas[],32,FALSE),\"\")","v":""}]
[null,"Spalis",1,2,3,4,5,6,7,8,9,10,11,12,13,14,15,16,17,18,19,20,21,22,23,24,25,26,27,28,29,30,31,{"$f":"COUNTIF($D21:$AH21,Kodas1)","v":0},{"$f":"COUNTIF($D21:$AH21,Kodas2)","v":0},{"$f":"COUNTIF($D21:$AH21,Kodas3)","v":0},{"$f":"COUNTIF($D21:$AH21,Kodas4)","v":0}]
[null,null,{"$f":"IFERROR(VLOOKUP(StudentųPeržvalga,SpalioLankomumas[],3,FALSE),\"\")","v":""},{"$f":"IFERROR(VLOOKUP(StudentųPeržvalga,SpalioLankomumas[],4,FALSE),\"\")","v":""},{"$f":"IFERROR(VLOOKUP(StudentųPeržvalga,SpalioLankomumas[],5,FALSE),\"\")","v":""},{"$f":"IFERROR(VLOOKUP(StudentųPeržvalga,SpalioLankomumas[],6,FALSE),\"\")","v":""},{"$f":"IFERROR(VLOOKUP(StudentųPeržvalga,SpalioLankomumas[],7,FALSE),\"\")","v":""},{"$f":"IFERROR(VLOOKUP(StudentųPeržvalga,SpalioLankomumas[],8,FALSE),\"\")","v":""},{"$f":"IFERROR(VLOOKUP(StudentųPeržvalga,SpalioLankomumas[],9,FALSE),\"\")","v":""},{"$f":"IFERROR(VLOOKUP(StudentųPeržvalga,SpalioLankomumas[],10,FALSE),\"\")","v":""},{"$f":"IFERROR(VLOOKUP(StudentųPeržvalga,SpalioLankomumas[],11,FALSE),\"\")","v":""},{"$f":"IFERROR(VLOOKUP(StudentųPeržvalga,SpalioLankomumas[],12,FALSE),\"\")","v":""},{"$f":"IFERROR(VLOOKUP(StudentųPeržvalga,SpalioLankomumas[],13,FALSE),\"\")","v":""},{"$f":"IFERROR(VLOOKUP(StudentųPeržvalga,SpalioLankomumas[],14,FALSE),\"\")","v":""},{"$f":"IFERROR(VLOOKUP(StudentųPeržvalga,SpalioLankomumas[],15,FALSE),\"\")","v":""},{"$f":"IFERROR(VLOOKUP(StudentųPeržvalga,SpalioLankomumas[],16,FALSE),\"\")","v":""},{"$f":"IFERROR(VLOOKUP(StudentųPeržvalga,SpalioLankomumas[],17,FALSE),\"\")","v":""},{"$f":"IFERROR(VLOOKUP(StudentųPeržvalga,SpalioLankomumas[],18,FALSE),\"\")","v":""},{"$f":"IFERROR(VLOOKUP(StudentųPeržvalga,SpalioLankomumas[],19,FALSE),\"\")","v":""},{"$f":"IFERROR(VLOOKUP(StudentųPeržvalga,SpalioLankomumas[],20,FALSE),\"\")","v":""},{"$f":"IFERROR(VLOOKUP(StudentųPeržvalga,SpalioLankomumas[],21,FALSE),\"\")","v":""},{"$f":"IFERROR(VLOOKUP(StudentųPeržvalga,SpalioLankomumas[],22,FALSE),\"\")","v":""},{"$f":"IFERROR(VLOOKUP(StudentųPeržvalga,SpalioLankomumas[],23,FALSE),\"\")","v":""},{"$f":"IFERROR(VLOOKUP(StudentųPeržvalga,SpalioLankomumas[],24,FALSE),\"\")","v":""},{"$f":"IFERROR(VLOOKUP(StudentųPeržvalga,SpalioLankomumas[],25,FALSE),\"\")","v":""},{"$f":"IFERROR(VLOOKUP(StudentųPeržvalga,SpalioLankomumas[],26,FALSE),\"\")","v":""},{"$f":"IFERROR(VLOOKUP(StudentųPeržvalga,SpalioLankomumas[],27,FALSE),\"\")","v":""},{"$f":"IFERROR(VLOOKUP(StudentųPeržvalga,SpalioLankomumas[],28,FALSE),\"\")","v":""},{"$f":"IFERROR(VLOOKUP(StudentųPeržvalga,SpalioLankomumas[],29,FALSE),\"\")","v":""},{"$f":"IFERROR(VLOOKUP(StudentųPeržvalga,SpalioLankomumas[],30,FALSE),\"\")","v":""},{"$f":"IFERROR(VLOOKUP(StudentųPeržvalga,SpalioLankomumas[],31,FALSE),\"\")","v":""},{"$f":"IFERROR(VLOOKUP(StudentųPeržvalga,SpalioLankomumas[],32,FALSE),\"\")","v":""},{"$f":"IFERROR(VLOOKUP(StudentųPeržvalga,SpalioLankomumas[],33,FALSE),\"\")","v":""}]
[null,"Lapkritis",1,2,3,4,5,6,7,8,9,10,11,12,13,14,15,16,17,18,19,20,21,22,23,24,25,26,27,28,29,30,null,{"$f":"COUNTIF($D23:$AH23,Kodas1)","v":0},{"$f":"COUNTIF($D23:$AH23,Kodas2)","v":0},{"$f":"COUNTIF($D23:$AH23,Kodas3)","v":0},{"$f":"COUNTIF($D23:$AH23,Kodas4)","v":0}]
[null,null,{"$f":"IFERROR(VLOOKUP(StudentųPeržvalga,LapkričioLankomumas[],3,FALSE),\"\")","v":""},{"$f":"IFERROR(VLOOKUP(StudentųPeržvalga,LapkričioLankomumas[],4,FALSE),\"\")","v":""},{"$f":"IFERROR(VLOOKUP(StudentųPeržvalga,LapkričioLankomumas[],5,FALSE),\"\")","v":""},{"$f":"IFERROR(VLOOKUP(StudentųPeržvalga,LapkričioLankomumas[],6,FALSE),\"\")","v":""},{"$f":"IFERROR(VLOOKUP(StudentųPeržvalga,LapkričioLankomumas[],7,FALSE),\"\")","v":""},{"$f":"IFERROR(VLOOKUP(StudentųPeržvalga,LapkričioLankomumas[],8,FALSE),\"\")","v":""},{"$f":"IFERROR(VLOOKUP(StudentųPeržvalga,LapkričioLankomumas[],9,FALSE),\"\")","v":""},{"$f":"IFERROR(VLOOKUP(StudentųPeržvalga,LapkričioLankomumas[],10,FALSE),\"\")","v":""},{"$f":"IFERROR(VLOOKUP(StudentųPeržvalga,LapkričioLankomumas[],11,FALSE),\"\")","v":""},{"$f":"IFERROR(VLOOKUP(StudentųPeržvalga,LapkričioLankomumas[],12,FALSE),\"\")","v":""},{"$f":"IFERROR(VLOOKUP(StudentųPeržvalga,LapkričioLankomumas[],13,FALSE),\"\")","v":""},{"$f":"IFERROR(VLOOKUP(StudentųPeržvalga,LapkričioLankomumas[],14,FALSE),\"\")","v":""},{"$f":"IFERROR(VLOOKUP(StudentųPeržvalga,LapkričioLankomumas[],15,FALSE),\"\")","v":""},{"$f":"IFERROR(VLOOKUP(StudentųPeržvalga,LapkričioLankomumas[],16,FALSE),\"\")","v":""},{"$f":"IFERROR(VLOOKUP(StudentųPeržvalga,LapkričioLankomumas[],17,FALSE),\"\")","v":""},{"$f":"IFERROR(VLOOKUP(StudentųPeržvalga,LapkričioLankomumas[],18,FALSE),\"\")","v":""},{"$f":"IFERROR(VLOOKUP(StudentųPeržvalga,LapkričioLankomumas[],19,FALSE),\"\")","v":""},{"$f":"IFERROR(VLOOKUP(StudentųPeržvalga,LapkričioLankomumas[],20,FALSE),\"\")","v":""},{"$f":"IFERROR(VLOOKUP(StudentųPeržvalga,LapkričioLankomumas[],21,FALSE),\"\")","v":""},{"$f":"IFERROR(VLOOKUP(StudentųPeržvalga,LapkričioLankomumas[],22,FALSE),\"\")","v":""},{"$f":"IFERROR(VLOOKUP(StudentųPeržvalga,LapkričioLankomumas[],23,FALSE),\"\")","v":""},{"$f":"IFERROR(VLOOKUP(StudentųPeržvalga,LapkričioLankomumas[],24,FALSE),\"\")","v":""},{"$f":"IFERROR(VLOOKUP(StudentųPeržvalga,LapkričioLankomumas[],25,FALSE),\"\")","v":""},{"$f":"IFERROR(VLOOKUP(StudentųPeržvalga,LapkričioLankomumas[],26,FALSE),\"\")","v":""},{"$f":"IFERROR(VLOOKUP(StudentųPeržvalga,LapkričioLankomumas[],27,FALSE),\"\")","v":""},{"$f":"IFERROR(VLOOKUP(StudentųPeržvalga,LapkričioLankomumas[],28,FALSE),\"\")","v":""},{"$f":"IFERROR(VLOOKUP(StudentųPeržvalga,LapkričioLankomumas[],29,FALSE),\"\")","v":""},{"$f":"IFERROR(VLOOKUP(StudentųPeržvalga,LapkričioLankomumas[],30,FALSE),\"\")","v":""},{"$f":"IFERROR(VLOOKUP(StudentųPeržvalga,LapkričioLankomumas[],31,FALSE),\"\")","v":""},{"$f":"IFERROR(VLOOKUP(StudentųPeržvalga,LapkričioLankomumas[],32,FALSE),\"\")","v":""}]
[null,"Gruodis",1,2,3,4,5,6,7,8,9,10,11,12,13,14,15,16,17,18,19,20,21,22,23,24,25,26,27,28,29,30,31,{"$f":"COUNTIF($D25:$AH25,Kodas1)","v":0},{"$f":"COUNTIF($D25:$AH25,Kodas2)","v":0},{"$f":"COUNTIF($D25:$AH25,Kodas3)","v":0},{"$f":"COUNTIF($D25:$AH25,Kodas4)","v":0}]
[null,null,{"$f":"IFERROR(VLOOKUP(StudentųPeržvalga,GruodžioLankomumas[],3,FALSE),\"\")","v":""},{"$f":"IFERROR(VLOOKUP(StudentųPeržvalga,GruodžioLankomumas[],4,FALSE),\"\")","v":""},{"$f":"IFERROR(VLOOKUP(StudentųPeržvalga,GruodžioLankomumas[],5,FALSE),\"\")","v":""},{"$f":"IFERROR(VLOOKUP(StudentųPeržvalga,GruodžioLankomumas[],6,FALSE),\"\")","v":""},{"$f":"IFERROR(VLOOKUP(StudentųPeržvalga,GruodžioLankomumas[],7,FALSE),\"\")","v":""},{"$f":"IFERROR(VLOOKUP(StudentųPeržvalga,GruodžioLankomumas[],8,FALSE),\"\")","v":""},{"$f":"IFERROR(VLOOKUP(StudentųPeržvalga,GruodžioLankomumas[],9,FALSE),\"\")","v":""},{"$f":"IFERROR(VLOOKUP(StudentųPeržvalga,GruodžioLankomumas[],10,FALSE),\"\")","v":""},{"$f":"IFERROR(VLOOKUP(StudentųPeržvalga,GruodžioLankomumas[],11,FALSE),\"\")","v":""},{"$f":"IFERROR(VLOOKUP(StudentųPeržvalga,GruodžioLankomumas[],12,FALSE),\"\")","v":""},{"$f":"IFERROR(VLOOKUP(StudentųPeržvalga,GruodžioLankomumas[],13,FALSE),\"\")","v":""},{"$f":"IFERROR(VLOOKUP(StudentųPeržvalga,GruodžioLankomumas[],14,FALSE),\"\")","v":""},{"$f":"IFERROR(VLOOKUP(StudentųPeržvalga,GruodžioLankomumas[],15,FALSE),\"\")","v":""},{"$f":"IFERROR(VLOOKUP(StudentųPeržvalga,GruodžioLankomumas[],16,FALSE),\"\")","v":""},{"$f":"IFERROR(VLOOKUP(StudentųPeržvalga,GruodžioLankomumas[],17,FALSE),\"\")","v":""},{"$f":"IFERROR(VLOOKUP(StudentųPeržvalga,GruodžioLankomumas[],18,FALSE),\"\")","v":""},{"$f":"IFERROR(VLOOKUP(StudentųPeržvalga,GruodžioLankomumas[],19,FALSE),\"\")","v":""},{"$f":"IFERROR(VLOOKUP(StudentųPeržvalga,GruodžioLankomumas[],20,FALSE),\"\")","v":""},{"$f":"IFERROR(VLOOKUP(StudentųPeržvalga,GruodžioLankomumas[],21,FALSE),\"\")","v":""},{"$f":"IFERROR(VLOOKUP(StudentųPeržvalga,GruodžioLankomumas[],22,FALSE),\"\")","v":""},{"$f":"IFERROR(VLOOKUP(StudentųPeržvalga,GruodžioLankomumas[],23,FALSE),\"\")","v":""},{"$f":"IFERROR(VLOOKUP(StudentųPeržvalga,GruodžioLankomumas[],24,FALSE),\"\")","v":""},{"$f":"IFERROR(VLOOKUP(StudentųPeržvalga,GruodžioLankomumas[],25,FALSE),\"\")","v":""},{"$f":"IFERROR(VLOOKUP(StudentųPeržvalga,GruodžioLankomumas[],26,FALSE),\"\")","v":""},{"$f":"IFERROR(VLOOKUP(StudentųPeržvalga,GruodžioLankomumas[],27,FALSE),\"\")","v":""},{"$f":"IFERROR(VLOOKUP(StudentųPeržvalga,GruodžioLankomumas[],28,FALSE),\"\")","v":""},{"$f":"IFERROR(VLOOKUP(StudentųPeržvalga,GruodžioLankomumas[],29,FALSE),\"\")","v":""},{"$f":"IFERROR(VLOOKUP(StudentųPeržvalga,GruodžioLankomumas[],30,FALSE),\"\")","v":""},{"$f":"IFERROR(VLOOKUP(StudentųPeržvalga,GruodžioLankomumas[],31,FALSE),\"\")","v":""},{"$f":"IFERROR(VLOOKUP(StudentųPeržvalga,GruodžioLankomumas[],32,FALSE),\"\")","v":""},{"$f":"IFERROR(VLOOKUP(StudentųPeržvalga,GruodžioLankomumas[],33,FALSE),\"\")","v":""}]
[null,"Sausis",1,2,3,4,5,6,7,8,9,10,11,12,13,14,15,16,17,18,19,20,21,22,23,24,25,26,27,28,29,30,31,{"$f":"COUNTIF($D27:$AH27,Kodas1)","v":0},{"$f":"COUNTIF($D27:$AH27,Kodas2)","v":0},{"$f":"COUNTIF($D27:$AH27,Kodas3)","v":0},{"$f":"COUNTIF($D27:$AH27,Kodas4)","v":0}]
[null,null,{"$f":"IFERROR(VLOOKUP(StudentųPeržvalga,SausioLankomumas[],3,FALSE),\"\")","v":""},{"$f":"IFERROR(VLOOKUP(StudentųPeržvalga,SausioLankomumas[],4,FALSE),\"\")","v":""},{"$f":"IFERROR(VLOOKUP(StudentųPeržvalga,SausioLankomumas[],5,FALSE),\"\")","v":""},{"$f":"IFERROR(VLOOKUP(StudentųPeržvalga,SausioLankomumas[],6,FALSE),\"\")","v":""},{"$f":"IFERROR(VLOOKUP(StudentųPeržvalga,SausioLankomumas[],7,FALSE),\"\")","v":""},{"$f":"IFERROR(VLOOKUP(StudentųPeržvalga,SausioLankomumas[],8,FALSE),\"\")","v":""},{"$f":"IFERROR(VLOOKUP(StudentųPeržvalga,SausioLankomumas[],9,FALSE),\"\")","v":""},{"$f":"IFERROR(VLOOKUP(StudentųPeržvalga,SausioLankomumas[],10,FALSE),\"\")","v":""},{"$f":"IFERROR(VLOOKUP(StudentųPeržvalga,SausioLankomumas[],11,FALSE),\"\")","v":""},{"$f":"IFERROR(VLOOKUP(StudentųPeržvalga,SausioLankomumas[],12,FALSE),\"\")","v":""},{"$f":"IFERROR(VLOOKUP(StudentųPeržvalga,SausioLankomumas[],13,FALSE),\"\")","v":""},{"$f":"IFERROR(VLOOKUP(StudentųPeržvalga,SausioLankomumas[],14,FALSE),\"\")","v":""},{"$f":"IFERROR(VLOOKUP(StudentųPeržvalga,SausioLankomumas[],15,FALSE),\"\")","v":""},{"$f":"IFERROR(VLOOKUP(StudentųPeržvalga,SausioLankomumas[],16,FALSE),\"\")","v":""},{"$f":"IFERROR(VLOOKUP(StudentųPeržvalga,SausioLankomumas[],17,FALSE),\"\")","v":""},{"$f":"IFERROR(VLOOKUP(StudentųPeržvalga,SausioLankomumas[],18,FALSE),\"\")","v":""},{"$f":"IFERROR(VLOOKUP(StudentųPeržvalga,SausioLankomumas[],19,FALSE),\"\")","v":""},{"$f":"IFERROR(VLOOKUP(StudentųPeržvalga,SausioLankomumas[],20,FALSE),\"\")","v":""},{"$f":"IFERROR(VLOOKUP(StudentųPeržvalga,SausioLankomumas[],21,FALSE),\"\")","v":""},{"$f":"IFERROR(VLOOKUP(StudentųPeržvalga,SausioLankomumas[],22,FALSE),\"\")","v":""},{"$f":"IFERROR(VLOOKUP(StudentųPeržvalga,SausioLankomumas[],23,FALSE),\"\")","v":""},{"$f":"IFERROR(VLOOKUP(StudentųPeržvalga,SausioLankomumas[],24,FALSE),\"\")","v":""},{"$f":"IFERROR(VLOOKUP(StudentųPeržvalga,SausioLankomumas[],25,FALSE),\"\")","v":""},{"$f":"IFERROR(VLOOKUP(StudentųPeržvalga,SausioLankomumas[],26,FALSE),\"\")","v":""},{"$f":"IFERROR(VLOOKUP(StudentųPeržvalga,SausioLankomumas[],27,FALSE),\"\")","v":""},{"$f":"IFERROR(VLOOKUP(StudentųPeržvalga,SausioLankomumas[],28,FALSE),\"\")","v":""},{"$f":"IFERROR(VLOOKUP(StudentųPeržvalga,SausioLankomumas[],29,FALSE),\"\")","v":""},{"$f":"IFERROR(VLOOKUP(StudentųPeržvalga,SausioLankomumas[],30,FALSE),\"\")","v":""},{"$f":"IFERROR(VLOOKUP(StudentųPeržvalga,SausioLankomumas[],31,FALSE),\"\")","v":""},{"$f":"IFERROR(VLOOKUP(StudentųPeržvalga,SausioLankomumas[],32,FALSE),\"\")","v":""},{"$f":"IFERROR(VLOOKUP(StudentųPeržvalga,SausioLankomumas[],33,FALSE),\"\")","v":""}]
[null,"Vasaris",1,2,3,4,5,6,7,8,9,10,11,12,13,14,15,16,17,18,19,20,21,22,23,24,25,26,27,28,29,null,null,{"$f":"COUNTIF($D29:$AH29,Kodas1)","v":0},{"$f":"COUNTIF($D29:$AH29,Kodas2)","v":0},{"$f":"COUNTIF($D29:$AH29,Kodas3)","v":0},{"$f":"COUNTIF($D29:$AH29,Kodas4)","v":0}]
[null,null,{"$f":"IFERROR(VLOOKUP(StudentųPeržvalga,VasarioLankomumas[],3,FALSE),\"\")","v":""},{"$f":"IFERROR(VLOOKUP(StudentųPeržvalga,VasarioLankomumas[],4,FALSE),\"\")","v":""},{"$f":"IFERROR(VLOOKUP(StudentųPeržvalga,VasarioLankomumas[],5,FALSE),\"\")","v":""},{"$f":"IFERROR(VLOOKUP(StudentųPeržvalga,VasarioLankomumas[],6,FALSE),\"\")","v":""},{"$f":"IFERROR(VLOOKUP(StudentųPeržvalga,VasarioLankomumas[],7,FALSE),\"\")","v":""},{"$f":"IFERROR(VLOOKUP(StudentųPeržvalga,VasarioLankomumas[],8,FALSE),\"\")","v":""},{"$f":"IFERROR(VLOOKUP(StudentųPeržvalga,VasarioLankomumas[],9,FALSE),\"\")","v":""},{"$f":"IFERROR(VLOOKUP(StudentųPeržvalga,VasarioLankomumas[],10,FALSE),\"\")","v":""},{"$f":"IFERROR(VLOOKUP(StudentųPeržvalga,VasarioLankomumas[],11,FALSE),\"\")","v":""},{"$f":"IFERROR(VLOOKUP(StudentųPeržvalga,VasarioLankomumas[],12,FALSE),\"\")","v":""},{"$f":"IFERROR(VLOOKUP(StudentųPeržvalga,VasarioLankomumas[],13,FALSE),\"\")","v":""},{"$f":"IFERROR(VLOOKUP(StudentųPeržvalga,VasarioLankomumas[],14,FALSE),\"\")","v":""},{"$f":"IFERROR(VLOOKUP(StudentųPeržvalga,VasarioLankomumas[],15,FALSE),\"\")","v":""},{"$f":"IFERROR(VLOOKUP(StudentųPeržvalga,VasarioLankomumas[],16,FALSE),\"\")","v":""},{"$f":"IFERROR(VLOOKUP(StudentųPeržvalga,VasarioLankomumas[],17,FALSE),\"\")","v":""},{"$f":"IFERROR(VLOOKUP(StudentųPeržvalga,VasarioLankomumas[],18,FALSE),\"\")","v":""},{"$f":"IFERROR(VLOOKUP(StudentųPeržvalga,VasarioLankomumas[],19,FALSE),\"\")","v":""},{"$f":"IFERROR(VLOOKUP(StudentųPeržvalga,VasarioLankomumas[],20,FALSE),\"\")","v":""},{"$f":"IFERROR(VLOOKUP(StudentųPeržvalga,VasarioLankomumas[],21,FALSE),\"\")","v":""},{"$f":"IFERROR(VLOOKUP(StudentųPeržvalga,VasarioLankomumas[],22,FALSE),\"\")","v":""},{"$f":"IFERROR(VLOOKUP(StudentųPeržvalga,VasarioLankomumas[],23,FALSE),\"\")","v":""},{"$f":"IFERROR(VLOOKUP(StudentųPeržvalga,VasarioLankomumas[],24,FALSE),\"\")","v":""},{"$f":"IFERROR(VLOOKUP(StudentųPeržvalga,VasarioLankomumas[],25,FALSE),\"\")","v":""},{"$f":"IFERROR(VLOOKUP(StudentųPeržvalga,VasarioLankomumas[],26,FALSE),\"\")","v":""},{"$f":"IFERROR(VLOOKUP(StudentųPeržvalga,VasarioLankomumas[],27,FALSE),\"\")","v":""},{"$f":"IFERROR(VLOOKUP(StudentųPeržvalga,VasarioLankomumas[],28,FALSE),\"\")","v":""},{"$f":"IFERROR(VLOOKUP(StudentųPeržvalga,VasarioLankomumas[],29,FALSE),\"\")","v":""},{"$f":"IFERROR(VLOOKUP(StudentųPeržvalga,VasarioLankomumas[],30,FALSE),\"\")","v":""},{"$f":"IFERROR(VLOOKUP(StudentųPeržvalga,VasarioLankomumas[],31,FALSE),\"\")","v":""}]
[null,"Kovas",1,2,3,4,5,6,7,8,9,10,11,12,13,14,15,16,17,18,19,20,21,22,23,24,25,26,27,28,29,30,31,{"$f":"COUNTIF($D31:$AH31,Kodas1)","v":0},{"$f":"COUNTIF($D31:$AH31,Kodas2)","v":0},{"$f":"COUNTIF($D31:$AH31,Kodas3)","v":0},{"$f":"COUNTIF($D31:$AH31,Kodas4)","v":0}]
[null,null,{"$f":"IFERROR(VLOOKUP(StudentųPeržvalga,KovoLankomumas[],3,FALSE),\"\")","v":""},{"$f":"IFERROR(VLOOKUP(StudentųPeržvalga,KovoLankomumas[],4,FALSE),\"\")","v":""},{"$f":"IFERROR(VLOOKUP(StudentųPeržvalga,KovoLankomumas[],5,FALSE),\"\")","v":""},{"$f":"IFERROR(VLOOKUP(StudentųPeržvalga,KovoLankomumas[],6,FALSE),\"\")","v":""},{"$f":"IFERROR(VLOOKUP(StudentųPeržvalga,KovoLankomumas[],7,FALSE),\"\")","v":""},{"$f":"IFERROR(VLOOKUP(StudentųPeržvalga,KovoLankomumas[],8,FALSE),\"\")","v":""},{"$f":"IFERROR(VLOOKUP(StudentųPeržvalga,KovoLankomumas[],9,FALSE),\"\")","v":""},{"$f":"IFERROR(VLOOKUP(StudentųPeržvalga,KovoLankomumas[],10,FALSE),\"\")","v":""},{"$f":"IFERROR(VLOOKUP(StudentųPeržvalga,KovoLankomumas[],11,FALSE),\"\")","v":""},{"$f":"IFERROR(VLOOKUP(StudentųPeržvalga,KovoLankomumas[],12,FALSE),\"\")","v":""},{"$f":"IFERROR(VLOOKUP(StudentųPeržvalga,KovoLankomumas[],13,FALSE),\"\")","v":""},{"$f":"IFERROR(VLOOKUP(StudentųPeržvalga,KovoLankomumas[],14,FALSE),\"\")","v":""},{"$f":"IFERROR(VLOOKUP(StudentųPeržvalga,KovoLankomumas[],15,FALSE),\"\")","v":""},{"$f":"IFERROR(VLOOKUP(StudentųPeržvalga,KovoLankomumas[],16,FALSE),\"\")","v":""},{"$f":"IFERROR(VLOOKUP(StudentųPeržvalga,KovoLankomumas[],17,FALSE),\"\")","v":""},{"$f":"IFERROR(VLOOKUP(StudentųPeržvalga,KovoLankomumas[],18,FALSE),\"\")","v":""},{"$f":"IFERROR(VLOOKUP(StudentųPeržvalga,KovoLankomumas[],19,FALSE),\"\")","v":""},{"$f":"IFERROR(VLOOKUP(StudentųPeržvalga,KovoLankomumas[],20,FALSE),\"\")","v":""},{"$f":"IFERROR(VLOOKUP(StudentųPeržvalga,KovoLankomumas[],21,FALSE),\"\")","v":""},{"$f":"IFERROR(VLOOKUP(StudentųPeržvalga,KovoLankomumas[],22,FALSE),\"\")","v":""},{"$f":"IFERROR(VLOOKUP(StudentųPeržvalga,KovoLankomumas[],23,FALSE),\"\")","v":""},{"$f":"IFERROR(VLOOKUP(StudentųPeržvalga,KovoLankomumas[],24,FALSE),\"\")","v":""},{"$f":"IFERROR(VLOOKUP(StudentųPeržvalga,KovoLankomumas[],25,FALSE),\"\")","v":""},{"$f":"IFERROR(VLOOKUP(StudentųPeržvalga,KovoLankomumas[],26,FALSE),\"\")","v":""},{"$f":"IFERROR(VLOOKUP(StudentųPeržvalga,KovoLankomumas[],27,FALSE),\"\")","v":""},{"$f":"IFERROR(VLOOKUP(StudentųPeržvalga,KovoLankomumas[],28,FALSE),\"\")","v":""},{"$f":"IFERROR(VLOOKUP(StudentųPeržvalga,KovoLankomumas[],29,FALSE),\"\")","v":""},{"$f":"IFERROR(VLOOKUP(StudentųPeržvalga,KovoLankomumas[],30,FALSE),\"\")","v":""},{"$f":"IFERROR(VLOOKUP(StudentųPeržvalga,KovoLankomumas[],31,FALSE),\"\")","v":""},{"$f":"IFERROR(VLOOKUP(StudentųPeržvalga,KovoLankomumas[],32,FALSE),\"\")","v":""},{"$f":"IFERROR(VLOOKUP(StudentųPeržvalga,KovoLankomumas[],33,FALSE),\"\")","v":""}]
[null,"Balandis",1,2,3,4,5,6,7,8,9,10,11,12,13,14,15,16,17,18,19,20,21,22,23,24,25,26,27,28,29,30,null,{"$f":"COUNTIF($D33:$AH33,Kodas1)","v":0},{"$f":"COUNTIF($D33:$AH33,Kodas2)","v":0},{"$f":"COUNTIF($D33:$AH33,Kodas3)","v":0},{"$f":"COUNTIF($D33:$AH33,Kodas4)","v":0}]
[null,null,{"$f":"IFERROR(VLOOKUP(StudentųPeržvalga,BalandžioLankomumas[],3,FALSE),\"\")","v":""},{"$f":"IFERROR(VLOOKUP(StudentųPeržvalga,BalandžioLankomumas[],4,FALSE),\"\")","v":""},{"$f":"IFERROR(VLOOKUP(StudentųPeržvalga,BalandžioLankomumas[],5,FALSE),\"\")","v":""},{"$f":"IFERROR(VLOOKUP(StudentųPeržvalga,BalandžioLankomumas[],6,FALSE),\"\")","v":""},{"$f":"IFERROR(VLOOKUP(StudentųPeržvalga,BalandžioLankomumas[],7,FALSE),\"\")","v":""},{"$f":"IFERROR(VLOOKUP(StudentųPeržvalga,BalandžioLankomumas[],8,FALSE),\"\")","v":""},{"$f":"IFERROR(VLOOKUP(StudentųPeržvalga,BalandžioLankomumas[],9,FALSE),\"\")","v":""},{"$f":"IFERROR(VLOOKUP(StudentųPeržvalga,BalandžioLankomumas[],10,FALSE),\"\")","v":""},{"$f":"IFERROR(VLOOKUP(StudentųPeržvalga,BalandžioLankomumas[],11,FALSE),\"\")","v":""},{"$f":"IFERROR(VLOOKUP(StudentųPeržvalga,BalandžioLankomumas[],12,FALSE),\"\")","v":""},{"$f":"IFERROR(VLOOKUP(StudentųPeržvalga,BalandžioLankomumas[],13,FALSE),\"\")","v":""},{"$f":"IFERROR(VLOOKUP(StudentųPeržvalga,BalandžioLankomumas[],14,FALSE),\"\")","v":""},{"$f":"IFERROR(VLOOKUP(StudentųPeržvalga,BalandžioLankomumas[],15,FALSE),\"\")","v":""},{"$f":"IFERROR(VLOOKUP(StudentųPeržvalga,BalandžioLankomumas[],16,FALSE),\"\")","v":""},{"$f":"IFERROR(VLOOKUP(StudentųPeržvalga,BalandžioLankomumas[],17,FALSE),\"\")","v":""},{"$f":"IFERROR(VLOOKUP(StudentųPeržvalga,BalandžioLankomumas[],18,FALSE),\"\")","v":""},{"$f":"IFERROR(VLOOKUP(StudentųPeržvalga,BalandžioLankomumas[],19,FALSE),\"\")","v":""},{"$f":"IFERROR(VLOOKUP(StudentųPeržvalga,BalandžioLankomumas[],20,FALSE),\"\")","v":""},{"$f":"IFERROR(VLOOKUP(StudentųPeržvalga,BalandžioLankomumas[],21,FALSE),\"\")","v":""},{"$f":"IFERROR(VLOOKUP(StudentųPeržvalga,BalandžioLankomumas[],22,FALSE),\"\")","v":""},{"$f":"IFERROR(VLOOKUP(StudentųPeržvalga,BalandžioLankomumas[],23,FALSE),\"\")","v":""},{"$f":"IFERROR(VLOOKUP(StudentųPeržvalga,BalandžioLankomumas[],24,FALSE),\"\")","v":""},{"$f":"IFERROR(VLOOKUP(StudentųPeržvalga,BalandžioLankomumas[],25,FALSE),\"\")","v":""},{"$f":"IFERROR(VLOOKUP(StudentųPeržvalga,BalandžioLankomumas[],26,FALSE),\"\")","v":""},{"$f":"IFERROR(VLOOKUP(StudentųPeržvalga,BalandžioLankomumas[],27,FALSE),\"\")","v":""},{"$f":"IFERROR(VLOOKUP(StudentųPeržvalga,BalandžioLankomumas[],28,FALSE),\"\")","v":""},{"$f":"IFERROR(VLOOKUP(StudentųPeržvalga,BalandžioLankomumas[],29,FALSE),\"\")","v":""},{"$f":"IFERROR(VLOOKUP(StudentųPeržvalga,BalandžioLankomumas[],30,FALSE),\"\")","v":""},{"$f":"IFERROR(VLOOKUP(StudentųPeržvalga,BalandžioLankomumas[],31,FALSE),\"\")","v":""},{"$f":"IFERROR(VLOOKUP(StudentųPeržvalga,BalandžioLankomumas[],32,FALSE),\"\")","v":""}]
[null,"Gegužė",1,2,3,4,5,6,7,8,9,10,11,12,13,14,15,16,17,18,19,20,21,22,23,24,25,26,27,28,29,30,31,{"$f":"COUNTIF($D35:$AH35,Kodas1)","v":0},{"$f":"COUNTIF($D35:$AH35,Kodas2)","v":0},{"$f":"COUNTIF($D35:$AH35,Kodas3)","v":0},{"$f":"COUNTIF($D35:$AH35,Kodas4)","v":0}]
[null,null,{"$f":"IFERROR(VLOOKUP(StudentųPeržvalga,GegužėsLankomumas[],3,FALSE),\"\")","v":""},{"$f":"IFERROR(VLOOKUP(StudentųPeržvalga,GegužėsLankomumas[],4,FALSE),\"\")","v":""},{"$f":"IFERROR(VLOOKUP(StudentųPeržvalga,GegužėsLankomumas[],5,FALSE),\"\")","v":""},{"$f":"IFERROR(VLOOKUP(StudentųPeržvalga,GegužėsLankomumas[],6,FALSE),\"\")","v":""},{"$f":"IFERROR(VLOOKUP(StudentųPeržvalga,GegužėsLankomumas[],7,FALSE),\"\")","v":""},{"$f":"IFERROR(VLOOKUP(StudentųPeržvalga,GegužėsLankomumas[],8,FALSE),\"\")","v":""},{"$f":"IFERROR(VLOOKUP(StudentųPeržvalga,GegužėsLankomumas[],9,FALSE),\"\")","v":""},{"$f":"IFERROR(VLOOKUP(StudentųPeržvalga,GegužėsLankomumas[],10,FALSE),\"\")","v":""},{"$f":"IFERROR(VLOOKUP(StudentųPeržvalga,GegužėsLankomumas[],11,FALSE),\"\")","v":""},{"$f":"IFERROR(VLOOKUP(StudentųPeržvalga,GegužėsLankomumas[],12,FALSE),\"\")","v":""},{"$f":"IFERROR(VLOOKUP(StudentųPeržvalga,GegužėsLankomumas[],13,FALSE),\"\")","v":""},{"$f":"IFERROR(VLOOKUP(StudentųPeržvalga,GegužėsLankomumas[],14,FALSE),\"\")","v":""},{"$f":"IFERROR(VLOOKUP(StudentųPeržvalga,GegužėsLankomumas[],15,FALSE),\"\")","v":""},{"$f":"IFERROR(VLOOKUP(StudentųPeržvalga,GegužėsLankomumas[],16,FALSE),\"\")","v":""},{"$f":"IFERROR(VLOOKUP(StudentųPeržvalga,GegužėsLankomumas[],17,FALSE),\"\")","v":""},{"$f":"IFERROR(VLOOKUP(StudentųPeržvalga,GegužėsLankomumas[],18,FALSE),\"\")","v":""},{"$f":"IFERROR(VLOOKUP(StudentųPeržvalga,GegužėsLankomumas[],19,FALSE),\"\")","v":""},{"$f":"IFERROR(VLOOKUP(StudentųPeržvalga,GegužėsLankomumas[],20,FALSE),\"\")","v":""},{"$f":"IFERROR(VLOOKUP(StudentųPeržvalga,GegužėsLankomumas[],21,FALSE),\"\")","v":""},{"$f":"IFERROR(VLOOKUP(StudentųPeržvalga,GegužėsLankomumas[],22,FALSE),\"\")","v":""},{"$f":"IFERROR(VLOOKUP(StudentųPeržvalga,GegužėsLankomumas[],23,FALSE),\"\")","v":""},{"$f":"IFERROR(VLOOKUP(StudentųPeržvalga,GegužėsLankomumas[],24,FALSE),\"\")","v":""},{"$f":"IFERROR(VLOOKUP(StudentųPeržvalga,GegužėsLankomumas[],25,FALSE),\"\")","v":""},{"$f":"IFERROR(VLOOKUP(StudentųPeržvalga,GegužėsLankomumas[],26,FALSE),\"\")","v":""},{"$f":"IFERROR(VLOOKUP(StudentųPeržvalga,GegužėsLankomumas[],27,FALSE),\"\")","v":""},{"$f":"IFERROR(VLOOKUP(StudentųPeržvalga,GegužėsLankomumas[],28,FALSE),\"\")","v":""},{"$f":"IFERROR(VLOOKUP(StudentųPeržvalga,GegužėsLankomumas[],29,FALSE),\"\")","v":""},{"$f":"IFERROR(VLOOKUP(StudentųPeržvalga,GegužėsLankomumas[],30,FALSE),\"\")","v":""},{"$f":"IFERROR(VLOOKUP(StudentųPeržvalga,GegužėsLankomumas[],31,FALSE),\"\")","v":""},{"$f":"IFERROR(VLOOKUP(StudentųPeržvalga,GegužėsLankomumas[],32,FALSE),\"\")","v":""},{"$f":"IFERROR(VLOOKUP(StudentųPeržvalga,GegužėsLankomumas[],33,FALSE),\"\")","v":""}]
[null,"Birželis",1,2,3,4,5,6,7,8,9,10,11,12,13,14,15,16,17,18,19,20,21,22,23,24,25,26,27,28,29,30,null,{"$f":"COUNTIF($D37:$AH37,Kodas1)","v":0},{"$f":"COUNTIF($D37:$AH37,Kodas2)","v":0},{"$f":"COUNTIF($D37:$AH37,Kodas3)","v":0},{"$f":"COUNTIF($D37:$AH37,Kodas4)","v":0}]
[null,null,{"$f":"IFERROR(VLOOKUP(StudentųPeržvalga,BirželioLankomumas[],3,FALSE),\"\")","v":""},{"$f":"IFERROR(VLOOKUP(StudentųPeržvalga,BirželioLankomumas[],4,FALSE),\"\")","v":""},{"$f":"IFERROR(VLOOKUP(StudentųPeržvalga,BirželioLankomumas[],5,FALSE),\"\")","v":""},{"$f":"IFERROR(VLOOKUP(StudentųPeržvalga,BirželioLankomumas[],6,FALSE),\"\")","v":""},{"$f":"IFERROR(VLOOKUP(StudentųPeržvalga,BirželioLankomumas[],7,FALSE),\"\")","v":""},{"$f":"IFERROR(VLOOKUP(StudentųPeržvalga,BirželioLankomumas[],8,FALSE),\"\")","v":""},{"$f":"IFERROR(VLOOKUP(StudentųPeržvalga,BirželioLankomumas[],9,FALSE),\"\")","v":""},{"$f":"IFERROR(VLOOKUP(StudentųPeržvalga,BirželioLankomumas[],10,FALSE),\"\")","v":""},{"$f":"IFERROR(VLOOKUP(StudentųPeržvalga,BirželioLankomumas[],11,FALSE),\"\")","v":""},{"$f":"IFERROR(VLOOKUP(StudentųPeržvalga,BirželioLankomumas[],12,FALSE),\"\")","v":""},{"$f":"IFERROR(VLOOKUP(StudentųPeržvalga,BirželioLankomumas[],13,FALSE),\"\")","v":""},{"$f":"IFERROR(VLOOKUP(StudentųPeržvalga,BirželioLankomumas[],14,FALSE),\"\")","v":""},{"$f":"IFERROR(VLOOKUP(StudentųPeržvalga,BirželioLankomumas[],15,FALSE),\"\")","v":""},{"$f":"IFERROR(VLOOKUP(StudentųPeržvalga,BirželioLankomumas[],16,FALSE),\"\")","v":""},{"$f":"IFERROR(VLOOKUP(StudentųPeržvalga,BirželioLankomumas[],17,FALSE),\"\")","v":""},{"$f":"IFERROR(VLOOKUP(StudentųPeržvalga,BirželioLankomumas[],18,FALSE),\"\")","v":""},{"$f":"IFERROR(VLOOKUP(StudentųPeržvalga,BirželioLankomumas[],19,FALSE),\"\")","v":""},{"$f":"IFERROR(VLOOKUP(StudentųPeržvalga,BirželioLankomumas[],20,FALSE),\"\")","v":""},{"$f":"IFERROR(VLOOKUP(StudentųPeržvalga,BirželioLankomumas[],21,FALSE),\"\")","v":""},{"$f":"IFERROR(VLOOKUP(StudentųPeržvalga,BirželioLankomumas[],22,FALSE),\"\")","v":""},{"$f":"IFERROR(VLOOKUP(StudentųPeržvalga,BirželioLankomumas[],23,FALSE),\"\")","v":""},{"$f":"IFERROR(VLOOKUP(StudentųPeržvalga,BirželioLankomumas[],24,FALSE),\"\")","v":""},{"$f":"IFERROR(VLOOKUP(StudentųPeržvalga,BirželioLankomumas[],25,FALSE),\"\")","v":""},{"$f":"IFERROR(VLOOKUP(StudentųPeržvalga,BirželioLankomumas[],26,FALSE),\"\")","v":""},{"$f":"IFERROR(VLOOKUP(StudentųPeržvalga,BirželioLankomumas[],27,FALSE),\"\")","v":""},{"$f":"IFERROR(VLOOKUP(StudentųPeržvalga,BirželioLankomumas[],28,FALSE),\"\")","v":""},{"$f":"IFERROR(VLOOKUP(StudentųPeržvalga,BirželioLankomumas[],29,FALSE),\"\")","v":""},{"$f":"IFERROR(VLOOKUP(StudentųPeržvalga,BirželioLankomumas[],30,FALSE),\"\")","v":""},{"$f":"IFERROR(VLOOKUP(StudentųPeržvalga,BirželioLankomumas[],31,FALSE),\"\")","v":""},{"$f":"IFERROR(VLOOKUP(StudentųPeržvalga,BirželioLankomumas[],32,FALSE),\"\")","v":""}]
[null,"Liepa",1,2,3,4,5,6,7,8,9,10,11,12,13,14,15,16,17,18,19,20,21,22,23,24,25,26,27,28,29,30,31,{"$f":"COUNTIF($D39:$AH39,Kodas1)","v":0},{"$f":"COUNTIF($D39:$AH39,Kodas2)","v":0},{"$f":"COUNTIF($D39:$AH39,Kodas3)","v":0},{"$f":"COUNTIF($D39:$AH39,Kodas4)","v":0}]
[null,null,{"$f":"IFERROR(VLOOKUP(StudentųPeržvalga,LieposLankomumas[],3,FALSE),\"\")","v":""},{"$f":"IFERROR(VLOOKUP(StudentųPeržvalga,LieposLankomumas[],4,FALSE),\"\")","v":""},{"$f":"IFERROR(VLOOKUP(StudentųPeržvalga,LieposLankomumas[],5,FALSE),\"\")","v":""},{"$f":"IFERROR(VLOOKUP(StudentųPeržvalga,LieposLankomumas[],6,FALSE),\"\")","v":""},{"$f":"IFERROR(VLOOKUP(StudentųPeržvalga,LieposLankomumas[],7,FALSE),\"\")","v":""},{"$f":"IFERROR(VLOOKUP(StudentųPeržvalga,LieposLankomumas[],8,FALSE),\"\")","v":""},{"$f":"IFERROR(VLOOKUP(StudentųPeržvalga,LieposLankomumas[],9,FALSE),\"\")","v":""},{"$f":"IFERROR(VLOOKUP(StudentųPeržvalga,LieposLankomumas[],10,FALSE),\"\")","v":""},{"$f":"IFERROR(VLOOKUP(StudentųPeržvalga,LieposLankomumas[],11,FALSE),\"\")","v":""},{"$f":"IFERROR(VLOOKUP(StudentųPeržvalga,LieposLankomumas[],12,FALSE),\"\")","v":""},{"$f":"IFERROR(VLOOKUP(StudentųPeržvalga,LieposLankomumas[],13,FALSE),\"\")","v":""},{"$f":"IFERROR(VLOOKUP(StudentųPeržvalga,LieposLankomumas[],14,FALSE),\"\")","v":""},{"$f":"IFERROR(VLOOKUP(StudentųPeržvalga,LieposLankomumas[],15,FALSE),\"\")","v":""},{"$f":"IFERROR(VLOOKUP(StudentųPeržvalga,LieposLankomumas[],16,FALSE),\"\")","v":""},{"$f":"IFERROR(VLOOKUP(StudentųPeržvalga,LieposLankomumas[],17,FALSE),\"\")","v":""},{"$f":"IFERROR(VLOOKUP(StudentųPeržvalga,LieposLankomumas[],18,FALSE),\"\")","v":""},{"$f":"IFERROR(VLOOKUP(StudentųPeržvalga,LieposLankomumas[],19,FALSE),\"\")","v":""},{"$f":"IFERROR(VLOOKUP(StudentųPeržvalga,LieposLankomumas[],20,FALSE),\"\")","v":""},{"$f":"IFERROR(VLOOKUP(StudentųPeržvalga,LieposLankomumas[],21,FALSE),\"\")","v":""},{"$f":"IFERROR(VLOOKUP(StudentųPeržvalga,LieposLankomumas[],22,FALSE),\"\")","v":""},{"$f":"IFERROR(VLOOKUP(StudentųPeržvalga,LieposLankomumas[],23,FALSE),\"\")","v":""},{"$f":"IFERROR(VLOOKUP(StudentųPeržvalga,LieposLankomumas[],24,FALSE),\"\")","v":""},{"$f":"IFERROR(VLOOKUP(StudentųPeržvalga,LieposLankomumas[],25,FALSE),\"\")","v":""},{"$f":"IFERROR(VLOOKUP(StudentųPeržvalga,LieposLankomumas[],26,FALSE),\"\")","v":""},{"$f":"IFERROR(VLOOKUP(StudentųPeržvalga,LieposLankomumas[],27,FALSE),\"\")","v":""},{"$f":"IFERROR(VLOOKUP(StudentųPeržvalga,LieposLankomumas[],28,FALSE),\"\")","v":""},{"$f":"IFERROR(VLOOKUP(StudentųPeržvalga,LieposLankomumas[],29,FALSE),\"\")","v":""},{"$f":"IFERROR(VLOOKUP(StudentųPeržvalga,LieposLankomumas[],30,FALSE),\"\")","v":""},{"$f":"IFERROR(VLOOKUP(StudentųPeržvalga,LieposLankomumas[],31,FALSE),\"\")","v":""},{"$f":"IFERROR(VLOOKUP(StudentųPeržvalga,LieposLankomumas[],32,FALSE),\"\")","v":""},{"$f":"IFERROR(VLOOKUP(StudentųPeržvalga,LieposLankomumas[],33,FALSE),\"\")","v":""}]
[{"$nulls":30},"Sumos",null,null,{"$f":"SUM(AH16:AH39)","v":2},{"$f":"SUM(AI16:AI39)","v":1},{"$f":"SUM(AJ16:AJ39)","v":0},{"$f":"SUM(AK16:AK39)","v":19}]